Workbook

Sheet Notes
A1: SuperPassbandFilter.xlsm; Traders Tip spreadsheet created for the July 2016 Issue
A2: Coded beginning 2016-May-06 by Ronald McAllister (rpmac_xltt@sprynet.com)
A4: This Workbook demonstrates an EXCEL version of the ideas presented
A5: by by John F. Ehlers in an article titled "The Super Passband Filter"
A6: which originally appeared in the July 2016 issue of
A7: "Technical Analysis of Stocks and Commodities" magazine.
A9: CalculationsAndCharts construction Notes:
B10: Straight forward calculations using Mr. Ehlers' closed formula for PB.
B11: To replicate Mr. Ehlers Figure 3, plot dates 2/15/2015 thru 4/11/2016.
B12: Note that the Alpha use in Mr. Ehlers EMA calculations is calculated using a very aggressive 5/N.
A15: Development Notes:
C16: This workbook contains and uses VBA macros and may use VBA Class structures.
C17: Input Data
C18: The data in this workbook is sorted date descending (most recent date at the top). All formulas and
C19: VBA routines are built accordingly.
A21: Calculation and Chart Worksheet Usage Comments:
C22: In General, Items in Bolded BLUE are items you may freely change to play what-if games.
C23: Be sure to have a backup copy of the spreadsheet before you alter anything else.
A25: Features carried forward from the June 2016 version of my T-Tips Template
A26: Added a pair of buttons near cell F12 that will allow the user to step the charting window forward or backward one bar for each click.
A27: I find this to be a good way to test my understanding of the author's ideas as I step through the evolution of the price behaviour and the indicators.
B29: First: In the "Help! I would like to plot data" area.
B30: Added button to resolve #NA problems by locating the bar in the input data with a slightly more recent date than what the user actually requested.
B31: I find this particularly useful when I have a general idea of where I want to be date wise. Now I can pick a set of dates "out of the air".
B32: If either (or both) of my date specifications fall between dates that are available in the price history,
B33: this button will resolve them to the dates of the nearest, slightly more recent input bars.
B34: I can then refine my data interval search as necessary from there.
B35: Really great when working with Weekly or Monthly studies!
B37: Second: In the "Price Chart Windowing Controls" area. (A11 and A12)
B38: When retrieving data for a new symbol or when changing from daily to weekly or monthly data, there was the possibility that the
B39: residual settings in A11 and A12 would fall outside of the number bars available on the input data tab after the new data retrieval.
B40: In certain combinations, this could create a serious error in the chart sizing logic and crash the spreadsheet.
B41: I have taken this opportunity to update the validity checking logic used in the chart sizing macros
B42: to adjust these values as necessary so that they fall within the boundaries of the newly retrieved input data.
A43: Features carried forward from the October 2015 Traders Tips Template
B44: Improved automation: changes to any of the following will automatically initiate calculations appropriate to reflect a change.
C45: Changing either of cells A11 (pan) or A12 (zoom) will automatically initiate the same chart sizing macros that the manual
C46: "Set Chart" button uses.
B48: Added fail-over capability to attempt to retrieve company name and basic last trade info via screen scraper logic
C49: using the Yahoo stock Summary page. Until now, the way I have been doing this reports that ^DJI is Not Found!
C50: when there is history available. Will still report correctly for a truly Not Found Symbol
C51: Minor drawbacks to the screen scrape of the stock summary page include:
C52: Only date on the page is the date we request the page. I will use this date for now as the last trade date…
C53: But the user should be aware that this is not necessarily the correct date if you are making the inquiry on
C54: a weekend or market holiday.
C55: This is not a big issue as the last real trade will already be accounted for in the history download by about 6 pm on the real date of the trade.
C56: Note: This failover mechanism is only used if what I have been doing all along reports a "not found" for the requested symbol.

Sheet InputPriceData
A1: SPDR S&P 500 (SPY) -PCX (Daily)
A2: Last Trade: | B2: 2016-05-05 | C2: 205.56 | D2: 205.98 | E2: 204.47 | F2: 204.97 | G2: 67619222 | H2: 4:00pm | I2: -0.04 | J2: =IFERROR(OFFSET(J2,0,-1,1,1)/(OFFSET(J2,0,-4,1,1)-OFFSET(J2,0,-1,1,1)),"") -> -0.0001951124335 | L2: Notes: | M2: Online Yahoo Finance Query Interfaces used in the VBA code to obtain this data: | IJ2: 241.79
A3: Request Online Yahoo History for: | M3: A.) Price History Only: "http://ichart.finance.yahoo.com/table.csv"
A4: Symbol | B4: SPY | D4: Valid | I4: =OFFSET(I4,-2,0,1,1) -> -0.04 | M4: B.) Price History w/ imbedded divs n splits: "http://ichart.finance.yahoo.com/x"
A5: From | B5: 1977-01-07 | D5: Data | AF5: Trailing 12 Div return (Cur Close)
A6: To | B6: =TODAY() -> 2016-05-11 | D6: Types | E6: =VLOOKUP(B7,D7:E10,2,FALSE) -> d | M6: C.) Fundamentals (in this case name and exchange):
A7: Data Type | B7: Daily | D7: Daily | E7: d | M7: "http://download.finance.yahoo.com/d/quotes.csv?"
D8: Weekly | E8: w | M8: For some how-to doc regarding this particular interface, including a list of the
A9: Available Data | D9: Monthly | E9: m | M9: specific fields you can include in a request to this interface see:
A10: Bar Count: | B10: =COUNTA(B15:B70000)-1 -> 5860 | M10: http://www.gummy-stuff.org/Yahoo-data.htm | AF10: =OFFSET(AC15,1,0,1,1)/OFFSET(N15,1,0,1,1) -> 0.02110064888
A11: From: | B11: =IF(B10<=0,"",OFFSET(B15,B10,IF(HistReqDataType="v",1,0),1,1)) -> 1993-01-29 | M11: This web site includes a downloadable working EXCEL/VBA example | W11: Trailing 12 Month Dividend Returns
A12: To: | B12: =IF(B10<=0,"",IF(HistReqDataType="v",OFFSET(B15,2,1,1,1),OFFSET(B15,1,0,1,1))) -> 2016-05-05 | M12: of the capabilities of this interface. | W12: Raw Close price on Dividend date | X12: Div Year and Month | Y12: Looking for year ago Div Year and Month | Z12: Year ago Div Date we found | AA12: row offset to year ago div Date | AB12: Same month flag | AC12: Trailing 12 Div Total | AD12: Trailing 12 Div return
Q13: Split History | S13: =COUNT(Q16:Q3919) -> 0 | T13: Running | U13: Dividend History
B14: Raw Data Values | H14: Adjusted | I14: Price Adjust | J14: Vol Adjust | K14: Adjusted Values | P14: Last | Q14: Effective | R14: Shares | T14: Vol Adjust | V14: =COUNT(U16:U3919) -> 97
A15: RelRow | B15: Date | C15: Open | D15: High | E15: Low | F15: Close | G15: Volume | H15: Close | I15: Factor | J15: Factor | K15: Open | L15: High | M15: Low | N15: Close | O15: Volume | P15: Trade | Q15: 42496 | R15: New | S15: Old | T15: 1 | U15: Date | V15: $ / Share
A16: 1 | B16: 2016-05-05 | C16: 205.559998 | D16: 205.979996 | E16: 204.470001 | F16: 204.970001 | G16: 65635100 | H16: 204.970001 | I16: =H16/F16 -> 1 | J16: =INDEX(OFFSET($T$15,0,0,$S$13+1,1),MATCH(B16,OFFSET($Q$15,0,0,$S$13+1,1),-1)) -> 1 | K16: =ROUND($I16*C16,2) -> 205.56 | L16: =ROUND($I16*D16,2) -> 205.98 | M16: 204.47 | N16: 204.97 | O16: =G16*J16 -> 65635100 | U16: 2016-03-18 | V16: 1.05 | W16: =(INDEX(OFFSET($F$15,1,0,$B$10,1),MATCH(U16,OFFSET($B$15,1,0,$B$10,1),-1))) -> 204.380005 | X16: =YEAR(U16)&RIGHT("0"&MONTH(U16),2) -> 201603 | Y16: =YEAR(U16)-1&RIGHT("0"&MONTH(U16),2) -> 201503 | Z16: =OFFSET(U15,AA16,0,1,1) -> 2015-03-20 | AA16: =MATCH(Y16,OFFSET($X$15,A16,0,$V$14+1-A16,1),-1) -> 5 | AB16: =IF(OR(AND(YEAR(U16)=YEAR(Z16),MONTH(U16)=MONTH(Z16)),MONTH(U16)=MONTH(Z16)),1,0) -> 1 | AC16: =(V16+IF(AA16-AB16=0,0,IFERROR(SUM(OFFSET(V16,1,0,AA16-AB16-1,1)),0))) -> 4.325 | AD16: =AC16/(INDEX(OFFSET($F$15,1,0,$B$10,1),MATCH(U16,OFFSET($B$15,1,0,$B$10,1),-1))) -> 0.02116156128
A17: 2 | B17: 2016-05-04 | C17: 204.990005 | D17: 205.850006 | E17: 204.419998 | F17: 205.009995 | G17: 88385200 | H17: 205.009995 | I17: =H17/F17 -> 1 | J17: =INDEX(OFFSET($T$15,0,0,$S$13+1,1),MATCH(B17,OFFSET($Q$15,0,0,$S$13+1,1),-1)) -> 1 | K17: =ROUND($I17*C17,2) -> 204.99 | L17: =ROUND($I17*D17,2) -> 205.85 | M17: =ROUND($I17*E17,2) -> 204.42 | N17: =ROUND($I17*F17,2) -> 205.01 | O17: =G17*J17 -> 88385200 | U17: 2015-12-18 | V17: 1.212 | W17: =(INDEX(OFFSET($F$15,1,0,$B$10,1),MATCH(U17,OFFSET($B$15,1,0,$B$10,1),-1))) -> 200.020004 | X17: =YEAR(U17)&RIGHT("0"&MONTH(U17),2) -> 201512 | Y17: =YEAR(U17)-1&RIGHT("0"&MONTH(U17),2) -> 201412 | Z17: =OFFSET(U16,AA17,0,1,1) -> 2014-12-19 | AA17: =MATCH(Y17,OFFSET($X$15,A17,0,$V$14+1-A17,1),-1) -> 5 | AB17: =IF(OR(AND(YEAR(U17)=YEAR(Z17),MONTH(U17)=MONTH(Z17)),MONTH(U17)=MONTH(Z17)),1,0) -> 1 | AC17: =(V17+IF(AA17-AB17=0,0,IFERROR(SUM(OFFSET(V17,1,0,AA17-AB17-1,1)),0))) -> 4.206 | AD17: =AC17/(INDEX(OFFSET($F$15,1,0,$B$10,1),MATCH(U17,OFFSET($B$15,1,0,$B$10,1),-1))) -> 0.02102789679
A18: 3 | B18: 2016-05-03 | C18: 206.520004 | D18: 206.800003 | E18: 205.279999 | F18: 206.160004 | G18: 101267500 | H18: 206.160004 | I18: 1 | J18: 1 | K18: 206.52 | L18: 206.8 | M18: 205.28 | N18: 206.16 | O18: 101267500 | U18: 2015-09-18 | V18: 1.033 | W18: 195.449997 | X18: 201509 | Y18: 201409 | Z18: 2014-09-19 | AA18: 5 | AB18: 1 | AC18: 4.129 | AD18: 0.0211256079
A19: 4 | B19: 2016-05-02 | C19: 206.919998 | D19: 208.179993 | E19: 206.410004 | F19: 207.970001 | G19: 60877500 | H19: 207.970001 | I19: 1 | J19: 1 | K19: 206.92 | L19: 208.18 | M19: 206.41 | N19: 207.97 | O19: 60877500 | U19: 2015-06-19 | V19: 1.03 | W19: 210.809998 | X19: 201506 | Y19: 201406 | Z19: 2014-06-20 | AA19: 5 | AB19: 1 | AC19: 4.035 | AD19: 0.01914045841
A20: 5 | B20: 2016-04-29 | C20: 206.720001 | D20: 207.130005 | E20: 205.029999 | F20: 206.330002 | G20: 133314400 | H20: 206.330002 | I20: 1 | J20: 1 | K20: 206.72 | L20: 207.13 | M20: 205.03 | N20: 206.33 | O20: 133314400 | U20: 2015-03-20 | V20: 0.931 | W20: 210.410004 | X20: 201503 | Y20: 201403 | Z20: 2014-03-21 | AA20: 5 | AB20: 1 | AC20: 3.942 | AD20: 0.01873485065
A21: 6 | B21: 2016-04-28 | C21: 208.460007 | D21: 209.759995 | E21: 206.960007 | F21: 207.449997 | G21: 92734800 | H21: 207.449997 | I21: 1 | J21: 1 | K21: 208.46 | L21: 209.76 | M21: 206.96 | N21: 207.45 | O21: 92734800 | U21: 2014-12-19 | V21: 1.135 | W21: 206.520004 | X21: 201412 | Y21: 201312 | Z21: 2013-12-20 | AA21: 5 | AB21: 1 | AC21: 3.836 | AD21: 0.01857447185
A22: 7 | B22: 2016-04-27 | C22: 208.470001 | D22: 209.809998 | E22: 208.050003 | F22: 209.350006 | G22: 72940400 | H22: 209.350006 | I22: 1 | J22: 1 | K22: 208.47 | L22: 209.81 | M22: 208.05 | N22: 209.35 | O22: 72940400 | U22: 2014-09-19 | V22: 0.939 | W22: 200.699997 | X22: 201409 | Y22: 201309 | Z22: 2013-09-20 | AA22: 5 | AB22: 1 | AC22: 3.681 | AD22: 0.01834080745
A23: 8 | B23: 2016-04-26 | C23: 209.039993 | D23: 209.520004 | E23: 208.360001 | F23: 208.919998 | G23: 72386200 | H23: 208.919998 | I23: 1 | J23: 1 | K23: 209.04 | L23: 209.52 | M23: 208.36 | N23: 208.92 | O23: 72386200 | U23: 2014-06-20 | V23: 0.937 | W23: 195.940002 | X23: 201406 | Y23: 201306 | Z23: 2013-06-21 | AA23: 5 | AB23: 1 | AC23: 3.58 | AD23: 0.01827089907
A24: 9 | B24: 2016-04-25 | C24: 208.259995 | D24: 208.660004 | E24: 207.539993 | F24: 208.610001 | G24: 61251800 | H24: 208.610001 | I24: 1 | J24: 1 | K24: 208.26 | L24: 208.66 | M24: 207.54 | N24: 208.61 | O24: 61251800 | U24: 2014-03-21 | V24: 0.825 | W24: 186.199997 | X24: 201403 | Y24: 201303 | Z24: 2013-03-15 | AA24: 5 | AB24: 1 | AC24: 3.482 | AD24: 0.01870032254
A25: 10 | B25: 2016-04-22 | C25: 208.550003 | D25: 209.289993 | E25: 207.910004 | F25: 208.970001 | G25: 90936000 | H25: 208.970001 | I25: 1 | J25: 1 | K25: 208.55 | L25: 209.29 | M25: 207.91 | N25: 208.97 | O25: 90936000 | U25: 2013-12-20 | V25: 0.98 | W25: 181.559998 | X25: 201312 | Y25: 201212 | Z25: 2012-12-21 | AA25: 5 | AB25: 1 | AC25: 3.351 | AD25: 0.01845670873
A26: 11 | B26: 2016-04-21 | C26: 210.119995 | D26: 210.25 | E26: 208.649994 | F26: 208.970001 | G26: 78195500 | H26: 208.970001 | I26: 1 | J26: 1 | K26: 210.12 | L26: 210.25 | M26: 208.65 | N26: 208.97 | O26: 78195500 | U26: 2013-09-20 | V26: 0.838 | W26: 170.720001 | X26: 201309 | Y26: 201209 | Z26: 2012-09-21 | AA26: 5 | AB26: 1 | AC26: 3.393 | AD26: 0.01987464843
A27: 12 | B27: 2016-04-20 | C27: 209.949997 | D27: 210.919998 | E27: 209.389999 | F27: 210.100006 | G27: 74193000 | H27: 210.100006 | I27: 1 | J27: 1 | K27: 209.95 | L27: 210.92 | M27: 209.39 | N27: 210.1 | O27: 74193000 | U27: 2013-06-21 | V27: 0.839 | W27: 159.070007 | X27: 201306 | Y27: 201206 | Z27: 2012-06-15 | AA27: 5 | AB27: 1 | AC27: 3.334 | AD27: 0.02095932516
A28: 13 | B28: 2016-04-19 | C28: 209.740005 | D28: 210.199997 | E28: 208.940002 | F28: 209.899994 | G28: 85426300 | H28: 209.899994 | I28: 1 | J28: 1 | K28: 209.74 | L28: 210.2 | M28: 208.94 | N28: 209.9 | O28: 85426300 | U28: 2013-03-15 | V28: 0.694 | W28: 155.830002 | X28: 201303 | Y28: 201203 | Z28: 2012-03-16 | AA28: 5 | AB28: 1 | AC28: 3.183 | AD28: 0.02042610511
A29: 14 | B29: 2016-04-18 | C29: 207.779999 | D29: 209.279999 | E29: 207 | F29: 209.240005 | G29: 75277700 | H29: 209.240005 | I29: 1 | J29: 1 | K29: 207.78 | L29: 209.28 | M29: 207 | N29: 209.24 | O29: 75277700 | U29: 2012-12-21 | V29: 1.022 | W29: 142.789993 | X29: 201212 | Y29: 201112 | Z29: 2011-12-16 | AA29: 5 | AB29: 1 | AC29: 3.103 | AD29: 0.02173121474
A30: 15 | B30: 2016-04-15 | C30: 208.009995 | D30: 208.169998 | E30: 207.399994 | F30: 207.779999 | G30: 73521600 | H30: 207.779999 | I30: 1 | J30: 1 | K30: 208.01 | L30: 208.17 | M30: 207.4 | N30: 207.78 | O30: 73521600 | U30: 2012-09-21 | V30: 0.779 | W30: 145.869995 | X30: 201209 | Y30: 201109 | Z30: 2011-09-16 | AA30: 5 | AB30: 1 | AC30: 2.851 | AD30: 0.01954480083
A31: 16 | B31: 2016-04-14 | C31: 208.070007 | D31: 208.600006 | E31: 207.600006 | F31: 208.009995 | G31: 60422700 | H31: 208.009995 | I31: 1 | J31: 1 | K31: 208.07 | L31: 208.6 | M31: 207.6 | N31: 208.01 | O31: 60422700 | U31: 2012-06-15 | V31: 0.688 | W31: 134.139999 | X31: 201206 | Y31: 201106 | Z31: 2011-06-17 | AA31: 5 | AB31: 1 | AC31: 2.697 | AD31: 0.0201058597
A32: 17 | B32: 2016-04-13 | C32: 207 | D32: 208.100006 | E32: 206.839996 | F32: 208 | G32: 92452500 | H32: 208 | I32: 1 | J32: 1 | K32: 207 | L32: 208.1 | M32: 206.84 | N32: 208 | O32: 92452500 | U32: 2012-03-16 | V32: 0.614 | W32: 140.300003 | X32: 201203 | Y32: 201103 | Z32: 2011-03-18 | AA32: 5 | AB32: 1 | AC32: 2.637 | AD32: 0.01879543794
A33: 18 | B33: 2016-04-12 | C33: 204.220001 | D33: 206.25 | E33: 203.699997 | F33: 205.919998 | G33: 110162100 | H33: 205.919998 | I33: 1 | J33: 1 | K33: 204.22 | L33: 206.25 | M33: 203.7 | N33: 205.92 | O33: 110162100 | U33: 2011-12-16 | V33: 0.77 | W33: 121.589996 | X33: 201112 | Y33: 201012 | Z33: 2010-12-17 | AA33: 5 | AB33: 1 | AC33: 2.576 | AD33: 0.02118595349
A34: 19 | B34: 2016-04-11 | C34: 205.25 | D34: 206.070007 | E34: 203.910004 | F34: 204.020004 | G34: 80719200 | H34: 204.020004 | I34: 1 | J34: 1 | K34: 205.25 | L34: 206.07 | M34: 203.91 | N34: 204.02 | O34: 80719200 | U34: 2011-09-16 | V34: 0.625 | W34: 121.519997 | X34: 201109 | Y34: 201009 | Z34: 2010-09-17 | AA34: 5 | AB34: 1 | AC34: 2.459 | AD34: 0.0202353527
A35: 20 | B35: 2016-04-08 | C35: 205.339996 | D35: 205.850006 | E35: 203.869995 | F35: 204.5 | G35: 92431200 | H35: 204.5 | I35: 1 | J35: 1 | K35: 205.34 | L35: 205.85 | M35: 203.87 | N35: 204.5 | O35: 92431200 | U35: 2011-06-17 | V35: 0.628 | W35: 127.050003 | X35: 201106 | Y35: 201006 | Z35: 2010-06-18 | AA35: 5 | AB35: 1 | AC35: 2.436 | AD35: 0.01917355327
A36: 21 | B36: 2016-04-07 | C36: 206.419998 | D36: 206.419998 | E36: 203.089996 | F36: 203.949997 | G36: 109295100 | H36: 203.949997 | I36: 1 | J36: 1 | K36: 206.42 | L36: 206.42 | M36: 203.09 | N36: 203.95 | O36: 109295100 | U36: 2011-03-18 | V36: 0.553 | W36: 127.760002 | X36: 201103 | Y36: 201003 | Z36: 2010-03-19 | AA36: 5 | AB36: 1 | AC36: 2.339 | AD36: 0.01830776427
A37: 22 | B37: 2016-04-06 | C37: 204.190002 | D37: 206.490005 | E37: 203.979996 | F37: 206.419998 | G37: 89889800 | H37: 206.419998 | I37: 1 | J37: 1 | K37: 204.19 | L37: 206.49 | M37: 203.98 | N37: 206.42 | O37: 89889800 | U37: 2010-12-17 | V37: 0.653 | W37: 124.300003 | X37: 201012 | Y37: 200912 | Z37: 2009-12-18 | AA37: 5 | AB37: 1 | AC37: 2.266 | AD37: 0.01823008806
A38: 23 | B38: 2016-04-05 | C38: 204.669998 | D38: 206.259995 | E38: 203.889999 | F38: 204.190002 | G38: 89387200 | H38: 204.190002 | I38: 1 | J38: 1 | K38: 204.67 | L38: 206.26 | M38: 203.89 | N38: 204.19 | O38: 89387200 | U38: 2010-09-17 | V38: 0.602 | W38: 112.489998 | X38: 201009 | Y38: 200909 | Z38: 2009-09-18 | AA38: 5 | AB38: 1 | AC38: 2.203 | AD38: 0.01958396337
A39: 24 | B39: 2016-04-04 | C39: 206.830002 | D39: 207.070007 | E39: 205.889999 | F39: 206.25 | G39: 62658900 | H39: 206.25 | I39: 1 | J39: 1 | K39: 206.83 | L39: 207.07 | M39: 205.89 | N39: 206.25 | O39: 62658900 | U39: 2010-06-18 | V39: 0.531 | W39: 111.730003 | X39: 201006 | Y39: 200906 | Z39: 2009-06-19 | AA39: 5 | AB39: 1 | AC39: 2.109 | AD39: 0.01887586094
A40: 25 | B40: 2016-04-01 | C40: 204.350006 | D40: 207.139999 | E40: 203.979996 | F40: 206.919998 | G40: 110080400 | H40: 206.919998 | I40: 1 | J40: 1 | K40: 204.35 | L40: 207.14 | M40: 203.98 | N40: 206.92 | O40: 110080400 | U40: 2010-03-19 | V40: 0.48 | W40: 115.970001 | X40: 201003 | Y40: 200903 | Z40: 2009-03-20 | AA40: 5 | AB40: 1 | AC40: 2.096 | AD40: 0.01807363958
A41: 26 | B41: 2016-03-31 | C41: 205.910004 | D41: 206.410004 | E41: 205.330002 | F41: 205.520004 | G41: 87315600 | H41: 205.520004 | I41: 1 | J41: 1 | K41: 205.91 | L41: 206.41 | M41: 205.33 | N41: 205.52 | O41: 87315600 | U41: 2009-12-18 | V41: 0.59 | W41: 110.209999 | X41: 200912 | Y41: 200812 | Z41: 2008-12-19 | AA41: 5 | AB41: 1 | AC41: 2.177 | AD41: 0.01975319862
A42: 27 | B42: 2016-03-30 | C42: 206.300003 | D42: 206.869995 | E42: 205.589996 | F42: 206.020004 | G42: 82354400 | H42: 206.020004 | I42: 1 | J42: 1 | K42: 206.3 | L42: 206.87 | M42: 205.59 | N42: 206.02 | O42: 82354400 | U42: 2009-09-18 | V42: 0.508 | W42: 106.720001 | X42: 200909 | Y42: 200809 | Z42: 2008-09-19 | AA42: 5 | AB42: 1 | AC42: 2.306 | AD42: 0.02160794582
A43: 28 | B43: 2016-03-29 | C43: 202.759995 | D43: 205.25 | E43: 202.399994 | F43: 205.119995 | G43: 90418600 | H43: 205.119995 | I43: 1 | J43: 1 | K43: 202.76 | L43: 205.25 | M43: 202.4 | N43: 205.12 | O43: 90418600 | U43: 2009-06-19 | V43: 0.518 | W43: 92.040001 | X43: 200906 | Y43: 200806 | Z43: 2008-06-20 | AA43: 5 | AB43: 1 | AC43: 2.489 | AD43: 0.02704258988
A44: 29 | B44: 2016-03-28 | C44: 203.610001 | D44: 203.860001 | E44: 202.710007 | F44: 203.240005 | G44: 62408200 | H44: 203.240005 | I44: 1 | J44: 1 | K44: 203.61 | L44: 203.86 | M44: 202.71 | N44: 203.24 | O44: 62408200 | U44: 2009-03-20 | V44: 0.561 | W44: 76.709999 | X44: 200903 | Y44: 200803 | Z44: 2008-03-20 | AA44: 5 | AB44: 1 | AC44: 2.64 | AD44: 0.03441533091
A45: 30 | B45: 2016-03-24 | C45: 202 | D45: 203.160004 | E45: 201.740005 | F45: 203.119995 | G45: 84360900 | H45: 203.119995 | I45: 1 | J45: 1 | K45: 202 | L45: 203.16 | M45: 201.74 | N45: 203.12 | O45: 84360900 | U45: 2008-12-19 | V45: 0.719 | W45: 88.190002 | X45: 200812 | Y45: 200712 | Z45: 2007-12-21 | AA45: 5 | AB45: 1 | AC45: 2.721 | AD45: 0.0308538376
A46: 31 | B46: 2016-03-23 | C46: 204.110001 | D46: 204.330002 | E46: 203.009995 | F46: 203.210007 | G46: 81052500 | H46: 203.210007 | I46: 1 | J46: 1 | K46: 204.11 | L46: 204.33 | M46: 203.01 | N46: 203.21 | O46: 81052500 | U46: 2008-09-19 | V46: 0.691 | W46: 124.120003 | X46: 200809 | Y46: 200709 | Z46: 2007-09-21 | AA46: 5 | AB46: 1 | AC46: 2.777 | AD46: 0.02237350897
A47: 32 | B47: 2016-03-22 | C47: 203.759995 | D47: 205.229996 | E47: 203.570007 | F47: 204.559998 | G47: 97471900 | H47: 204.559998 | I47: 1 | J47: 1 | K47: 203.76 | L47: 205.23 | M47: 203.57 | N47: 204.56 | O47: 97471900 | U47: 2008-06-20 | V47: 0.669 | W47: 131.580002 | X47: 200806 | Y47: 200706 | Z47: 2007-06-15 | AA47: 5 | AB47: 1 | AC47: 2.805 | AD47: 0.02131782913
A48: 33 | B48: 2016-03-21 | C48: 204.070007 | D48: 204.940002 | E48: 203.800003 | F48: 204.669998 | G48: 72926700 | H48: 204.669998 | I48: 1 | J48: 1 | K48: 204.07 | L48: 204.94 | M48: 203.8 | N48: 204.67 | O48: 72926700 | U48: 2008-03-20 | V48: 0.642 | W48: 132.080002 | X48: 200803 | Y48: 200703 | Z48: 2007-03-16 | AA48: 5 | AB48: 1 | AC48: 2.792 | AD48: 0.0211387035
A49: 34 | B49: 2016-03-18 | C49: 204.169998 | D49: 204.779999 | E49: 203.800003 | F49: 204.380005 | G49: 138372400 | H49: 204.380005 | I49: 1 | J49: 1 | K49: 204.17 | L49: 204.78 | M49: 203.8 | N49: 204.38 | O49: 138372400 | U49: 2007-12-21 | V49: 0.775 | W49: 148.130005 | X49: 200712 | Y49: 200612 | Z49: 2006-12-15 | AA49: 5 | AB49: 1 | AC49: 2.701 | AD49: 0.01823398305
A50: 35 | B50: 2016-03-17 | C50: 203.240005 | D50: 205.229996 | E50: 202.770004 | F50: 204.630005 | G50: 134278500 | H50: 203.58001 | I50: 0.9948688121 | J50: 1 | K50: 202.2 | L50: 204.18 | M50: 201.73 | N50: 203.58 | O50: 134278500 | U50: 2007-09-21 | V50: 0.719 | W50: 151.970001 | X50: 200709 | Y50: 200609 | Z50: 2006-09-15 | AA50: 5 | AB50: 1 | AC50: 2.719 | AD50: 0.01789168903
A51: 36 | B51: 2016-03-16 | C51: 201.600006 | D51: 203.820007 | E51: 201.550003 | F51: 203.339996 | G51: 129303200 | H51: 202.296621 | I51: 0.9948688157 | J51: 1 | K51: 200.57 | L51: 202.77 | M51: 200.52 | N51: 202.3 | O51: 129303200 | U51: 2007-06-15 | V51: 0.656 | W51: 153.070007 | X51: 200706 | Y51: 200606 | Z51: 2006-06-16 | AA51: 5 | AB51: 1 | AC51: 2.579 | AD51: 0.01684849992
A52: 37 | B52: 2016-03-15 | C52: 201.360001 | D52: 202.529999 | E52: 201.050003 | F52: 202.169998 | G52: 93169100 | H52: 201.132626 | I52: 0.9948688133 | J52: 1 | K52: 200.33 | L52: 201.49 | M52: 200.02 | N52: 201.13 | O52: 93169100 | U52: 2007-03-16 | V52: 0.551 | W52: 138.529999 | X52: 200703 | Y52: 200603 | Z52: 2006-03-17 | AA52: 5 | AB52: 1 | AC52: 2.478 | AD52: 0.01788782226
A53: 38 | B53: 2016-03-14 | C53: 202.160004 | D53: 203.039993 | E53: 201.770004 | F53: 202.5 | G53: 73612000 | H53: 201.460935 | I53: 0.9948688148 | J53: 1 | K53: 201.12 | L53: 202 | M53: 200.73 | N53: 201.46 | O53: 73612000 | U53: 2006-12-15 | V53: 0.793 | W53: 142.339996 | X53: 200612 | Y53: 200512 | Z53: 2005-12-16 | AA53: 5 | AB53: 1 | AC53: 2.446 | AD53: 0.01718420731
A54: 39 | B54: 2016-03-11 | C54: 201.259995 | D54: 202.809998 | E54: 199.520004 | F54: 202.759995 | G54: 137964500 | H54: 201.719595 | I54: 0.9948688103 | J54: 1 | K54: 200.23 | L54: 201.77 | M54: 198.5 | N54: 201.72 | O54: 137964500 | U54: 2006-09-15 | V54: 0.579 | W54: 131.960007 | X54: 200609 | Y54: 200509 | Z54: 2005-09-16 | AA54: 5 | AB54: 1 | AC54: 2.325 | AD54: 0.01761897451
A55: 40 | B55: 2016-03-10 | C55: 199.960007 | D55: 201.070007 | E55: 197.380005 | F55: 199.539993 | G55: 156838700 | H55: 198.516117 | I55: 0.9948688181 | J55: 1 | K55: 198.93 | L55: 200.04 | M55: 196.37 | N55: 198.52 | O55: 156838700 | U55: 2006-06-16 | V55: 0.555 | W55: 124.650002 | X55: 200606 | Y55: 200506 | Z55: 2005-06-17 | AA55: 5 | AB55: 1 | AC55: 2.268 | AD55: 0.01819494556
A56: 41 | B56: 2016-03-09 | C56: 199.360001 | D56: 199.789993 | E56: 198.429993 | F56: 199.380005 | G56: 94801200 | H56: 198.356949 | I56: 0.9948688134 | J56: 1 | K56: 198.34 | L56: 198.76 | M56: 197.41 | N56: 198.36 | O56: 94801200 | U56: 2006-03-17 | V56: 0.519 | W56: 130.619995 | X56: 200603 | Y56: 200503 | Z56: 2005-03-18 | AA56: 5 | AB56: 1 | AC56: 2.201 | AD56: 0.0168504064
A57: 42 | B57: 2016-03-08 | C57: 199.320007 | D57: 199.919998 | E57: 198.210007 | F57: 198.399994 | G57: 123974900 | H57: 197.381967 | I57: 0.9948688154 | J57: 1 | K57: 198.3 | L57: 198.89 | M57: 197.19 | N57: 197.38 | O57: 123974900 | U57: 2005-12-16 | V57: 0.672 | W57: 126.360001 | X57: 200512 | Y57: 200412 | Z57: 2004-12-17 | AA57: 5 | AB57: 1 | AC57: 2.149 | AD57: 0.01700696409
A58: 43 | B58: 2016-03-07 | C58: 199.339996 | D58: 201.070007 | E58: 199.25 | F58: 200.589996 | G58: 100219000 | H58: 199.560732 | I58: 0.9948688169 | J58: 1 | K58: 198.32 | L58: 200.04 | M58: 198.23 | N58: 199.56 | O58: 100219000 | U58: 2005-09-16 | V58: 0.522 | W58: 123.5 | X58: 200509 | Y58: 200409 | Z58: 2004-09-17 | AA58: 6 | AB58: 1 | AC58: 2.396 | AD58: 0.01940080972
A59: 44 | B59: 2016-03-04 | C59: 200.009995 | D59: 201.350006 | E59: 199.029999 | F59: 200.429993 | G59: 129293600 | H59: 199.401549 | I59: 0.9948688119 | J59: 1 | K59: 198.98 | L59: 200.32 | M59: 198.01 | N59: 199.4 | O59: 129293600 | U59: 2005-06-17 | V59: 0.488 | W59: 121.360001 | X59: 200506 | Y59: 200406 | Z59: 2004-06-18 | AA59: 6 | AB59: 1 | AC59: 2.343 | AD59: 0.01930619628
A60: 45 | B60: 2016-03-03 | C60: 198.789993 | D60: 199.800003 | E60: 198.110001 | F60: 199.779999 | G60: 95172200 | H60: 198.754891 | I60: 0.9948688157 | J60: 1 | K60: 197.77 | L60: 198.77 | M60: 197.09 | N60: 198.75 | O60: 95172200 | U60: 2005-03-18 | V60: 0.467 | W60: 118.540001 | X60: 200503 | Y60: 200403 | Z60: 2004-03-19 | AA60: 6 | AB60: 1 | AC60: 2.269 | AD60: 0.01914121799
A61: 46 | B61: 2016-03-02 | C61: 197.740005 | D61: 199.059998 | E61: 197.25 | F61: 199 | G61: 102415000 | H61: 197.978894 | I61: 0.9948688141 | J61: 1 | K61: 196.73 | L61: 198.04 | M61: 196.24 | N61: 197.98 | O61: 102415000 | U61: 2004-12-17 | V61: 0.568 | W61: 119.440002 | X61: 200412 | Y61: 200312 | Z61: 2003-12-19 | AA61: 6 | AB61: 1 | AC61: 2.197 | AD61: 0.0183941725
A62: 47 | B62: 2016-03-01 | C62: 195.009995 | D62: 198.210007 | E62: 194.449997 | F62: 198.110001 | G62: 141799700 | H62: 197.093462 | I62: 0.9948688153 | J62: 1 | K62: 194.01 | L62: 197.19 | M62: 193.45 | N62: 197.09 | O62: 141799700 | U62: 2004-11-15 | V62: 0.351 | W62: 118.730003 | X62: 200411 | Y62: 200311 | Z62: 2003-12-19 | AA62: 5 | AB62: 0 | AC62: 2.145 | AD62: 0.01806620017
A63: 48 | B63: 2016-02-29 | C63: 195.110001 | D63: 196.229996 | E63: 193.330002 | F63: 193.559998 | G63: 125918100 | H63: 192.566805 | I63: 0.9948688107 | J63: 1 | K63: 194.11 | L63: 195.22 | M63: 192.34 | N63: 192.57 | O63: 125918100 | U63: 2004-09-17 | V63: 0.469 | W63: 113.150002 | X63: 200409 | Y63: 200309 | Z63: 2003-09-19 | AA63: 5 | AB63: 1 | AC63: 1.794 | AD63: 0.01585505938
A64: 49 | B64: 2016-02-26 | C64: 196.570007 | D64: 196.679993 | E64: 194.899994 | F64: 195.089996 | G64: 129833700 | H64: 194.088953 | I64: 0.9948688143 | J64: 1 | K64: 195.56 | L64: 195.67 | M64: 193.9 | N64: 194.09 | O64: 129833700 | U64: 2004-06-18 | V64: 0.414 | W64: 113.629997 | X64: 200406 | Y64: 200306 | Z64: 2003-06-20 | AA64: 5 | AB64: 1 | AC64: 1.725 | AD64: 0.01518085053
A65: 50 | B65: 2016-02-25 | C65: 193.729996 | D65: 195.550003 | E65: 192.830002 | F65: 195.539993 | G65: 110728300 | H65: 194.536641 | I65: 0.9948688144 | J65: 1 | K65: 192.74 | L65: 194.55 | M65: 191.84 | N65: 194.54 | O65: 110728300 | U65: 2004-03-19 | V65: 0.395 | W65: 111.059998 | X65: 200403 | Y65: 200303 | Z65: 2003-03-21 | AA65: 5 | AB65: 1 | AC65: 1.671 | AD65: 0.01504592139
A66: 51 | B66: 2016-02-24 | C66: 190.630005 | D66: 193.529999 | E66: 189.320007 | F66: 193.199997 | G66: 150812200 | H66: 192.208652 | I66: 0.9948688146 | J66: 1 | K66: 189.65 | L66: 192.54 | M66: 188.35 | N66: 192.21 | O66: 150812200 | U66: 2003-12-19 | V66: 0.516 | W66: 108.900002 | X66: 200312 | Y66: 200212 | Z66: 2002-12-20 | AA66: 5 | AB66: 1 | AC66: 1.63 | AD66: 0.01496786015
A67: 52 | B67: 2016-02-23 | C67: 194 | D67: 194.320007 | E67: 192.179993 | F67: 192.320007 | G67: 111455300 | H67: 191.333178 | I67: 0.9948688178 | J67: 1 | K67: 193 | L67: 193.32 | M67: 191.19 | N67: 191.33 | O67: 111455300 | U67: 2003-09-19 | V67: 0.4 | W67: 103.669998 | X67: 200309 | Y67: 200209 | Z67: 2002-09-20 | AA67: 5 | AB67: 1 | AC67: 1.55 | AD67: 0.01495128803
A68: 53 | B68: 2016-02-22 | C68: 193.869995 | D68: 194.949997 | E68: 193.789993 | F68: 194.779999 | G68: 103640300 | H68: 193.780547 | I68: 0.9948688161 | J68: 1 | K68: 192.88 | L68: 193.95 | M68: 192.8 | N68: 193.78 | O68: 103640300 | U68: 2003-06-20 | V68: 0.36 | W68: 99.440002 | X68: 200306 | Y68: 200206 | Z68: 2002-06-21 | AA68: 5 | AB68: 1 | AC68: 1.528 | AD68: 0.01536604957
A69: 54 | B69: 2016-02-19 | C69: 191.169998 | D69: 192.179993 | E69: 190.449997 | F69: 192 | G69: 114793000 | H69: 191.014812 | I69: 0.9948688125 | J69: 1 | K69: 190.19 | L69: 191.19 | M69: 189.47 | N69: 191.01 | O69: 114793000 | U69: 2003-03-21 | V69: 0.354 | W69: 89.669998 | X69: 200303 | Y69: 200203 | Z69: 2002-03-15 | AA69: 5 | AB69: 1 | AC69: 1.521 | AD69: 0.01696219509
A70: 55 | B70: 2016-02-18 | C70: 193.199997 | D70: 193.270004 | E70: 191.720001 | F70: 192.089996 | G70: 102343000 | H70: 191.104347 | I70: 0.9948688166 | J70: 1 | K70: 192.21 | L70: 192.28 | M70: 190.74 | N70: 191.1 | O70: 102343000 | U70: 2002-12-20 | V70: 0.436 | W70: 89.989998 | X70: 200212 | Y70: 200112 | Z70: 2001-12-21 | AA70: 5 | AB70: 1 | AC70: 1.498 | AD70: 0.0166462944
A71: 56 | B71: 2016-02-17 | C71: 191.160004 | D71: 193.320007 | E71: 191.009995 | F71: 192.880005 | G71: 136009500 | H71: 191.890302 | I71: 0.9948688149 | J71: 1 | K71: 190.18 | L71: 192.33 | M71: 190.03 | N71: 191.89 | O71: 136009500 | U71: 2002-09-20 | V71: 0.378 | W71: 84.349998 | X71: 200209 | Y71: 200109 | Z71: 2001-09-21 | AA71: 5 | AB71: 1 | AC71: 1.455 | AD71: 0.01724955583
A72: 57 | B72: 2016-02-16 | C72: 188.770004 | D72: 189.809998 | E72: 187.630005 | F72: 189.779999 | G72: 120250700 | H72: 188.806202 | I72: 0.9948688112 | J72: 1 | K72: 187.8 | L72: 188.84 | M72: 186.67 | N72: 188.81 | O72: 120250700 | U72: 2002-06-21 | V72: 0.353 | W72: 99.279999 | X72: 200206 | Y72: 200106 | Z72: 2001-06-15 | AA72: 5 | AB72: 1 | AC72: 1.446 | AD72: 0.01456486719
A73: 58 | B73: 2016-02-12 | C73: 184.960007 | D73: 186.649994 | E73: 183.960007 | F73: 186.630005 | G73: 127632400 | H73: 185.672372 | I73: 0.9948688154 | J73: 1 | K73: 184.01 | L73: 185.69 | M73: 183.02 | N73: 185.67 | O73: 127632400 | U73: 2002-03-15 | V73: 0.331 | W73: 116.650002 | X73: 200203 | Y73: 200103 | Z73: 2001-03-16 | AA73: 5 | AB73: 1 | AC73: 1.439 | AD73: 0.0123360478
A74: 59 | B74: 2016-02-11 | C74: 182.339996 | D74: 184.100006 | E74: 181.089996 | F74: 182.860001 | G74: 219058900 | H74: 181.921712 | I74: 0.9948688122 | J74: 1 | K74: 181.4 | L74: 183.16 | M74: 180.16 | N74: 181.92 | O74: 219058900 | U74: 2001-12-21 | V74: 0.393 | W74: 114.949997 | X74: 200112 | Y74: 200012 | Z74: 2000-12-27 | AA74: 5 | AB74: 1 | AC74: 1.424 | AD74: 0.0123879951
A75: 60 | B75: 2016-02-10 | C75: 186.410004 | D75: 188.339996 | E75: 185.119995 | F75: 185.270004 | G75: 148214100 | H75: 184.31935 | I75: 0.9948688186 | J75: 1 | K75: 185.45 | L75: 187.37 | M75: 184.17 | N75: 184.32 | O75: 148214100 | U75: 2001-09-21 | V75: 0.369 | W75: 97.279999 | X75: 200109 | Y75: 200009 | Z75: 2000-09-15 | AA75: 6 | AB75: 1 | AC75: 1.442 | AD75: 0.01482319094
A76: 61 | B76: 2016-02-09 | C76: 183.360001 | D76: 186.940002 | E76: 183.199997 | F76: 185.429993 | G76: 184513100 | H76: 184.478517 | I76: 0.9948688128 | J76: 1 | K76: 182.42 | L76: 185.98 | M76: 182.26 | N76: 184.48 | O76: 184513100 | U76: 2001-06-15 | V76: 0.346 | W76: 121.849998 | X76: 200106 | Y76: 200006 | Z76: 2000-06-16 | AA76: 7 | AB76: 1 | AC76: 1.448 | AD76: 0.01188346347
A77: 62 | B77: 2016-02-08 | C77: 185.770004 | D77: 186.119995 | E77: 182.800003 | F77: 185.419998 | G77: 191526700 | H77: 184.468574 | I77: 0.9948688167 | J77: 1 | K77: 184.82 | L77: 185.16 | M77: 181.86 | N77: 184.47 | O77: 191526700 | U77: 2001-03-16 | V77: 0.316 | W77: 115.010002 | X77: 200103 | Y77: 200003 | Z77: 2000-03-17 | AA77: 7 | AB77: 1 | AC77: 1.45 | AD77: 0.01260759912
A78: 63 | B78: 2016-02-05 | C78: 190.990005 | D78: 191.669998 | E78: 187.199997 | F78: 187.949997 | G78: 180788300 | H78: 186.985591 | I78: 0.9948688161 | J78: 1 | K78: 190.01 | L78: 190.69 | M78: 186.24 | N78: 186.99 | O78: 180788300 | U78: 2000-12-27 | V78: 0 | W78: 133.3125 | X78: 200012 | Y78: 199912 | Z78: 1999-12-17 | AA78: 7 | AB78: 1 | AC78: 1.505 | AD78: 0.01128926395
A79: 64 | B79: 2016-02-04 | C79: 190.710007 | D79: 192.75 | E79: 189.960007 | F79: 191.600006 | G79: 139531800 | H79: 190.616871 | I79: 0.9948688154 | J79: 1 | K79: 189.73 | L79: 191.76 | M79: 188.99 | N79: 190.62 | O79: 139531800 | U79: 2000-12-15 | V79: 0.411 | W79: 130.968704 | X79: 200012 | Y79: 199912 | Z79: 1999-12-17 | AA79: 6 | AB79: 1 | AC79: 1.505 | AD79: 0.0114912949
A80: 65 | B80: 2016-02-03 | C80: 191.410004 | D80: 191.779999 | E80: 187.100006 | F80: 191.300003 | G80: 205054900 | H80: 190.318407 | I80: 0.9948688135 | J80: 1 | K80: 190.43 | L80: 190.8 | M80: 186.14 | N80: 190.32 | O80: 205054900 | U80: 2000-09-15 | V80: 0.375 | W80: 146 | X80: 200009 | Y80: 199909 | Z80: 1999-09-17 | AA80: 6 | AB80: 1 | AC80: 1.442 | AD80: 0.009876712329
A81: 66 | B81: 2016-02-02 | C81: 191.960007 | D81: 191.970001 | E81: 189.539993 | F81: 190.160004 | G81: 182564900 | H81: 189.184257 | I81: =H81/F81 -> 0.9948688106 | J81: =INDEX(OFFSET($T$15,0,0,$S$13+1,1),MATCH(B81,OFFSET($Q$15,0,0,$S$13+1,1),-1)) -> 1 | K81: =ROUND($I81*C81,2) -> 190.98 | L81: =ROUND($I81*D81,2) -> 190.98 | M81: =ROUND($I81*E81,2) -> 188.57 | N81: =ROUND($I81*F81,2) -> 189.18 | O81: =G81*J81 -> 182564900 | U81: 2000-09-14 | V81: 0 | W81: =(INDEX(OFFSET($F$15,1,0,$B$10,1),MATCH(U81,OFFSET($B$15,1,0,$B$10,1),-1))) -> 149.640594 | X81: =YEAR(U81)&RIGHT("0"&MONTH(U81),2) -> 200009 | Y81: =YEAR(U81)-1&RIGHT("0"&MONTH(U81),2) -> 199909 | Z81: =OFFSET(U80,AA81,0,1,1) -> 1999-09-17 | AA81: =MATCH(Y81,OFFSET($X$15,A81,0,$V$14+1-A81,1),-1) -> 5 | AB81: =IF(OR(AND(YEAR(U81)=YEAR(Z81),MONTH(U81)=MONTH(Z81)),MONTH(U81)=MONTH(Z81)),1,0) -> 1 | AC81: =(V81+IF(AA81-AB81=0,0,IFERROR(SUM(OFFSET(V81,1,0,AA81-AB81-1,1)),0))) -> 1.067 | AD81: =AC81/(INDEX(OFFSET($F$15,1,0,$B$10,1),MATCH(U81,OFFSET($B$15,1,0,$B$10,1),-1))) -> 0.0071304181
A82: 67 | B82: 2016-02-01 | C82: 192.529999 | D82: 194.580002 | E82: 191.839996 | F82: 193.649994 | G82: 136061600 | H82: 192.65634 | I82: 0.9948688147 | J82: 1 | K82: 191.54 | L82: 193.58 | M82: 190.86 | N82: 192.66 | O82: 136061600 | U82: 2000-06-16 | V82: 0.348 | W82: 146.593704 | X82: 200006 | Y82: 199906 | Z82: 1999-06-18 | AA82: 5 | AB82: 1 | AC82: 1.439 | AD82: 0.009816246952
A83: 68 | B83: 2016-01-29 | C83: 190.020004 | D83: 193.880005 | E83: 189.880005 | F83: 193.720001 | G83: 210529300 | H83: 192.725988 | I83: 0.9948688158 | J83: 1 | K83: 189.04 | L83: 192.89 | M83: 188.91 | N83: 192.73 | O83: 210529300 | U83: 2000-03-17 | V83: 0.371 | W83: 146.9375 | X83: 200003 | Y83: 199903 | Z83: 1999-03-19 | AA83: 5 | AB83: 1 | AC83: 1.496 | AD83: 0.01018119949
A84: 69 | B84: 2016-01-28 | C84: 189.960007 | D84: 190.199997 | E84: 187.160004 | F84: 189.110001 | G84: 143798800 | H84: 188.139642 | I84: 0.9948688118 | J84: 1 | K84: 188.99 | L84: 189.22 | M84: 186.2 | N84: 188.14 | O84: 143798800 | U84: 1999-12-17 | V84: 0.348 | W84: 142.6875 | X84: 199912 | Y84: 199812 | Z84: 1998-12-18 | AA84: 5 | AB84: 1 | AC84: 1.445 | AD84: 0.01012702584
A85: 70 | B85: 2016-01-27 | C85: 189.580002 | D85: 191.559998 | E85: 187.059998 | F85: 188.130005 | G85: 185681700 | H85: 187.164675 | I85: 0.9948688143 | J85: 1 | K85: 188.61 | L85: 190.58 | M85: 186.1 | N85: 187.16 | O85: 185681700 | U85: 1999-09-17 | V85: 0.372 | W85: 133.75 | X85: 199909 | Y85: 199809 | Z85: 1998-09-18 | AA85: 5 | AB85: 1 | AC85: 1.489 | AD85: 0.01113271028
A86: 71 | B86: 2016-01-26 | C86: 188.419998 | D86: 190.529999 | E86: 188.020004 | F86: 190.199997 | G86: 141036800 | H86: 189.224046 | I86: 0.994868817 | J86: 1 | K86: 187.45 | L86: 189.55 | M86: 187.06 | N86: 189.22 | O86: 141036800 | U86: 1999-06-18 | V86: 0.405 | W86: 134.3125 | X86: 199906 | Y86: 199806 | Z86: 1998-06-19 | AA86: 5 | AB86: 1 | AC86: 1.476 | AD86: 0.01098929735
A87: 72 | B87: 2016-01-25 | C87: 189.919998 | D87: 190.149994 | E87: 187.410004 | F87: 187.639999 | G87: 130371700 | H87: 186.677184 | I87: 0.9948688179 | J87: 1 | K87: 188.95 | L87: 189.17 | M87: 186.45 | N87: 186.68 | O87: 130371700 | U87: 1999-03-19 | V87: 0.32 | W87: 129.6875 | X87: 199903 | Y87: 199803 | Z87: 1998-03-20 | AA87: 5 | AB87: 1 | AC87: 1.423 | AD87: 0.01097253012
A88: 73 | B88: 2016-01-22 | C88: 189.779999 | D88: 190.759995 | E88: 188.880005 | F88: 190.520004 | G88: 168319600 | H88: 189.542411 | I88: 0.994868817 | J88: 1 | K88: 188.81 | L88: 189.78 | M88: 187.91 | N88: 189.54 | O88: 168319600 | U88: 1998-12-18 | V88: 0.392 | W88: 118.5 | X88: 199812 | Y88: 199712 | Z88: 1997-12-19 | AA88: 5 | AB88: 1 | AC88: 1.416 | AD88: 0.01194936709
A89: 74 | B89: 2016-01-21 | C89: 186.210007 | D89: 188.869995 | E89: 184.639999 | F89: 186.690002 | G89: 195772900 | H89: 185.732061 | I89: 0.9948688147 | J89: 1 | K89: 185.25 | L89: 187.9 | M89: 183.69 | N89: 185.73 | O89: 195772900 | U89: 1998-09-18 | V89: 0.359 | W89: 102.093697 | X89: 199809 | Y89: 199709 | Z89: 1997-09-19 | AA89: 5 | AB89: 1 | AC89: 1.404 | AD89: 0.01375207325
A90: 75 | B90: 2016-01-20 | C90: 185.029999 | D90: 187.5 | E90: 181.020004 | F90: 185.649994 | G90: 286547800 | H90: 184.697389 | I90: 0.9948688121 | J90: 1 | K90: 184.08 | L90: 186.54 | M90: 180.09 | N90: 184.7 | O90: 286547800 | U90: 1998-06-19 | V90: 0.352 | W90: 110.0625 | X90: 199806 | Y90: 199706 | Z90: 1997-06-20 | AA90: 5 | AB90: 1 | AC90: 1.393 | AD90: 0.0126564452
A91: 76 | B91: 2016-01-19 | C91: 189.960007 | D91: 190.110001 | E91: 186.199997 | F91: 188.059998 | G91: 195244400 | H91: 187.095027 | I91: 0.9948688131 | J91: 1 | K91: 188.99 | L91: 189.13 | M91: 185.24 | N91: 187.1 | O91: 195244400 | U91: 1998-03-20 | V91: 0.313 | W91: 109.875 | X91: 199803 | Y91: 199703 | Z91: 1997-03-21 | AA91: 5 | AB91: 1 | AC91: 1.391 | AD91: 0.01265984073
A92: 77 | B92: 2016-01-15 | C92: 186.770004 | D92: 188.759995 | E92: 185.520004 | F92: 187.809998 | G92: 324846400 | H92: 186.84631 | I92: 0.9948688142 | J92: 1 | K92: 185.81 | L92: 187.79 | M92: 184.57 | N92: 186.85 | O92: 324846400 | U92: 1997-12-19 | V92: 0.38 | W92: 94.781197 | X92: 199712 | Y92: 199612 | Z92: 1996-12-20 | AA92: 5 | AB92: 1 | AC92: 1.377 | AD92: 0.01452819803
A93: 78 | B93: 2016-01-14 | C93: 189.550003 | D93: 193.259995 | E93: 187.660004 | F93: 191.929993 | G93: 240795600 | H93: 190.945164 | I93: 0.9948688114 | J93: 1 | K93: 188.58 | L93: 192.27 | M93: 186.7 | N93: 190.95 | O93: 240795600 | U93: 1997-09-19 | V93: 0.348 | W93: 95.031197 | X93: 199709 | Y93: 199609 | Z93: 1996-09-20 | AA93: 5 | AB93: 1 | AC93: 1.364 | AD93: 0.0143531813
A94: 79 | B94: 2016-01-13 | C94: 194.449997 | D94: 194.860001 | E94: 188.380005 | F94: 188.830002 | G94: 221168900 | H94: 187.86108 | I94: 0.9948688133 | J94: 1 | K94: 193.45 | L94: 193.86 | M94: 187.41 | N94: 187.86 | O94: 221168900 | U94: 1997-06-20 | V94: 0.35 | W94: 89.578102 | X94: 199706 | Y94: 199606 | Z94: 1996-06-21 | AA94: 5 | AB94: 1 | AC94: 1.368 | AD94: 0.01527158948
A95: 80 | B95: 2016-01-12 | C95: 193.820007 | D95: 194.550003 | E95: 191.139999 | F95: 193.660004 | G95: 172330500 | H95: 192.666298 | I95: 0.9948688114 | J95: 1 | K95: 192.83 | L95: 193.55 | M95: 190.16 | N95: 192.67 | O95: 172330500 | U95: 1997-03-21 | V95: 0.299 | W95: 78.4375 | X95: 199703 | Y95: 199603 | Z95: 1996-03-15 | AA95: 5 | AB95: 1 | AC95: 1.369 | AD95: 0.01745338645
A96: 81 | B96: 2016-01-11 | C96: 193.009995 | D96: 193.410004 | E96: 189.820007 | F96: 192.110001 | G96: 187941300 | H96: 191.124249 | I96: 0.9948688148 | J96: 1 | K96: 192.02 | L96: 192.42 | M96: 188.85 | N96: 191.12 | O96: 187941300 | U96: 1996-12-20 | V96: 0.367 | W96: 74.843697 | X96: 199612 | Y96: 199512 | Z96: 1995-12-15 | AA96: 5 | AB96: 1 | AC96: 1.355 | AD96: 0.01810439695
A97: 82 | B97: 2016-01-08 | C97: 195.190002 | D97: 195.850006 | E97: 191.580002 | F97: 191.919998 | G97: 209817200 | H97: 190.935221 | I97: 0.9948688151 | J97: 1 | K97: 194.19 | L97: 194.85 | M97: 190.6 | N97: 190.94 | O97: 209817200 | U97: 1996-09-20 | V97: 0.352 | W97: 68.640602 | X97: 199609 | Y97: 199509 | Z97: 1995-09-15 | AA97: 5 | AB97: 1 | AC97: 1.37 | AD97: 0.01995903241
A98: 83 | B98: 2016-01-07 | C98: 195.330002 | D98: 197.440002 | E98: 193.589996 | F98: 194.050003 | G98: 213436100 | H98: 193.054297 | I98: 0.9948688174 | J98: 1 | K98: 194.33 | L98: 196.43 | M98: 192.6 | N98: 193.05 | O98: 213436100 | U98: 1996-06-21 | V98: 0.351 | W98: 66.8125 | X98: 199606 | Y98: 199506 | Z98: 1995-06-16 | AA98: 5 | AB98: 1 | AC98: 1.33 | AD98: 0.01990645463
A99: 84 | B99: 2016-01-06 | C99: 198.339996 | D99: 200.059998 | E99: 197.600006 | F99: 198.820007 | G99: 152112600 | H99: 197.799825 | I99: 0.9948688162 | J99: 1 | K99: 197.32 | L99: 199.03 | M99: 196.59 | N99: 197.8 | O99: 152112600 | U99: 1996-03-15 | V99: 0.285 | W99: 64.125 | X99: 199603 | Y99: 199503 | Z99: 1995-03-17 | AA99: 5 | AB99: 1 | AC99: 1.295 | AD99: 0.02019493177
A100: 85 | B100: 2016-01-05 | C100: 201.399994 | D100: 201.899994 | E100: 200.050003 | F100: 201.360001 | G100: 110845800 | H100: 200.326785 | I100: 0.9948688121 | J100: 1 | K100: 200.37 | L100: 200.86 | M100: 199.02 | N100: 200.33 | O100: 110845800 | U100: 1995-12-15 | V100: 0.382 | W100: 61.8125 | X100: 199512 | Y100: 199412 | Z100: 1994-12-16 | AA100: 5 | AB100: 1 | AC100: 1.278 | AD100: 0.02067542973
A101: 86 | B101: 2016-01-04 | C101: 200.490005 | D101: 201.029999 | E101: 198.589996 | F101: 201.020004 | G101: 222353500 | H101: 199.988533 | I101: 0.9948688142 | J101: 1 | K101: 199.46 | L101: 200 | M101: 197.57 | N101: 199.99 | O101: 222353500 | U101: 1995-09-15 | V101: 0.312 | W101: 58.4375 | X101: 199509 | Y101: 199409 | Z101: 1994-09-19 | AA101: 5 | AB101: 1 | AC101: 1.259 | AD101: 0.02154438503
A102: 87 | B102: 2015-12-31 | C102: 205.130005 | D102: 205.889999 | E102: 203.869995 | F102: 203.869995 | G102: 114877900 | H102: 202.8239 | I102: 0.9948688133 | J102: 1 | K102: 204.08 | L102: 204.83 | M102: 202.82 | N102: 202.82 | O102: 114877900 | U102: 1995-06-16 | V102: 0.316 | W102: 53.9687 | X102: 199506 | Y102: 199406 | Z102: 1994-06-17 | AA102: 6 | AB102: 1 | AC102: 1.235 | AD102: 0.0228836344
A103: 88 | B103: 2015-12-30 | C103: 207.110001 | D103: 207.210007 | E103: 205.759995 | F103: 205.929993 | G103: 63317700 | H103: 204.873328 | I103: 0.9948688145 | J103: 1 | K103: 206.05 | L103: 206.15 | M103: 204.7 | N103: 204.87 | O103: 63317700 | U103: 1995-03-17 | V103: 0.268 | W103: 49.5625 | X103: 199503 | Y103: 199403 | Z103: 1994-03-18 | AA103: 6 | AB103: 1 | AC103: 1.224 | AD103: 0.02469609079
A104: 89 | B104: 2015-12-29 | C104: 206.509995 | D104: 207.789993 | E104: 206.470001 | F104: 207.399994 | G104: 92640700 | H104: 206.335786 | I104: 0.9948688137 | J104: 1 | K104: 205.45 | L104: 206.72 | M104: 205.41 | N104: 206.34 | O104: 92640700 | U104: 1994-12-16 | V104: 0.363 | W104: 45.75 | X104: 199412 | Y104: 199312 | Z104: 1993-12-17 | AA104: 6 | AB104: 1 | AC104: 1.227 | AD104: 0.02681967213
A105: 90 | B105: 2015-12-28 | C105: 204.860001 | D105: 205.259995 | E105: 203.940002 | F105: 205.210007 | G105: 65899900 | H105: 204.157036 | I105: 0.9948688126 | J105: 1 | K105: 203.81 | L105: 204.21 | M105: 202.89 | N105: 204.16 | O105: 65899900 | U105: 1994-09-19 | V105: 0 | W105: 47.0625 | X105: 199409 | Y105: 199309 | Z105: 1993-09-17 | AA105: 6 | AB105: 1 | AC105: 1.181 | AD105: 0.02509428951
A106: 91 | B106: 2015-12-24 | C106: 205.720001 | D106: 206.330002 | E106: 205.419998 | F106: 205.679993 | G106: 48542200 | H106: 204.624611 | I106: 0.9948688155 | J106: 1 | K106: 204.66 | L106: 205.27 | M106: 204.37 | N106: 204.62 | O106: 48542200 | U106: 1994-09-16 | V106: 0.288 | W106: 47.015598 | X106: 199409 | Y106: 199309 | Z106: 1993-09-17 | AA106: 5 | AB106: 1 | AC106: 1.181 | AD106: 0.02511932317
A107: 92 | B107: 2015-12-23 | C107: 204.690002 | D107: 206.070007 | E107: 204.580002 | F107: 206.020004 | G107: 110987200 | H107: 204.962878 | I107: 0.9948688187 | J107: 1 | K107: 203.64 | L107: 205.01 | M107: 203.53 | N107: 204.96 | O107: 110987200 | U107: 1994-06-17 | V107: 0.305 | W107: 45.875 | X107: 199406 | Y107: 199306 | Z107: 1993-06-18 | AA107: 5 | AB107: 1 | AC107: 1.179 | AD107: 0.02570027248
A108: 93 | B108: 2015-12-22 | C108: 202.720001 | D108: 203.850006 | E108: 201.550003 | F108: 203.5 | G108: 111026200 | H108: 202.455804 | I108: 0.9948688157 | J108: 1 | K108: 201.68 | L108: 202.8 | M108: 200.52 | N108: 202.46 | O108: 111026200 | U108: 1994-03-18 | V108: 0.271 | W108: 46.9687 | X108: 199403 | Y108: 199303 | Z108: 1993-03-19 | AA108: 5 | AB108: 1 | AC108: 1.192 | AD108: 0.0253786032
A109: 94 | B109: 2015-12-21 | C109: 201.410004 | D109: 201.880005 | E109: 200.089996 | F109: 201.669998 | G109: 99094300 | H109: 200.635192 | I109: 0.9948688153 | J109: 1 | K109: 200.38 | L109: 200.84 | M109: 199.06 | N109: 200.64 | O109: 99094300 | U109: 1993-12-17 | V109: 0.317 | W109: 46.5625 | X109: 199312 | Y109: 199212 | Z109: 1993-03-19 | AA109: 4 | AB109: 0 | AC109: 1.134 | AD109: 0.02435436242
A110: 95 | B110: 2015-12-18 | C110: 202.770004 | D110: 202.929993 | E110: 199.830002 | F110: 200.020004 | G110: 251393500 | H110: 198.993665 | I110: 0.9948688182 | J110: 1 | K110: 201.73 | L110: 201.89 | M110: 198.8 | N110: 198.99 | O110: 251393500 | U110: 1993-09-17 | V110: 0.286 | W110: 45.8125 | X110: 199309 | Y110: 199209 | Z110: 1993-03-19 | AA110: 3 | AB110: 0 | AC110: 0.817 | AD110: 0.01783356071
A111: 96 | B111: 2015-12-17 | C111: 208.399994 | D111: 208.479996 | E111: 204.839996 | F111: 204.860001 | G111: 173092500 | H111: 202.603041 | I111: 0.9889829152 | J111: 1 | K111: 206.1 | L111: 206.18 | M111: 202.58 | N111: 202.6 | O111: 173092500 | U111: 1993-06-18 | V111: 0.318 | W111: 44.5 | X111: 199306 | Y111: 199206 | Z111: 1993-03-19 | AA111: 2 | AB111: 0 | AC111: 0.531 | AD111: 0.01193258427
A112: 97 | B112: 2015-12-16 | C112: 206.369995 | D112: 208.389999 | E112: 204.800003 | F112: 208.029999 | G112: 197017000 | H112: 205.738115 | I112: 0.9889829159 | J112: 1 | K112: 204.1 | L112: 206.09 | M112: 202.54 | N112: 205.74 | O112: 197017000 | U112: 1993-03-19 | V112: 0.213 | W112: 45.0312 | X112: 199303 | Y112: 199203 | Z112: 1993-03-19 | AA112: 1 | AB112: 1 | AC112: 0.213 | AD112: 0.004730053829
A113: 98 | B113: 2015-12-15 | C113: 204.699997 | D113: 206.110001 | E113: 202.869995 | F113: 205.029999 | G113: 154069600 | H113: 202.771166 | I113: 0.9889829146 | J113: 1 | K113: 202.44 | L113: 203.84 | M113: 200.63 | N113: 202.77 | O113: 154069600
A114: 99 | B114: 2015-12-14 | C114: 202.070007 | D114: 203.050003 | E114: 199.949997 | F114: 202.899994 | G114: 182385200 | H114: 200.664628 | I114: 0.9889829174 | J114: 1 | K114: 199.84 | L114: 200.81 | M114: 197.75 | N114: 200.66 | O114: 182385200
A115: 100 | B115: 2015-12-11 | C115: 203.350006 | D115: 204.139999 | E115: 201.509995 | F115: 201.880005 | G115: 211173300 | H115: 199.655876 | I115: 0.9889829159 | J115: 1 | K115: 201.11 | L115: 201.89 | M115: 199.29 | N115: 199.66 | O115: 211173300
A116: 101 | B116: 2015-12-10 | C116: 205.419998 | D116: 207.429993 | E116: 205.139999 | F116: 205.869995 | G116: 116128900 | H116: 203.601908 | I116: 0.9889829161 | J116: 1 | K116: 203.16 | L116: 205.14 | M116: 202.88 | N116: 203.6 | O116: 116128900
A117: 102 | B117: 2015-12-09 | C117: 206.190002 | D117: 208.679993 | E117: 204.179993 | F117: 205.339996 | G117: 162401500 | H117: 203.077748 | I117: 0.9889829159 | J117: 1 | K117: 203.92 | L117: 206.38 | M117: 201.93 | N117: 203.08 | O117: 162401500
A118: 103 | B118: 2015-12-08 | C118: 206.490005 | D118: 208.289993 | E118: 205.779999 | F118: 206.949997 | G118: 103372400 | H118: 204.670011 | I118: 0.9889829136 | J118: 1 | K118: 204.22 | L118: 206 | M118: 203.51 | N118: 204.67 | O118: 103372400
A119: 104 | B119: 2015-12-07 | C119: 209.229996 | D119: 209.729996 | E119: 207.199997 | F119: 208.350006 | G119: 102027100 | H119: 206.054597 | I119: 0.9889829185 | J119: 1 | K119: 206.92 | L119: 207.42 | M119: 204.92 | N119: 206.05 | O119: 102027100
A120: 105 | B120: 2015-12-04 | C120: 205.610001 | D120: 209.970001 | E120: 205.610001 | F120: 209.619995 | G120: 192913900 | H120: 207.310594 | I120: 0.9889829164 | J120: 1 | K120: 203.34 | L120: 207.66 | M120: 203.34 | N120: 207.31 | O120: 192913900
A121: 106 | B121: 2015-12-03 | C121: 208.830002 | D121: 209.149994 | E121: 204.75 | F121: 205.610001 | G121: 166224200 | H121: 203.344778 | I121: 0.9889829143 | J121: 1 | K121: 206.53 | L121: 206.85 | M121: 202.49 | N121: 203.34 | O121: 166224200
A122: 107 | B122: 2015-12-02 | C122: 210.619995 | D122: 211 | E122: 208.229996 | F122: 208.529999 | G122: 108441300 | H122: 206.232606 | I122: 0.9889829137 | J122: 1 | K122: 208.3 | L122: 208.68 | M122: 205.94 | N122: 206.23 | O122: 108441300
A123: 108 | B123: 2015-12-01 | C123: 209.440002 | D123: 210.820007 | E123: 209.110001 | F123: 210.679993 | G123: 97858400 | H123: 208.358913 | I123: 0.9889829121 | J123: 1 | K123: 207.13 | L123: 208.5 | M123: 206.81 | N123: 208.36 | O123: 97858400
A124: 109 | B124: 2015-11-30 | C124: 209.75 | D124: 209.889999 | E124: 208.559998 | F124: 208.690002 | G124: 112822700 | H124: 206.390847 | I124: 0.9889829174 | J124: 1 | K124: 207.44 | L124: 207.58 | M124: 206.26 | N124: 206.39 | O124: 112822700
A125: 110 | B125: 2015-11-27 | C125: 209.429993 | D125: 209.800003 | E125: 208.860001 | F125: 209.559998 | G125: 37317800 | H125: 207.251257 | I125: 0.9889829117 | J125: 1 | K125: 207.12 | L125: 207.49 | M125: 206.56 | N125: 207.25 | O125: 37317800
A126: 111 | B126: 2015-11-25 | C126: 209.5 | D126: 209.740005 | E126: 209.009995 | F126: 209.320007 | G126: 51980100 | H126: 207.013911 | I126: 0.9889829165 | J126: 1 | K126: 207.19 | L126: 207.43 | M126: 206.71 | N126: 207.01 | O126: 51980100
A127: 112 | B127: 2015-11-24 | C127: 207.869995 | D127: 209.830002 | E127: 207.410004 | F127: 209.350006 | G127: 98874400 | H127: 207.043579 | I127: 0.9889829141 | J127: 1 | K127: 205.58 | L127: 207.52 | M127: 205.12 | N127: 207.04 | O127: 98874400
A128: 113 | B128: 2015-11-23 | C128: 209.380005 | D128: 209.979996 | E128: 208.520004 | F128: 209.070007 | G128: 64931200 | H128: 206.766665 | I128: 0.9889829152 | J128: 1 | K128: 207.07 | L128: 207.67 | M128: 206.22 | N128: 206.77 | O128: 64931200
A129: 114 | B129: 2015-11-20 | C129: 209.449997 | D129: 210.119995 | E129: 208.860001 | F129: 209.309998 | G129: 94011500 | H129: 207.004012 | I129: 0.9889829152 | J129: 1 | K129: 207.14 | L129: 207.81 | M129: 206.56 | N129: 207 | O129: 94011500
A130: 115 | B130: 2015-11-19 | C130: 208.589996 | D130: 209.050003 | E130: 208.199997 | F130: 208.550003 | G130: 88220500 | H130: 206.25239 | I130: 0.9889829155 | J130: 1 | K130: 206.29 | L130: 206.75 | M130: 205.91 | N130: 206.25 | O130: 88220500
A131: 116 | B131: 2015-11-18 | C131: 206.039993 | D131: 208.899994 | E131: 205.990005 | F131: 208.729996 | G131: 121342500 | H131: 206.4304 | I131: 0.9889829155 | J131: 1 | K131: 203.77 | L131: 206.6 | M131: 203.72 | N131: 206.43 | O131: 121342500
A132: 117 | B132: 2015-11-17 | C132: 205.990005 | D132: 207.039993 | E132: 204.880005 | F132: 205.470001 | G132: 121123700 | H132: 203.206321 | I132: 0.9889829173 | J132: 1 | K132: 203.72 | L132: 204.76 | M132: 202.62 | N132: 203.21 | O132: 121123700
A133: 118 | B133: 2015-11-16 | C133: 202.320007 | D133: 205.690002 | E133: 202.179993 | F133: 205.619995 | G133: 117645200 | H133: 203.354662 | I133: 0.9889829148 | J133: 1 | K133: 200.09 | L133: 203.42 | M133: 199.95 | N133: 203.35 | O133: 117645200
A134: 119 | B134: 2015-11-13 | C134: 204.350006 | D134: 204.669998 | E134: 202.440002 | F134: 202.539993 | G134: 153577100 | H134: 200.308593 | I134: 0.9889829166 | J134: 1 | K134: 202.1 | L134: 202.42 | M134: 200.21 | N134: 200.31 | O134: 153577100
A135: 120 | B135: 2015-11-12 | C135: 206.5 | D135: 207.059998 | E135: 204.820007 | F135: 204.839996 | G135: 121315200 | H135: 202.583257 | I135: 0.9889829182 | J135: 1 | K135: 204.22 | L135: 204.78 | M135: 202.56 | N135: 202.58 | O135: 121315200
A136: 121 | B136: 2015-11-11 | C136: 208.880005 | D136: 208.940002 | E136: 207.660004 | F136: 207.740005 | G136: 67846000 | H136: 205.451316 | I136: 0.9889829164 | J136: 1 | K136: 206.58 | L136: 206.64 | M136: 205.37 | N136: 205.45 | O136: 67846000
A137: 122 | B137: 2015-11-10 | C137: 207.509995 | D137: 208.600006 | E137: 207.190002 | F137: 208.559998 | G137: 75874600 | H137: 206.262275 | I137: 0.9889829161 | J137: 1 | K137: 205.22 | L137: 206.3 | M137: 204.91 | N137: 206.26 | O137: 75874600
A138: 123 | B138: 2015-11-09 | C138: 209.309998 | D138: 209.490005 | E138: 206.949997 | F138: 208.080002 | G138: 131008700 | H138: 205.787567 | I138: 0.9889829153 | J138: 1 | K138: 207 | L138: 207.18 | M138: 204.67 | N138: 205.79 | O138: 131008700
A139: 124 | B139: 2015-11-06 | C139: 209.740005 | D139: 210.320007 | E139: 208.460007 | F139: 210.039993 | G139: 110471500 | H139: 207.725965 | I139: 0.9889829172 | J139: 1 | K139: 207.43 | L139: 208 | M139: 206.16 | N139: 207.73 | O139: 110471500
A140: 125 | B140: 2015-11-05 | C140: 210.429993 | D140: 210.979996 | E140: 209.089996 | F140: 210.149994 | G140: 78408700 | H140: 207.834754 | I140: 0.9889829166 | J140: 1 | K140: 208.11 | L140: 208.66 | M140: 206.79 | N140: 207.83 | O140: 78408700
A141: 126 | B141: 2015-11-04 | C141: 211.350006 | D141: 211.5 | E141: 209.720001 | F141: 210.360001 | G141: 96224500 | H141: 208.042447 | I141: 0.9889829151 | J141: 1 | K141: 209.02 | L141: 209.17 | M141: 207.41 | N141: 208.04 | O141: 96224500
A142: 127 | B142: 2015-11-03 | C142: 209.970001 | D142: 211.660004 | E142: 209.699997 | F142: 211 | G142: 95246100 | H142: 208.675395 | I142: 0.9889829147 | J142: 1 | K142: 207.66 | L142: 209.33 | M142: 207.39 | N142: 208.68 | O142: 95246100
A143: 128 | B143: 2015-11-02 | C143: 208.320007 | D143: 210.619995 | E143: 208.169998 | F143: 210.389999 | G143: 86270800 | H143: 208.072115 | I143: 0.9889829174 | J143: 1 | K143: 206.02 | L143: 208.3 | M143: 205.88 | N143: 208.07 | O143: 86270800
A144: 129 | B144: 2015-10-30 | C144: 209.059998 | D144: 209.440002 | E144: 207.740005 | F144: 207.929993 | G144: 131076900 | H144: 205.63921 | I144: 0.9889829121 | J144: 1 | K144: 206.76 | L144: 207.13 | M144: 205.45 | N144: 205.64 | O144: 131076900
A145: 130 | B145: 2015-10-29 | C145: 208.350006 | D145: 209.270004 | E145: 208.210007 | F145: 208.830002 | G145: 90525500 | H145: 206.529304 | I145: =H145/F145 -> 0.9889829144 | J145: =INDEX(OFFSET($T$15,0,0,$S$13+1,1),MATCH(B145,OFFSET($Q$15,0,0,$S$13+1,1),-1)) -> 1 | K145: =ROUND($I145*C145,2) -> 206.05 | L145: =ROUND($I145*D145,2) -> 206.96 | M145: =ROUND($I145*E145,2) -> 205.92 | N145: =ROUND($I145*F145,2) -> 206.53 | O145: =G145*J145 -> 90525500
A146: 131 | B146: 2015-10-28 | C146: 207 | D146: 208.979996 | E146: 206.210007 | F146: 208.949997 | G146: 135906700 | H146: 206.647977 | I146: 0.9889829144 | J146: 1 | K146: 204.72 | L146: 206.68 | M146: 203.94 | N146: 206.65 | O146: 135906700
A147: 132 | B147: 2015-10-27 | C147: 206.199997 | D147: 207 | E147: 205.789993 | F147: 206.600006 | G147: 77905800 | H147: 204.323876 | I147: 0.9889829142 | J147: 1 | K147: 203.93 | L147: 204.72 | M147: 203.52 | N147: 204.32 | O147: 77905800
A148: 133 | B148: 2015-10-26 | C148: 207.300003 | D148: 207.369995 | E148: 206.559998 | F148: 207 | G148: 69033000 | H148: 204.719464 | I148: 0.9889829179 | J148: 1 | K148: 205.02 | L148: 205.09 | M148: 204.28 | N148: 204.72 | O148: 69033000
A149: 134 | B149: 2015-10-23 | C149: 207.25 | D149: 207.949997 | E149: 206.300003 | F149: 207.509995 | G149: 144442300 | H149: 205.223839 | I149: 0.9889829114 | J149: 1 | K149: 204.97 | L149: 205.66 | M149: 204.03 | N149: 205.22 | O149: 144442300
A150: 135 | B150: 2015-10-22 | C150: 202.979996 | D150: 205.509995 | E150: 201.850006 | F150: 205.259995 | G150: 174911700 | H150: 202.998628 | I150: 0.9889829141 | J150: 1 | K150: 200.74 | L150: 203.25 | M150: 199.63 | N150: 203 | O150: 174911700
A151: 136 | B151: 2015-10-21 | C151: 203.610001 | D151: 203.789993 | E151: 201.649994 | F151: 201.850006 | G151: 102038000 | H151: 199.626208 | I151: 0.9889829183 | J151: 1 | K151: 201.37 | L151: 201.54 | M151: 199.43 | N151: 199.63 | O151: 102038000
A152: 137 | B152: 2015-10-20 | C152: 202.850006 | D152: 203.839996 | E152: 202.550003 | F152: 203.110001 | G152: 78448500 | H152: 200.872321 | I152: 0.9889829157 | J152: 1 | K152: 200.62 | L152: 201.59 | M152: 200.32 | N152: 200.87 | O152: 78448500
A153: 138 | B153: 2015-10-19 | C153: 202.5 | D153: 203.369995 | E153: 202.130005 | F153: 203.369995 | G153: 76523900 | H153: 201.129451 | I153: 0.9889829176 | J153: 1 | K153: 200.27 | L153: 201.13 | M153: 199.9 | N153: 201.13 | O153: 76523900
A154: 139 | B154: 2015-10-16 | C154: 202.830002 | D154: 203.289993 | E154: 201.919998 | F154: 203.270004 | G154: 109692900 | H154: 201.030562 | I154: 0.9889829195 | J154: 1 | K154: 200.6 | L154: 201.05 | M154: 199.7 | N154: 201.03 | O154: 109692900
A155: 140 | B155: 2015-10-15 | C155: 200.080002 | D155: 202.360001 | E155: 199.639999 | F155: 202.350006 | G155: 134142200 | H155: 200.120699 | I155: 0.9889829161 | J155: 1 | K155: 197.88 | L155: 200.13 | M155: 197.44 | N155: 200.12 | O155: 134142200
A156: 141 | B156: 2015-10-14 | C156: 200.179993 | D156: 200.869995 | E156: 198.940002 | F156: 199.289993 | G156: 99106200 | H156: 197.094399 | I156: 0.988982919 | J156: 1 | K156: 197.97 | L156: 198.66 | M156: 196.75 | N156: 197.09 | O156: 99106200
A157: 142 | B157: 2015-10-13 | C157: 200.649994 | D157: 202.160004 | E157: 200.050003 | F157: 200.25 | G157: 88038700 | H157: 198.043829 | I157: 0.9889829164 | J157: 1 | K157: 198.44 | L157: 199.93 | M157: 197.85 | N157: 198.04 | O157: 88038700
A158: 143 | B158: 2015-10-12 | C158: 201.419998 | D158: 201.759995 | E158: 200.910004 | F158: 201.520004 | G158: 56395600 | H158: 199.299841 | I158: 0.9889829151 | J158: 1 | K158: 199.2 | L158: 199.54 | M158: 198.7 | N158: 199.3 | O158: 56395600
A159: 144 | B159: 2015-10-09 | C159: 201.380005 | D159: 201.899994 | E159: 200.580002 | F159: 201.330002 | G159: 107069200 | H159: 199.111932 | I159: 0.9889829137 | J159: 1 | K159: 199.16 | L159: 199.68 | M159: 198.37 | N159: 199.11 | O159: 107069200
A160: 145 | B160: 2015-10-08 | C160: 198.949997 | D160: 201.550003 | E160: 198.589996 | F160: 201.210007 | G160: 153055200 | H160: 198.993259 | I160: 0.9889829138 | J160: 1 | K160: 196.76 | L160: 199.33 | M160: 196.4 | N160: 198.99 | O160: 153055200
A161: 146 | B161: 2015-10-07 | C161: 198.899994 | D161: 199.830002 | E161: 197.479996 | F161: 199.410004 | G161: 124307300 | H161: 197.213087 | I161: 0.9889829148 | J161: 1 | K161: 196.71 | L161: 197.63 | M161: 195.3 | N161: 197.21 | O161: 124307300
A162: 147 | B162: 2015-10-06 | C162: 198.309998 | D162: 198.979996 | E162: 197 | F162: 197.789993 | G162: 110274500 | H162: 195.610924 | I162: 0.9889829158 | J162: 1 | K162: 196.13 | L162: 196.79 | M162: 194.83 | N162: 195.61 | O162: 110274500
A163: 148 | B163: 2015-10-05 | C163: 196.460007 | D163: 198.740005 | E163: 196.330002 | F163: 198.470001 | G163: 126320800 | H163: 196.283441 | I163: 0.9889829194 | J163: 1 | K163: 194.3 | L163: 196.55 | M163: 194.17 | N163: 196.28 | O163: 126320800
A164: 149 | B164: 2015-10-02 | C164: 189.770004 | D164: 195.029999 | E164: 189.119995 | F164: 195 | G164: 211003300 | H164: 192.851669 | I164: 0.9889829179 | J164: 1 | K164: 187.68 | L164: 192.88 | M164: 187.04 | N164: 192.85 | O164: 211003300
A165: 150 | B165: 2015-10-01 | C165: 192.080002 | D165: 192.490005 | E165: 189.820007 | F165: 192.130005 | G165: 131079000 | H165: 190.013292 | I165: 0.9889829129 | J165: 1 | K165: 189.96 | L165: 190.37 | M165: 187.73 | N165: 190.01 | O165: 131079000
A166: 151 | B166: 2015-09-30 | C166: 190.369995 | D166: 191.830002 | E166: 189.440002 | F166: 191.630005 | G166: 163452000 | H166: 189.518801 | I166: 0.9889829153 | J166: 1 | K166: 188.27 | L166: 189.72 | M166: 187.35 | N166: 189.52 | O166: 163452000
A167: 152 | B167: 2015-09-29 | C167: 188.270004 | D167: 189.740005 | E167: 186.929993 | F167: 188.119995 | G167: 159045600 | H167: 186.047461 | I167: 0.9889829149 | J167: 1 | K167: 186.2 | L167: 187.65 | M167: 184.87 | N167: 186.05 | O167: 159045600
A168: 153 | B168: 2015-09-28 | C168: 191.779999 | D168: 191.910004 | E168: 187.639999 | F168: 188.009995 | G168: 178515900 | H168: 185.938673 | I168: 0.9889829155 | J168: 1 | K168: 189.67 | L168: 189.8 | M168: 185.57 | N168: 185.94 | O168: 178515900
A169: 154 | B169: 2015-09-25 | C169: 194.639999 | D169: 195 | E169: 191.809998 | F169: 192.869995 | G169: 155054800 | H169: 190.74513 | I169: 0.9889829157 | J169: 1 | K169: 192.5 | L169: 192.85 | M169: 189.7 | N169: 190.75 | O169: 155054800
A170: 155 | B170: 2015-09-24 | C170: 192.149994 | D170: 193.449997 | E170: 190.559998 | F170: 192.899994 | G170: 159378800 | H170: 190.774798 | I170: 0.9889829131 | J170: 1 | K170: 190.03 | L170: 191.32 | M170: 188.46 | N170: 190.77 | O170: 159378800
A171: 156 | B171: 2015-09-23 | C171: 194.110001 | D171: 194.669998 | E171: 192.910004 | F171: 193.600006 | G171: 92790600 | H171: 191.467099 | I171: 0.9889829187 | J171: 1 | K171: 191.97 | L171: 192.53 | M171: 190.78 | N171: 191.47 | O171: 92790600
A172: 157 | B172: 2015-09-22 | C172: 193.880005 | D172: 194.460007 | E172: 192.559998 | F172: 193.899994 | G172: 153890900 | H172: 191.763781 | I172: 0.9889829135 | J172: 1 | K172: 191.74 | L172: 192.32 | M172: 190.44 | N172: 191.76 | O172: 153890900
A173: 158 | B173: 2015-09-21 | C173: 196.440002 | D173: 197.679993 | E173: 195.210007 | F173: 196.460007 | G173: 105726200 | H173: 194.29559 | I173: 0.9889829129 | J173: 1 | K173: 194.28 | L173: 195.5 | M173: 193.06 | N173: 194.3 | O173: 105726200
A174: 159 | B174: 2015-09-18 | C174: 195.710007 | D174: 198.679993 | E174: 194.960007 | F174: 195.449997 | G174: 223657500 | H174: 193.296708 | I174: 0.9889829162 | J174: 1 | K174: 193.55 | L174: 196.49 | M174: 192.81 | N174: 193.3 | O174: 223657500
A175: 160 | B175: 2015-09-17 | C175: 200.020004 | D175: 202.889999 | E175: 199.279999 | F175: 199.729996 | G175: 276046600 | H175: 196.507928 | I175: 0.9838678813 | J175: 1 | K175: 196.79 | L175: 199.62 | M175: 196.07 | N175: 196.51 | O175: 276046600
A176: 161 | B176: 2015-09-16 | C176: 198.820007 | D176: 200.410004 | E176: 198.410004 | F176: 200.179993 | G176: 99581600 | H176: 196.950666 | I176: 0.9838678833 | J176: 1 | K176: 195.61 | L176: 197.18 | M176: 195.21 | N176: 196.95 | O176: 99581600
A177: 162 | B177: 2015-09-15 | C177: 196.610001 | D177: 198.990005 | E177: 195.960007 | F177: 198.449997 | G177: 113806200 | H177: 195.248579 | I177: 0.9838678859 | J177: 1 | K177: 193.44 | L177: 195.78 | M177: 192.8 | N177: 195.25 | O177: 113806200
A178: 163 | B178: 2015-09-14 | C178: 196.949997 | D178: 197.009995 | E178: 195.429993 | F178: 196.009995 | G178: 79452000 | H178: 192.847938 | I178: 0.9838678788 | J178: 1 | K178: 193.77 | L178: 193.83 | M178: 192.28 | N178: 192.85 | O178: 79452000
A179: 164 | B179: 2015-09-11 | C179: 195.380005 | D179: 196.820007 | E179: 194.529999 | F179: 196.740005 | G179: 119691200 | H179: 193.566173 | I179: 0.983867887 | J179: 1 | K179: 192.23 | L179: 193.64 | M179: 191.39 | N179: 193.57 | O179: 119691200
A180: 165 | B180: 2015-09-10 | C180: 194.559998 | D180: 197.220001 | E180: 194.25 | F180: 195.850006 | G180: 158611100 | H180: 192.690531 | I180: 0.9838678841 | J180: 1 | K180: 191.42 | L180: 194.04 | M180: 191.12 | N180: 192.69 | O180: 158611100
A181: 166 | B181: 2015-09-09 | C181: 199.320007 | D181: 199.470001 | E181: 194.350006 | F181: 194.789993 | G181: 149347700 | H181: 191.647618 | I181: 0.9838678828 | J181: 1 | K181: 196.1 | L181: 196.25 | M181: 191.21 | N181: 191.65 | O181: 149347700
A182: 167 | B182: 2015-09-08 | C182: 195.940002 | D182: 197.610001 | E182: 195.169998 | F182: 197.429993 | G182: 116025700 | H182: 194.245029 | I182: 0.9838678817 | J182: 1 | K182: 192.78 | L182: 194.42 | M182: 192.02 | N182: 194.25 | O182: 116025700
A183: 168 | B183: 2015-09-04 | C183: 192.850006 | D183: 193.860001 | E183: 191.610001 | F183: 192.589996 | G183: 207081000 | H183: 189.483112 | I183: 0.9838678848 | J183: 1 | K183: 189.74 | L183: 190.73 | M183: 188.52 | N183: 189.48 | O183: 207081000
A184: 169 | B184: 2015-09-03 | C184: 196.259995 | D184: 198.050003 | E184: 194.960007 | F184: 195.550003 | G184: 152087800 | H184: 192.395368 | I184: 0.9838678857 | J184: 1 | K184: 193.09 | L184: 194.86 | M184: 191.81 | N184: 192.4 | O184: 152087800
A185: 170 | B185: 2015-09-02 | C185: 194.619995 | D185: 195.460007 | E185: 192.419998 | F185: 195.410004 | G185: 160269300 | H185: 192.257627 | I185: 0.9838678832 | J185: 1 | K185: 191.48 | L185: 192.31 | M185: 189.32 | N185: 192.26 | O185: 160269300
A186: 171 | B186: 2015-09-01 | C186: 193.119995 | D186: 194.770004 | E186: 190.729996 | F186: 191.770004 | G186: 256000400 | H186: 188.676348 | I186: 0.9838678837 | J186: 1 | K186: 190 | L186: 191.63 | M186: 187.65 | N186: 188.68 | O186: 256000400
A187: 172 | B187: 2015-08-31 | C187: 198.110001 | D187: 199.130005 | E187: 197.009995 | F187: 197.669998 | G187: 163298800 | H187: 194.481163 | I187: 0.9838678857 | J187: 1 | K187: 194.91 | L187: 195.92 | M187: 193.83 | N187: 194.48 | O187: 163298800
A188: 173 | B188: 2015-08-28 | C188: 198.5 | D188: 199.839996 | E188: 197.919998 | F188: 199.279999 | G188: 160414400 | H188: 196.065191 | I188: 0.9838678843 | J188: 1 | K188: 195.3 | L188: 196.62 | M188: 194.73 | N188: 196.07 | O188: 160414400
A189: 174 | B189: 2015-08-27 | C189: 197.020004 | D189: 199.419998 | E189: 195.210007 | F189: 199.270004 | G189: 274143900 | H189: 196.055357 | I189: 0.9838678831 | J189: 1 | K189: 193.84 | L189: 196.2 | M189: 192.06 | N189: 196.06 | O189: 274143900
A190: 175 | B190: 2015-08-26 | C190: 192.080002 | D190: 194.789993 | E190: 188.369995 | F190: 194.460007 | G190: 339257000 | H190: 191.322955 | I190: 0.9838678809 | J190: 1 | K190: 188.98 | L190: 191.65 | M190: 185.33 | N190: 191.32 | O190: 339257000
A191: 176 | B191: 2015-08-25 | C191: 195.429993 | D191: 195.449997 | E191: 186.919998 | F191: 187.270004 | G191: 369833100 | H191: 184.248943 | I191: 0.9838678863 | J191: 1 | K191: 192.28 | L191: 192.3 | M191: 183.9 | N191: 184.25 | O191: 369833100
A192: 177 | B192: 2015-08-24 | C192: 187.490005 | D192: 197.479996 | E192: 182.399994 | F192: 189.5 | G192: 507244300 | H192: 186.442964 | I192: 0.9838678839 | J192: 1 | K192: 184.47 | L192: 194.29 | M192: 179.46 | N192: 186.44 | O192: 507244300
A193: 178 | B193: 2015-08-21 | C193: 201.729996 | D193: 203.940002 | E193: 197.520004 | F193: 197.830002 | G193: 346588500 | H193: 194.638585 | I193: 0.9838678817 | J193: 1 | K193: 198.48 | L193: 200.65 | M193: 194.33 | N193: 194.64 | O193: 346588500
A194: 179 | B194: 2015-08-20 | C194: 206.509995 | D194: 208.289993 | E194: 203.899994 | F194: 203.970001 | G194: 194327900 | H194: 200.679533 | I194: 0.9838678826 | J194: 1 | K194: 203.18 | L194: 204.93 | M194: 200.61 | N194: 200.68 | O194: 194327900
A195: 180 | B195: 2015-08-19 | C195: 209.089996 | D195: 210.009995 | E195: 207.350006 | F195: 208.320007 | G195: 172946000 | H195: 204.959365 | I195: 0.9838678865 | J195: 1 | K195: 205.72 | L195: 206.62 | M195: 204.01 | N195: 204.96 | O195: 172946000
A196: 181 | B196: 2015-08-18 | C196: 210.259995 | D196: 210.679993 | E196: 209.699997 | F196: 209.979996 | G196: 71692700 | H196: 206.592574 | I196: 0.9838678823 | J196: 1 | K196: 206.87 | L196: 207.28 | M196: 206.32 | N196: 206.59 | O196: 71692700
A197: 182 | B197: 2015-08-17 | C197: 208.710007 | D197: 210.589996 | E197: 208.160004 | F197: 210.589996 | G197: 79072600 | H197: 207.192734 | I197: 0.9838678852 | J197: 1 | K197: 205.34 | L197: 207.19 | M197: 204.8 | N197: 207.19 | O197: 79072600
A198: 183 | B198: 2015-08-14 | C198: 208.429993 | D198: 209.509995 | E198: 208.259995 | F198: 209.419998 | G198: 72786500 | H198: 206.04161 | I198: 0.9838678826 | J198: 1 | K198: 205.07 | L198: 206.13 | M198: 204.9 | N198: 206.04 | O198: 72786500
A199: 184 | B199: 2015-08-13 | C199: 208.729996 | D199: 209.550003 | E199: 208.009995 | F199: 208.660004 | G199: 89383300 | H199: 205.293876 | I199: 0.9838678811 | J199: 1 | K199: 205.36 | L199: 206.17 | M199: 204.65 | N199: 205.29 | O199: 89383300
A200: 185 | B200: 2015-08-12 | C200: 207.110001 | D200: 209.139999 | E200: 205.360001 | F200: 208.919998 | G200: 172123700 | H200: 205.549676 | I200: 0.9838678823 | J200: 1 | K200: 203.77 | L200: 205.77 | M200: 202.05 | N200: 205.55 | O200: 172123700
... 5675 more rows

Sheet CalculationsAndCharts
A1: Super Passband Filter
A2: =InputPriceData!A1 -> SPDR S&P 500 (SPY) -PCX (Daily)
A4: User Charting Controls | E4: Click to Shift Chart One Bar:
A5: Data Control
A6: =InputPriceData!$B$10 -> 5860 | B6: Available Input Data Rows | E6: Earliest: | F6: =OFFSET(InputPriceData!B15,CalculationsAndCharts!A6,0,1,1) -> 1993-01-29
B7: Use Close Adjusted: | C7: TRUE | E7: Latest: | F7: =OFFSET(InputPriceData!B15,1,0,1,1) -> 2016-05-05
A8: =MIN(A6-A11,LastUsedRowInColumn(A:A)-32) -> 2500 | B8: Logically Available for Calc / Plot | E8: $ Change: | F8: =InputPriceData!I4 -> -0.04
A10: Price Chart Windowing Controls | F10: Y-axis Range
A11: 18 | B11: Input Data Offset (Pan) | E11: Max High+ | F11: =CEILING(MAX(MAX(OFFSET($E$33,0,0,$A$12,1)))+2*F14,0.1) -> 212.9
A12: 297 | B12: Data Points to Plot (Zoom) | E12: Min Low- | F12: =FLOOR(MIN(MIN(OFFSET($F$33,0,0,$A$12,1)))-2*F14,0.1) -> 176.3
B13: First: | C13: =OFFSET(B32,A12,0,1,1) -> 2015-02-05 | E13: White space %: | F13: 0.05
B14: ="Last: " & OFFSET(InputPriceData!P15,1+A11,0,1,1) -> Last: | C14: =B33 -> 2016-04-11 | E14: Allowance: | F14: =FLOOR((CEILING(MAX(MAX(OFFSET($E$33,0,0,$A$12,1))),1)-FLOOR(MIN(MIN(OFFSET($F$33,0,0,$A$12,1))),1))*F13,0.01) -> 1.55
A15: User Controls | C15: Alpha | D15: 1-Alpha
A16: 40 | B16: EMA#1 Period | C16: =5/A16 -> 0.125 | D16: =1-C16 -> 0.875
A17: 60 | B17: EMA#2 Period | C17: =5/A17 -> 0.08333333333 | D17: =1-C17 -> 0.9166666667
A18: 50 | B18: RMS Period
A23: Help! I would like to plot data
A24: From | B24: 2015-02-05 | C24: =OFFSET(InputPriceData!$A$15,MATCH(B24,OFFSET(InputPriceData!B15,1,0,InputPriceData!$B$10,1),0),0,1,1)-C25 -> 297 | E24: 141
A25: To | B25: 2016-04-11 | C25: =OFFSET(InputPriceData!$A$15,MATCH(B25,OFFSET(InputPriceData!$B$15,1,0,InputPriceData!$B$10,1),0),0,1,1)-1 -> 18 | E25: =$A$12-$E$24+1 -> 157
H28: @ Cursor => | I28: =OFFSET(A32,$E$25,0,1,1)&"(RR)" -> 157(RR) | J28: =OFFSET($B$32,E25,0,1,1) -> 2015-08-26 | K28: =TEXT(OFFSET(D32,$E$25,0,1,1),"#,##0.00")&"(o)" -> 188.98(o) | L28: =TEXT(OFFSET(E32,$E$25,0,1,1),"#,##0.00")&"(h)" -> 191.65(h) | M28: =TEXT(OFFSET(F32,$E$25,0,1,1),"#,##0.00")&"(l)" -> 185.33(l) | N28: =TEXT(OFFSET(G32,$E$25,0,1,1),"#,##0.00")&"(c)" -> 191.32(c) | P28: =TEXT(OFFSET(J32,$E$25,0,1,1),"#,##0.00")&"(pbf)" -> -2.16(pbf)
E29: Cursor ==> | AT29: Chart cursors
AT30: Work area
A31: Rel Row | H31: ="EMA#1("&A16&")" -> EMA#1(40) | I31: ="EMA#2("&A17&")" -> EMA#2(60) | J31: ="Super Pass Band Filter("&A16&", "&A17&")" -> Super Pass Band Filter(40, 60) | K31: PB Squared | L31: ="RMS("&A18&")" -> RMS(50) | M31: ="-RMS("&A18&")" -> -RMS(50) | P31: Used To Color Vol Bars
B32: Date | C32: Volume | D32: Open | E32: High | F32: Low | G32: Close | P32: Up Vol | Q32: Dn Vol | AT32: Volume Cursor | AV32: =MAX(OFFSET(C33,0,0,A12,1)) -> 507244300 | AW32: PB Cursor | AX32: =MAX(OFFSET(J33,0,0,$A$12,1)) -> 1.870150352 | AY32: Price Chart Cursor
A33: 1 | B33: =OFFSET(InputPriceData!B$15,CalculationsAndCharts!$A33+$A$11,0,1,1) -> 2016-04-11 | C33: =OFFSET(InputPriceData!G$15,CalculationsAndCharts!$A33+$A$11,IF($C$7,8,0),1,1) -> 80719200 | D33: =OFFSET(InputPriceData!C$15,CalculationsAndCharts!$A33+$A$11,IF($C$7,8,0),1,1) -> 205.25 | E33: =OFFSET(InputPriceData!D$15,CalculationsAndCharts!$A33+$A$11,IF($C$7,8,0),1,1) -> 206.07 | F33: =OFFSET(InputPriceData!E$15,CalculationsAndCharts!$A33+$A$11,IF($C$7,8,0),1,1) -> 203.91 | G33: =OFFSET(InputPriceData!F$15,CalculationsAndCharts!$A33+$A$11,IF($C$7,8,0),1,1) -> 204.02 | H33: =IF($A33>$A$8,0,IF($A33=$A$8,$G33,$C$16*$G33+$D$16*H34)) -> 204.1473246 | I33: =IF($A33>$A$8,0,IF($A33=$A$8,$G33,$C$17*$G33+$D$17*I34)) -> 202.9620818 | J33: =($C$16 - $C$17)*$G33 + ($C$17*$D$16 - $C$16*$D$17)*$G34 + ($D$16 + $D$17)*J34 - $D$16*$D$17*J35 -> 1.185242732 | K33: =J33*J33 -> 1.404800334 | L33: =SQRT(SUM(OFFSET(K33,0,0,$A$18,1))/$A$18) -> 1.38056052 | M33: =-L33 -> -1.38056052 | P33: =IF(G33>=D33,C33,NA()) ->  | Q33: =IF(G33<D33,C33,NA()) -> 80719200 | AT33: =$E$25 -> 157 | AV33: 0 | AW33: =$E$25 -> 157 | AX33: =MIN(OFFSET(J33,0,0,$A$12,1),OFFSET(M33,0,0,$A$12,1))*1.2 -> -3.130476321 | AY33: =$E$25 -> 157 | AZ33: =$F$11 -> 212.9
A34: 2 | B34: =OFFSET(InputPriceData!B$15,CalculationsAndCharts!$A34+$A$11,0,1,1) -> 2016-04-08 | C34: =OFFSET(InputPriceData!G$15,CalculationsAndCharts!$A34+$A$11,IF($C$7,8,0),1,1) -> 92431200 | D34: =OFFSET(InputPriceData!C$15,CalculationsAndCharts!$A34+$A$11,IF($C$7,8,0),1,1) -> 205.34 | E34: =OFFSET(InputPriceData!D$15,CalculationsAndCharts!$A34+$A$11,IF($C$7,8,0),1,1) -> 205.85 | F34: =OFFSET(InputPriceData!E$15,CalculationsAndCharts!$A34+$A$11,IF($C$7,8,0),1,1) -> 203.87 | G34: =OFFSET(InputPriceData!F$15,CalculationsAndCharts!$A34+$A$11,IF($C$7,8,0),1,1) -> 204.5 | H34: =IF($A34>$A$8,0,IF($A34=$A$8,$G34,$C$16*$G34+$D$16*H35)) -> 204.1655138 | I34: =IF($A34>$A$8,0,IF($A34=$A$8,$G34,$C$17*$G34+$D$17*I35)) -> 202.8659075 | J34: =($C$16 - $C$17)*$G34 + ($C$17*$D$16 - $C$16*$D$17)*$G35 + ($D$16 + $D$17)*J35 - $D$16*$D$17*J36 -> 1.299606334 | K34: 1.688976625 | L34: 1.405326435 | M34: =-L34 -> -1.405326435 | P34: =IF(G34>=D34,C34,NA()) ->  | Q34: =IF(G34<D34,C34,NA()) -> 92431200 | AT34: =$E$25 -> 157 | AV34: =1.2*AV32 -> 608693160 | AW34: =$E$25 -> 157 | AX34: =MAX(OFFSET(J33,0,0,$A$12,1),OFFSET(L33,0,0,$A$12,1))*1.2 -> 2.244180422 | AY34: =$E$25 -> 157 | AZ34: =$F$12 -> 176.3
A35: 3 | B35: =OFFSET(InputPriceData!B$15,CalculationsAndCharts!$A35+$A$11,0,1,1) -> 2016-04-07 | C35: =OFFSET(InputPriceData!G$15,CalculationsAndCharts!$A35+$A$11,IF($C$7,8,0),1,1) -> 109295100 | D35: =OFFSET(InputPriceData!C$15,CalculationsAndCharts!$A35+$A$11,IF($C$7,8,0),1,1) -> 206.42 | E35: =OFFSET(InputPriceData!D$15,CalculationsAndCharts!$A35+$A$11,IF($C$7,8,0),1,1) -> 206.42 | F35: =OFFSET(InputPriceData!E$15,CalculationsAndCharts!$A35+$A$11,IF($C$7,8,0),1,1) -> 203.09 | G35: =OFFSET(InputPriceData!F$15,CalculationsAndCharts!$A35+$A$11,IF($C$7,8,0),1,1) -> 203.95 | H35: 204.11773 | I35: 202.7173536 | J35: 1.400376458 | K35: 1.961054224 | L35: 1.430890373 | M35: -1.430890373 | Q35: 109295100
A36: 4 | B36: =OFFSET(InputPriceData!B$15,CalculationsAndCharts!$A36+$A$11,0,1,1) -> 2016-04-06 | C36: =OFFSET(InputPriceData!G$15,CalculationsAndCharts!$A36+$A$11,IF($C$7,8,0),1,1) -> 89889800 | D36: =OFFSET(InputPriceData!C$15,CalculationsAndCharts!$A36+$A$11,IF($C$7,8,0),1,1) -> 204.19 | E36: =OFFSET(InputPriceData!D$15,CalculationsAndCharts!$A36+$A$11,IF($C$7,8,0),1,1) -> 206.49 | F36: =OFFSET(InputPriceData!E$15,CalculationsAndCharts!$A36+$A$11,IF($C$7,8,0),1,1) -> 203.98 | G36: =OFFSET(InputPriceData!F$15,CalculationsAndCharts!$A36+$A$11,IF($C$7,8,0),1,1) -> 206.42 | H36: 204.1416915 | I36: 202.6052948 | J36: 1.536396658 | K36: 2.360514689 | L36: 1.455616518 | M36: -1.455616518 | P36: 89889800
A37: 5 | B37: =OFFSET(InputPriceData!B$15,CalculationsAndCharts!$A37+$A$11,0,1,1) -> 2016-04-05 | C37: =OFFSET(InputPriceData!G$15,CalculationsAndCharts!$A37+$A$11,IF($C$7,8,0),1,1) -> 89387200 | D37: =OFFSET(InputPriceData!C$15,CalculationsAndCharts!$A37+$A$11,IF($C$7,8,0),1,1) -> 204.67 | E37: =OFFSET(InputPriceData!D$15,CalculationsAndCharts!$A37+$A$11,IF($C$7,8,0),1,1) -> 206.26 | F37: =OFFSET(InputPriceData!E$15,CalculationsAndCharts!$A37+$A$11,IF($C$7,8,0),1,1) -> 203.89 | G37: =OFFSET(InputPriceData!F$15,CalculationsAndCharts!$A37+$A$11,IF($C$7,8,0),1,1) -> 204.19 | H37: 203.8162188 | I37: 202.2585034 | J37: 1.557715392 | K37: 2.426477241 | L37: 1.481614334 | M37: -1.481614334 | Q37: 89387200
A38: 6 | B38: =OFFSET(InputPriceData!B$15,CalculationsAndCharts!$A38+$A$11,0,1,1) -> 2016-04-04 | C38: =OFFSET(InputPriceData!G$15,CalculationsAndCharts!$A38+$A$11,IF($C$7,8,0),1,1) -> 62658900 | D38: =OFFSET(InputPriceData!C$15,CalculationsAndCharts!$A38+$A$11,IF($C$7,8,0),1,1) -> 206.83 | E38: =OFFSET(InputPriceData!D$15,CalculationsAndCharts!$A38+$A$11,IF($C$7,8,0),1,1) -> 207.07 | F38: =OFFSET(InputPriceData!E$15,CalculationsAndCharts!$A38+$A$11,IF($C$7,8,0),1,1) -> 205.89 | G38: =OFFSET(InputPriceData!F$15,CalculationsAndCharts!$A38+$A$11,IF($C$7,8,0),1,1) -> 206.25 | H38: 203.7628215 | I38: 202.0829128 | J38: 1.679908678 | K38: 2.822093167 | L38: 1.506825989 | M38: -1.506825989 | Q38: 62658900
A39: 7 | B39: =OFFSET(InputPriceData!B$15,CalculationsAndCharts!$A39+$A$11,0,1,1) -> 2016-04-01 | C39: =OFFSET(InputPriceData!G$15,CalculationsAndCharts!$A39+$A$11,IF($C$7,8,0),1,1) -> 110080400 | D39: =OFFSET(InputPriceData!C$15,CalculationsAndCharts!$A39+$A$11,IF($C$7,8,0),1,1) -> 204.35 | E39: =OFFSET(InputPriceData!D$15,CalculationsAndCharts!$A39+$A$11,IF($C$7,8,0),1,1) -> 207.14 | F39: =OFFSET(InputPriceData!E$15,CalculationsAndCharts!$A39+$A$11,IF($C$7,8,0),1,1) -> 203.98 | G39: =OFFSET(InputPriceData!F$15,CalculationsAndCharts!$A39+$A$11,IF($C$7,8,0),1,1) -> 206.92 | H39: 203.4075103 | I39: 201.7040867 | J39: 1.703423572 | K39: 2.901651866 | L39: 1.533033649 | M39: -1.533033649 | P39: 110080400
A40: 8 | B40: =OFFSET(InputPriceData!B$15,CalculationsAndCharts!$A40+$A$11,0,1,1) -> 2016-03-31 | C40: =OFFSET(InputPriceData!G$15,CalculationsAndCharts!$A40+$A$11,IF($C$7,8,0),1,1) -> 87315600 | D40: =OFFSET(InputPriceData!C$15,CalculationsAndCharts!$A40+$A$11,IF($C$7,8,0),1,1) -> 205.91 | E40: =OFFSET(InputPriceData!D$15,CalculationsAndCharts!$A40+$A$11,IF($C$7,8,0),1,1) -> 206.41 | F40: =OFFSET(InputPriceData!E$15,CalculationsAndCharts!$A40+$A$11,IF($C$7,8,0),1,1) -> 205.33 | G40: =OFFSET(InputPriceData!F$15,CalculationsAndCharts!$A40+$A$11,IF($C$7,8,0),1,1) -> 205.52 | H40: 202.9057261 | I40: 201.2299128 | J40: 1.675813264 | K40: 2.808350095 | L40: 1.555580365 | M40: -1.555580365 | Q40: 87315600
A41: 9 | B41: =OFFSET(InputPriceData!B$15,CalculationsAndCharts!$A41+$A$11,0,1,1) -> 2016-03-30 | C41: =OFFSET(InputPriceData!G$15,CalculationsAndCharts!$A41+$A$11,IF($C$7,8,0),1,1) -> 82354400 | D41: =OFFSET(InputPriceData!C$15,CalculationsAndCharts!$A41+$A$11,IF($C$7,8,0),1,1) -> 206.3 | E41: =OFFSET(InputPriceData!D$15,CalculationsAndCharts!$A41+$A$11,IF($C$7,8,0),1,1) -> 206.87 | F41: =OFFSET(InputPriceData!E$15,CalculationsAndCharts!$A41+$A$11,IF($C$7,8,0),1,1) -> 205.59 | G41: =OFFSET(InputPriceData!F$15,CalculationsAndCharts!$A41+$A$11,IF($C$7,8,0),1,1) -> 206.02 | H41: 202.5322584 | I41: 200.8399049 | J41: 1.692353486 | K41: 2.864060322 | L41: 1.572568317 | M41: -1.572568317 | Q41: 82354400
A42: 10 | B42: =OFFSET(InputPriceData!B$15,CalculationsAndCharts!$A42+$A$11,0,1,1) -> 2016-03-29 | C42: =OFFSET(InputPriceData!G$15,CalculationsAndCharts!$A42+$A$11,IF($C$7,8,0),1,1) -> 90418600 | D42: =OFFSET(InputPriceData!C$15,CalculationsAndCharts!$A42+$A$11,IF($C$7,8,0),1,1) -> 202.76 | E42: =OFFSET(InputPriceData!D$15,CalculationsAndCharts!$A42+$A$11,IF($C$7,8,0),1,1) -> 205.25 | F42: =OFFSET(InputPriceData!E$15,CalculationsAndCharts!$A42+$A$11,IF($C$7,8,0),1,1) -> 202.4 | G42: =OFFSET(InputPriceData!F$15,CalculationsAndCharts!$A42+$A$11,IF($C$7,8,0),1,1) -> 205.12 | H42: 202.0340096 | I42: 200.3689871 | J42: 1.66502242 | K42: 2.772299658 | L42: 1.584994913 | M42: -1.584994913 | P42: 90418600
A43: 11 | B43: =OFFSET(InputPriceData!B$15,CalculationsAndCharts!$A43+$A$11,0,1,1) -> 2016-03-28 | C43: =OFFSET(InputPriceData!G$15,CalculationsAndCharts!$A43+$A$11,IF($C$7,8,0),1,1) -> 62408200 | D43: =OFFSET(InputPriceData!C$15,CalculationsAndCharts!$A43+$A$11,IF($C$7,8,0),1,1) -> 203.61 | E43: =OFFSET(InputPriceData!D$15,CalculationsAndCharts!$A43+$A$11,IF($C$7,8,0),1,1) -> 203.86 | F43: =OFFSET(InputPriceData!E$15,CalculationsAndCharts!$A43+$A$11,IF($C$7,8,0),1,1) -> 202.71 | G43: =OFFSET(InputPriceData!F$15,CalculationsAndCharts!$A43+$A$11,IF($C$7,8,0),1,1) -> 203.24 | H43: 201.5931538 | I43: 199.9370769 | J43: 1.656076903 | K43: 2.742590707 | L43: 1.592209015 | M43: -1.592209015 | Q43: 62408200
A44: 12 | B44: =OFFSET(InputPriceData!B$15,CalculationsAndCharts!$A44+$A$11,0,1,1) -> 2016-03-24 | C44: =OFFSET(InputPriceData!G$15,CalculationsAndCharts!$A44+$A$11,IF($C$7,8,0),1,1) -> 84360900 | D44: =OFFSET(InputPriceData!C$15,CalculationsAndCharts!$A44+$A$11,IF($C$7,8,0),1,1) -> 202 | E44: =OFFSET(InputPriceData!D$15,CalculationsAndCharts!$A44+$A$11,IF($C$7,8,0),1,1) -> 203.16 | F44: =OFFSET(InputPriceData!E$15,CalculationsAndCharts!$A44+$A$11,IF($C$7,8,0),1,1) -> 201.74 | G44: =OFFSET(InputPriceData!F$15,CalculationsAndCharts!$A44+$A$11,IF($C$7,8,0),1,1) -> 203.12 | H44: 201.35789 | I44: 199.6368111 | J44: 1.721078896 | K44: 2.962112565 | L44: 1.597547902 | M44: -1.597547902 | P44: 84360900
A45: 13 | B45: =OFFSET(InputPriceData!B$15,CalculationsAndCharts!$A45+$A$11,0,1,1) -> 2016-03-23 | C45: =OFFSET(InputPriceData!G$15,CalculationsAndCharts!$A45+$A$11,IF($C$7,8,0),1,1) -> 81052500 | D45: =OFFSET(InputPriceData!C$15,CalculationsAndCharts!$A45+$A$11,IF($C$7,8,0),1,1) -> 204.11 | E45: =OFFSET(InputPriceData!D$15,CalculationsAndCharts!$A45+$A$11,IF($C$7,8,0),1,1) -> 204.33 | F45: =OFFSET(InputPriceData!E$15,CalculationsAndCharts!$A45+$A$11,IF($C$7,8,0),1,1) -> 203.01 | G45: =OFFSET(InputPriceData!F$15,CalculationsAndCharts!$A45+$A$11,IF($C$7,8,0),1,1) -> 203.21 | H45: 201.10616 | I45: 199.3201576 | J45: 1.786002434 | K45: 3.189804693 | L45: 1.595156419 | M45: -1.595156419 | Q45: 81052500
A46: 14 | B46: =OFFSET(InputPriceData!B$15,CalculationsAndCharts!$A46+$A$11,0,1,1) -> 2016-03-22 | C46: =OFFSET(InputPriceData!G$15,CalculationsAndCharts!$A46+$A$11,IF($C$7,8,0),1,1) -> 97471900 | D46: =OFFSET(InputPriceData!C$15,CalculationsAndCharts!$A46+$A$11,IF($C$7,8,0),1,1) -> 203.76 | E46: =OFFSET(InputPriceData!D$15,CalculationsAndCharts!$A46+$A$11,IF($C$7,8,0),1,1) -> 205.23 | F46: =OFFSET(InputPriceData!E$15,CalculationsAndCharts!$A46+$A$11,IF($C$7,8,0),1,1) -> 203.57 | G46: =OFFSET(InputPriceData!F$15,CalculationsAndCharts!$A46+$A$11,IF($C$7,8,0),1,1) -> 204.56 | H46: 200.8056115 | I46: 198.9665356 | J46: 1.839075904 | K46: 3.382200181 | L46: 1.588775992 | M46: -1.588775992 | P46: 97471900
A47: 15 | B47: =OFFSET(InputPriceData!B$15,CalculationsAndCharts!$A47+$A$11,0,1,1) -> 2016-03-21 | C47: =OFFSET(InputPriceData!G$15,CalculationsAndCharts!$A47+$A$11,IF($C$7,8,0),1,1) -> 72926700 | D47: =OFFSET(InputPriceData!C$15,CalculationsAndCharts!$A47+$A$11,IF($C$7,8,0),1,1) -> 204.07 | E47: =OFFSET(InputPriceData!D$15,CalculationsAndCharts!$A47+$A$11,IF($C$7,8,0),1,1) -> 204.94 | F47: =OFFSET(InputPriceData!E$15,CalculationsAndCharts!$A47+$A$11,IF($C$7,8,0),1,1) -> 203.8 | G47: =OFFSET(InputPriceData!F$15,CalculationsAndCharts!$A47+$A$11,IF($C$7,8,0),1,1) -> 204.67 | H47: 200.2692703 | I47: 198.4580388 | J47: 1.811231453 | K47: 3.280559375 | L47: 1.576662863 | M47: -1.576662863 | P47: 72926700
A48: 16 | B48: =OFFSET(InputPriceData!B$15,CalculationsAndCharts!$A48+$A$11,0,1,1) -> 2016-03-18 | C48: =OFFSET(InputPriceData!G$15,CalculationsAndCharts!$A48+$A$11,IF($C$7,8,0),1,1) -> 138372400 | D48: =OFFSET(InputPriceData!C$15,CalculationsAndCharts!$A48+$A$11,IF($C$7,8,0),1,1) -> 204.17 | E48: =OFFSET(InputPriceData!D$15,CalculationsAndCharts!$A48+$A$11,IF($C$7,8,0),1,1) -> 204.78 | F48: =OFFSET(InputPriceData!E$15,CalculationsAndCharts!$A48+$A$11,IF($C$7,8,0),1,1) -> 203.8 | G48: =OFFSET(InputPriceData!F$15,CalculationsAndCharts!$A48+$A$11,IF($C$7,8,0),1,1) -> 204.38 | H48: 199.6405946 | I48: 197.8933151 | J48: 1.747279521 | K48: 3.052985723 | L48: 1.560420321 | M48: -1.560420321 | P48: 138372400
A49: 17 | B49: =OFFSET(InputPriceData!B$15,CalculationsAndCharts!$A49+$A$11,0,1,1) -> 2016-03-17 | C49: =OFFSET(InputPriceData!G$15,CalculationsAndCharts!$A49+$A$11,IF($C$7,8,0),1,1) -> 134278500 | D49: =OFFSET(InputPriceData!C$15,CalculationsAndCharts!$A49+$A$11,IF($C$7,8,0),1,1) -> 202.2 | E49: =OFFSET(InputPriceData!D$15,CalculationsAndCharts!$A49+$A$11,IF($C$7,8,0),1,1) -> 204.18 | F49: =OFFSET(InputPriceData!E$15,CalculationsAndCharts!$A49+$A$11,IF($C$7,8,0),1,1) -> 201.73 | G49: =OFFSET(InputPriceData!F$15,CalculationsAndCharts!$A49+$A$11,IF($C$7,8,0),1,1) -> 203.58 | H49: 198.9635367 | I49: 197.3036164 | J49: 1.659920235 | K49: 2.755335186 | L49: 1.542436822 | M49: -1.542436822 | P49: 134278500
A50: 18 | B50: =OFFSET(InputPriceData!B$15,CalculationsAndCharts!$A50+$A$11,0,1,1) -> 2016-03-16 | C50: =OFFSET(InputPriceData!G$15,CalculationsAndCharts!$A50+$A$11,IF($C$7,8,0),1,1) -> 129303200 | D50: =OFFSET(InputPriceData!C$15,CalculationsAndCharts!$A50+$A$11,IF($C$7,8,0),1,1) -> 200.57 | E50: =OFFSET(InputPriceData!D$15,CalculationsAndCharts!$A50+$A$11,IF($C$7,8,0),1,1) -> 202.77 | F50: =OFFSET(InputPriceData!E$15,CalculationsAndCharts!$A50+$A$11,IF($C$7,8,0),1,1) -> 200.52 | G50: =OFFSET(InputPriceData!F$15,CalculationsAndCharts!$A50+$A$11,IF($C$7,8,0),1,1) -> 202.3 | H50: 198.3040419 | I50: 196.7330361 | J50: 1.571005797 | K50: 2.468059216 | L50: 1.525161132 | M50: -1.525161132 | P50: 129303200
A51: 19 | B51: =OFFSET(InputPriceData!B$15,CalculationsAndCharts!$A51+$A$11,0,1,1) -> 2016-03-15 | C51: =OFFSET(InputPriceData!G$15,CalculationsAndCharts!$A51+$A$11,IF($C$7,8,0),1,1) -> 93169100 | D51: =OFFSET(InputPriceData!C$15,CalculationsAndCharts!$A51+$A$11,IF($C$7,8,0),1,1) -> 200.33 | E51: =OFFSET(InputPriceData!D$15,CalculationsAndCharts!$A51+$A$11,IF($C$7,8,0),1,1) -> 201.49 | F51: =OFFSET(InputPriceData!E$15,CalculationsAndCharts!$A51+$A$11,IF($C$7,8,0),1,1) -> 200.02 | G51: =OFFSET(InputPriceData!F$15,CalculationsAndCharts!$A51+$A$11,IF($C$7,8,0),1,1) -> 201.13 | H51: 197.7331908 | I51: 196.2269485 | J51: 1.506242268 | K51: 2.26876577 | L51: 1.509206827 | M51: -1.509206827 | P51: 93169100
A52: 20 | B52: =OFFSET(InputPriceData!B$15,CalculationsAndCharts!$A52+$A$11,0,1,1) -> 2016-03-14 | C52: =OFFSET(InputPriceData!G$15,CalculationsAndCharts!$A52+$A$11,IF($C$7,8,0),1,1) -> 73612000 | D52: =OFFSET(InputPriceData!C$15,CalculationsAndCharts!$A52+$A$11,IF($C$7,8,0),1,1) -> 201.12 | E52: =OFFSET(InputPriceData!D$15,CalculationsAndCharts!$A52+$A$11,IF($C$7,8,0),1,1) -> 202 | F52: =OFFSET(InputPriceData!E$15,CalculationsAndCharts!$A52+$A$11,IF($C$7,8,0),1,1) -> 200.73 | G52: =OFFSET(InputPriceData!F$15,CalculationsAndCharts!$A52+$A$11,IF($C$7,8,0),1,1) -> 201.46 | H52: 197.2479323 | I52: 195.7812165 | J52: 1.46671576 | K52: 2.151255121 | L52: 1.49412581 | M52: -1.49412581 | P52: 73612000
A53: 21 | B53: =OFFSET(InputPriceData!B$15,CalculationsAndCharts!$A53+$A$11,0,1,1) -> 2016-03-11 | C53: =OFFSET(InputPriceData!G$15,CalculationsAndCharts!$A53+$A$11,IF($C$7,8,0),1,1) -> 137964500 | D53: =OFFSET(InputPriceData!C$15,CalculationsAndCharts!$A53+$A$11,IF($C$7,8,0),1,1) -> 200.23 | E53: =OFFSET(InputPriceData!D$15,CalculationsAndCharts!$A53+$A$11,IF($C$7,8,0),1,1) -> 201.77 | F53: =OFFSET(InputPriceData!E$15,CalculationsAndCharts!$A53+$A$11,IF($C$7,8,0),1,1) -> 198.5 | G53: =OFFSET(InputPriceData!F$15,CalculationsAndCharts!$A53+$A$11,IF($C$7,8,0),1,1) -> 201.72 | H53: 196.6462083 | I53: 195.2649635 | J53: 1.381244844 | K53: 1.90783732 | L53: 1.479659946 | M53: -1.479659946 | P53: 137964500
A54: 22 | B54: =OFFSET(InputPriceData!B$15,CalculationsAndCharts!$A54+$A$11,0,1,1) -> 2016-03-10 | C54: =OFFSET(InputPriceData!G$15,CalculationsAndCharts!$A54+$A$11,IF($C$7,8,0),1,1) -> 156838700 | D54: =OFFSET(InputPriceData!C$15,CalculationsAndCharts!$A54+$A$11,IF($C$7,8,0),1,1) -> 198.93 | E54: =OFFSET(InputPriceData!D$15,CalculationsAndCharts!$A54+$A$11,IF($C$7,8,0),1,1) -> 200.04 | F54: =OFFSET(InputPriceData!E$15,CalculationsAndCharts!$A54+$A$11,IF($C$7,8,0),1,1) -> 196.37 | G54: =OFFSET(InputPriceData!F$15,CalculationsAndCharts!$A54+$A$11,IF($C$7,8,0),1,1) -> 198.52 | H54: 195.921381 | I54: 194.678142 | J54: 1.243238964 | K54: 1.545643122 | L54: 1.466740681 | M54: -1.466740681 | Q54: 156838700
A55: 23 | B55: =OFFSET(InputPriceData!B$15,CalculationsAndCharts!$A55+$A$11,0,1,1) -> 2016-03-09 | C55: =OFFSET(InputPriceData!G$15,CalculationsAndCharts!$A55+$A$11,IF($C$7,8,0),1,1) -> 94801200 | D55: =OFFSET(InputPriceData!C$15,CalculationsAndCharts!$A55+$A$11,IF($C$7,8,0),1,1) -> 198.34 | E55: =OFFSET(InputPriceData!D$15,CalculationsAndCharts!$A55+$A$11,IF($C$7,8,0),1,1) -> 198.76 | F55: =OFFSET(InputPriceData!E$15,CalculationsAndCharts!$A55+$A$11,IF($C$7,8,0),1,1) -> 197.41 | G55: =OFFSET(InputPriceData!F$15,CalculationsAndCharts!$A55+$A$11,IF($C$7,8,0),1,1) -> 198.36 | H55: 195.5501497 | I55: 194.3288822 | J55: 1.221267491 | K55: 1.491494284 | L55: 1.456451856 | M55: -1.456451856 | P55: 94801200
A56: 24 | B56: =OFFSET(InputPriceData!B$15,CalculationsAndCharts!$A56+$A$11,0,1,1) -> 2016-03-08 | C56: =OFFSET(InputPriceData!G$15,CalculationsAndCharts!$A56+$A$11,IF($C$7,8,0),1,1) -> 123974900 | D56: =OFFSET(InputPriceData!C$15,CalculationsAndCharts!$A56+$A$11,IF($C$7,8,0),1,1) -> 198.3 | E56: =OFFSET(InputPriceData!D$15,CalculationsAndCharts!$A56+$A$11,IF($C$7,8,0),1,1) -> 198.89 | F56: =OFFSET(InputPriceData!E$15,CalculationsAndCharts!$A56+$A$11,IF($C$7,8,0),1,1) -> 197.19 | G56: =OFFSET(InputPriceData!F$15,CalculationsAndCharts!$A56+$A$11,IF($C$7,8,0),1,1) -> 197.38 | H56: 195.1487425 | I56: 193.9624169 | J56: 1.186325557 | K56: 1.407368327 | L56: 1.446639969 | M56: -1.446639969 | Q56: 123974900
A57: 25 | B57: =OFFSET(InputPriceData!B$15,CalculationsAndCharts!$A57+$A$11,0,1,1) -> 2016-03-07 | C57: =OFFSET(InputPriceData!G$15,CalculationsAndCharts!$A57+$A$11,IF($C$7,8,0),1,1) -> 100219000 | D57: =OFFSET(InputPriceData!C$15,CalculationsAndCharts!$A57+$A$11,IF($C$7,8,0),1,1) -> 198.32 | E57: =OFFSET(InputPriceData!D$15,CalculationsAndCharts!$A57+$A$11,IF($C$7,8,0),1,1) -> 200.04 | F57: =OFFSET(InputPriceData!E$15,CalculationsAndCharts!$A57+$A$11,IF($C$7,8,0),1,1) -> 198.23 | G57: =OFFSET(InputPriceData!F$15,CalculationsAndCharts!$A57+$A$11,IF($C$7,8,0),1,1) -> 199.56 | H57: 194.8299914 | I57: 193.6517275 | J57: 1.178263852 | K57: 1.388305706 | L57: 1.437721997 | M57: -1.437721997 | P57: 100219000
A58: 26 | B58: =OFFSET(InputPriceData!B$15,CalculationsAndCharts!$A58+$A$11,0,1,1) -> 2016-03-04 | C58: =OFFSET(InputPriceData!G$15,CalculationsAndCharts!$A58+$A$11,IF($C$7,8,0),1,1) -> 129293600 | D58: =OFFSET(InputPriceData!C$15,CalculationsAndCharts!$A58+$A$11,IF($C$7,8,0),1,1) -> 198.98 | E58: =OFFSET(InputPriceData!D$15,CalculationsAndCharts!$A58+$A$11,IF($C$7,8,0),1,1) -> 200.32 | F58: =OFFSET(InputPriceData!E$15,CalculationsAndCharts!$A58+$A$11,IF($C$7,8,0),1,1) -> 198.01 | G58: =OFFSET(InputPriceData!F$15,CalculationsAndCharts!$A58+$A$11,IF($C$7,8,0),1,1) -> 199.4 | H58: 194.1542759 | I58: 193.1146119 | J58: 1.039664015 | K58: 1.080901264 | L58: 1.429593012 | M58: -1.429593012 | P58: 129293600
A59: 27 | B59: =OFFSET(InputPriceData!B$15,CalculationsAndCharts!$A59+$A$11,0,1,1) -> 2016-03-03 | C59: =OFFSET(InputPriceData!G$15,CalculationsAndCharts!$A59+$A$11,IF($C$7,8,0),1,1) -> 95172200 | D59: =OFFSET(InputPriceData!C$15,CalculationsAndCharts!$A59+$A$11,IF($C$7,8,0),1,1) -> 197.77 | E59: =OFFSET(InputPriceData!D$15,CalculationsAndCharts!$A59+$A$11,IF($C$7,8,0),1,1) -> 198.77 | F59: =OFFSET(InputPriceData!E$15,CalculationsAndCharts!$A59+$A$11,IF($C$7,8,0),1,1) -> 197.09 | G59: =OFFSET(InputPriceData!F$15,CalculationsAndCharts!$A59+$A$11,IF($C$7,8,0),1,1) -> 198.75 | H59: 193.4048867 | I59: 192.5432129 | J59: 0.8616737763 | K59: 0.7424816968 | L59: 1.423703644 | M59: -1.423703644 | P59: 95172200
A60: 28 | B60: =OFFSET(InputPriceData!B$15,CalculationsAndCharts!$A60+$A$11,0,1,1) -> 2016-03-02 | C60: =OFFSET(InputPriceData!G$15,CalculationsAndCharts!$A60+$A$11,IF($C$7,8,0),1,1) -> 102415000 | D60: =OFFSET(InputPriceData!C$15,CalculationsAndCharts!$A60+$A$11,IF($C$7,8,0),1,1) -> 196.73 | E60: =OFFSET(InputPriceData!D$15,CalculationsAndCharts!$A60+$A$11,IF($C$7,8,0),1,1) -> 198.04 | F60: =OFFSET(InputPriceData!E$15,CalculationsAndCharts!$A60+$A$11,IF($C$7,8,0),1,1) -> 196.24 | G60: =OFFSET(InputPriceData!F$15,CalculationsAndCharts!$A60+$A$11,IF($C$7,8,0),1,1) -> 197.98 | H60: 192.6412991 | I60: 191.9789596 | J60: 0.6623395334 | K60: 0.4386936575 | L60: 1.419679442 | M60: -1.419679442 | P60: 102415000
A61: 29 | B61: =OFFSET(InputPriceData!B$15,CalculationsAndCharts!$A61+$A$11,0,1,1) -> 2016-03-01 | C61: =OFFSET(InputPriceData!G$15,CalculationsAndCharts!$A61+$A$11,IF($C$7,8,0),1,1) -> 141799700 | D61: =OFFSET(InputPriceData!C$15,CalculationsAndCharts!$A61+$A$11,IF($C$7,8,0),1,1) -> 194.01 | E61: =OFFSET(InputPriceData!D$15,CalculationsAndCharts!$A61+$A$11,IF($C$7,8,0),1,1) -> 197.19 | F61: =OFFSET(InputPriceData!E$15,CalculationsAndCharts!$A61+$A$11,IF($C$7,8,0),1,1) -> 193.45 | G61: =OFFSET(InputPriceData!F$15,CalculationsAndCharts!$A61+$A$11,IF($C$7,8,0),1,1) -> 197.09 | H61: 191.8786275 | I61: 191.4334104 | J61: 0.4452171067 | K61: 0.1982182721 | L61: 1.416942078 | M61: -1.416942078 | P61: 141799700
A62: 30 | B62: =OFFSET(InputPriceData!B$15,CalculationsAndCharts!$A62+$A$11,0,1,1) -> 2016-02-29 | C62: =OFFSET(InputPriceData!G$15,CalculationsAndCharts!$A62+$A$11,IF($C$7,8,0),1,1) -> 125918100 | D62: =OFFSET(InputPriceData!C$15,CalculationsAndCharts!$A62+$A$11,IF($C$7,8,0),1,1) -> 194.11 | E62: =OFFSET(InputPriceData!D$15,CalculationsAndCharts!$A62+$A$11,IF($C$7,8,0),1,1) -> 195.22 | F62: =OFFSET(InputPriceData!E$15,CalculationsAndCharts!$A62+$A$11,IF($C$7,8,0),1,1) -> 192.34 | G62: =OFFSET(InputPriceData!F$15,CalculationsAndCharts!$A62+$A$11,IF($C$7,8,0),1,1) -> 192.57 | H62: 191.1341458 | I62: 190.919175 | J62: 0.2149707421 | K62: 0.04621241996 | L62: 1.415757967 | M62: -1.415757967 | Q62: 125918100
A63: 31 | B63: =OFFSET(InputPriceData!B$15,CalculationsAndCharts!$A63+$A$11,0,1,1) -> 2016-02-26 | C63: =OFFSET(InputPriceData!G$15,CalculationsAndCharts!$A63+$A$11,IF($C$7,8,0),1,1) -> 129833700 | D63: =OFFSET(InputPriceData!C$15,CalculationsAndCharts!$A63+$A$11,IF($C$7,8,0),1,1) -> 195.56 | E63: =OFFSET(InputPriceData!D$15,CalculationsAndCharts!$A63+$A$11,IF($C$7,8,0),1,1) -> 195.67 | F63: =OFFSET(InputPriceData!E$15,CalculationsAndCharts!$A63+$A$11,IF($C$7,8,0),1,1) -> 193.9 | G63: =OFFSET(InputPriceData!F$15,CalculationsAndCharts!$A63+$A$11,IF($C$7,8,0),1,1) -> 194.09 | H63: 190.9290237 | I63: 190.7691 | J63: 0.1599237065 | K63: 0.02557559192 | L63: 1.41595887 | M63: -1.41595887 | Q63: 129833700
A64: 32 | B64: =OFFSET(InputPriceData!B$15,CalculationsAndCharts!$A64+$A$11,0,1,1) -> 2016-02-25 | C64: =OFFSET(InputPriceData!G$15,CalculationsAndCharts!$A64+$A$11,IF($C$7,8,0),1,1) -> 110728300 | D64: =OFFSET(InputPriceData!C$15,CalculationsAndCharts!$A64+$A$11,IF($C$7,8,0),1,1) -> 192.74 | E64: =OFFSET(InputPriceData!D$15,CalculationsAndCharts!$A64+$A$11,IF($C$7,8,0),1,1) -> 194.55 | F64: =OFFSET(InputPriceData!E$15,CalculationsAndCharts!$A64+$A$11,IF($C$7,8,0),1,1) -> 191.84 | G64: =OFFSET(InputPriceData!F$15,CalculationsAndCharts!$A64+$A$11,IF($C$7,8,0),1,1) -> 194.54 | H64: 190.4774557 | I64: 190.4672 | J64: 0.01025566601 | K64: 0.0001051786854 | L64: 1.416179271 | M64: -1.416179271 | P64: 110728300
A65: 33 | B65: =OFFSET(InputPriceData!B$15,CalculationsAndCharts!$A65+$A$11,0,1,1) -> 2016-02-24 | C65: =OFFSET(InputPriceData!G$15,CalculationsAndCharts!$A65+$A$11,IF($C$7,8,0),1,1) -> 150812200 | D65: =OFFSET(InputPriceData!C$15,CalculationsAndCharts!$A65+$A$11,IF($C$7,8,0),1,1) -> 189.65 | E65: =OFFSET(InputPriceData!D$15,CalculationsAndCharts!$A65+$A$11,IF($C$7,8,0),1,1) -> 192.54 | F65: =OFFSET(InputPriceData!E$15,CalculationsAndCharts!$A65+$A$11,IF($C$7,8,0),1,1) -> 188.35 | G65: =OFFSET(InputPriceData!F$15,CalculationsAndCharts!$A65+$A$11,IF($C$7,8,0),1,1) -> 192.21 | H65: 189.8970922 | I65: 190.0969455 | J65: -0.1998532633 | K65: 0.03994132685 | L65: 1.416226047 | M65: -1.416226047 | P65: 150812200
A66: 34 | B66: =OFFSET(InputPriceData!B$15,CalculationsAndCharts!$A66+$A$11,0,1,1) -> 2016-02-23 | C66: =OFFSET(InputPriceData!G$15,CalculationsAndCharts!$A66+$A$11,IF($C$7,8,0),1,1) -> 111455300 | D66: =OFFSET(InputPriceData!C$15,CalculationsAndCharts!$A66+$A$11,IF($C$7,8,0),1,1) -> 193 | E66: =OFFSET(InputPriceData!D$15,CalculationsAndCharts!$A66+$A$11,IF($C$7,8,0),1,1) -> 193.32 | F66: =OFFSET(InputPriceData!E$15,CalculationsAndCharts!$A66+$A$11,IF($C$7,8,0),1,1) -> 191.19 | G66: =OFFSET(InputPriceData!F$15,CalculationsAndCharts!$A66+$A$11,IF($C$7,8,0),1,1) -> 191.33 | H66: 189.5666768 | I66: 189.9048496 | J66: -0.3381727951 | K66: 0.1143608394 | L66: 1.416138125 | M66: -1.416138125 | Q66: 111455300
A67: 35 | B67: =OFFSET(InputPriceData!B$15,CalculationsAndCharts!$A67+$A$11,0,1,1) -> 2016-02-22 | C67: =OFFSET(InputPriceData!G$15,CalculationsAndCharts!$A67+$A$11,IF($C$7,8,0),1,1) -> 103640300 | D67: =OFFSET(InputPriceData!C$15,CalculationsAndCharts!$A67+$A$11,IF($C$7,8,0),1,1) -> 192.88 | E67: =OFFSET(InputPriceData!D$15,CalculationsAndCharts!$A67+$A$11,IF($C$7,8,0),1,1) -> 193.95 | F67: =OFFSET(InputPriceData!E$15,CalculationsAndCharts!$A67+$A$11,IF($C$7,8,0),1,1) -> 192.8 | G67: =OFFSET(InputPriceData!F$15,CalculationsAndCharts!$A67+$A$11,IF($C$7,8,0),1,1) -> 193.78 | H67: 189.3147735 | I67: 189.7752905 | J67: -0.4605169803 | K67: 0.2120758892 | L67: 1.415837576 | M67: -1.415837576 | P67: 103640300
A68: 36 | B68: =OFFSET(InputPriceData!B$15,CalculationsAndCharts!$A68+$A$11,0,1,1) -> 2016-02-19 | C68: =OFFSET(InputPriceData!G$15,CalculationsAndCharts!$A68+$A$11,IF($C$7,8,0),1,1) -> 114793000 | D68: =OFFSET(InputPriceData!C$15,CalculationsAndCharts!$A68+$A$11,IF($C$7,8,0),1,1) -> 190.19 | E68: =OFFSET(InputPriceData!D$15,CalculationsAndCharts!$A68+$A$11,IF($C$7,8,0),1,1) -> 191.19 | F68: =OFFSET(InputPriceData!E$15,CalculationsAndCharts!$A68+$A$11,IF($C$7,8,0),1,1) -> 189.47 | G68: =OFFSET(InputPriceData!F$15,CalculationsAndCharts!$A68+$A$11,IF($C$7,8,0),1,1) -> 191.01 | H68: 188.676884 | I68: 189.411226 | J68: -0.7343419777 | K68: 0.5392581402 | L68: 1.415578845 | M68: -1.415578845 | P68: 114793000
A69: 37 | B69: =OFFSET(InputPriceData!B$15,CalculationsAndCharts!$A69+$A$11,0,1,1) -> 2016-02-18 | C69: =OFFSET(InputPriceData!G$15,CalculationsAndCharts!$A69+$A$11,IF($C$7,8,0),1,1) -> 102343000 | D69: =OFFSET(InputPriceData!C$15,CalculationsAndCharts!$A69+$A$11,IF($C$7,8,0),1,1) -> 192.21 | E69: =OFFSET(InputPriceData!D$15,CalculationsAndCharts!$A69+$A$11,IF($C$7,8,0),1,1) -> 192.28 | F69: =OFFSET(InputPriceData!E$15,CalculationsAndCharts!$A69+$A$11,IF($C$7,8,0),1,1) -> 190.74 | G69: =OFFSET(InputPriceData!F$15,CalculationsAndCharts!$A69+$A$11,IF($C$7,8,0),1,1) -> 191.1 | H69: 188.3435817 | I69: 189.2658829 | J69: -0.9223011695 | K69: 0.8506394473 | L69: 1.413670683 | M69: -1.413670683 | Q69: 102343000
A70: 38 | B70: =OFFSET(InputPriceData!B$15,CalculationsAndCharts!$A70+$A$11,0,1,1) -> 2016-02-17 | C70: =OFFSET(InputPriceData!G$15,CalculationsAndCharts!$A70+$A$11,IF($C$7,8,0),1,1) -> 136009500 | D70: =OFFSET(InputPriceData!C$15,CalculationsAndCharts!$A70+$A$11,IF($C$7,8,0),1,1) -> 190.18 | E70: =OFFSET(InputPriceData!D$15,CalculationsAndCharts!$A70+$A$11,IF($C$7,8,0),1,1) -> 192.33 | F70: =OFFSET(InputPriceData!E$15,CalculationsAndCharts!$A70+$A$11,IF($C$7,8,0),1,1) -> 190.03 | G70: =OFFSET(InputPriceData!F$15,CalculationsAndCharts!$A70+$A$11,IF($C$7,8,0),1,1) -> 191.89 | H70: 187.9498077 | I70: 189.099145 | J70: -1.14933729 | K70: 1.320976205 | L70: 1.409909271 | M70: -1.409909271 | P70: 136009500
A71: 39 | B71: =OFFSET(InputPriceData!B$15,CalculationsAndCharts!$A71+$A$11,0,1,1) -> 2016-02-16 | C71: =OFFSET(InputPriceData!G$15,CalculationsAndCharts!$A71+$A$11,IF($C$7,8,0),1,1) -> 120250700 | D71: =OFFSET(InputPriceData!C$15,CalculationsAndCharts!$A71+$A$11,IF($C$7,8,0),1,1) -> 187.8 | E71: =OFFSET(InputPriceData!D$15,CalculationsAndCharts!$A71+$A$11,IF($C$7,8,0),1,1) -> 188.84 | F71: =OFFSET(InputPriceData!E$15,CalculationsAndCharts!$A71+$A$11,IF($C$7,8,0),1,1) -> 186.67 | G71: =OFFSET(InputPriceData!F$15,CalculationsAndCharts!$A71+$A$11,IF($C$7,8,0),1,1) -> 188.81 | H71: 187.3869231 | I71: 188.8454309 | J71: -1.458507812 | K71: 2.127245038 | L71: 1.402669771 | M71: -1.402669771 | P71: 120250700
A72: 40 | B72: =OFFSET(InputPriceData!B$15,CalculationsAndCharts!$A72+$A$11,0,1,1) -> 2016-02-12 | C72: =OFFSET(InputPriceData!G$15,CalculationsAndCharts!$A72+$A$11,IF($C$7,8,0),1,1) -> 127632400 | D72: =OFFSET(InputPriceData!C$15,CalculationsAndCharts!$A72+$A$11,IF($C$7,8,0),1,1) -> 184.01 | E72: =OFFSET(InputPriceData!D$15,CalculationsAndCharts!$A72+$A$11,IF($C$7,8,0),1,1) -> 185.69 | F72: =OFFSET(InputPriceData!E$15,CalculationsAndCharts!$A72+$A$11,IF($C$7,8,0),1,1) -> 183.02 | G72: =OFFSET(InputPriceData!F$15,CalculationsAndCharts!$A72+$A$11,IF($C$7,8,0),1,1) -> 185.67 | H72: 187.1836264 | I72: 188.8486519 | J72: -1.665025505 | K72: 2.772309933 | L72: 1.391264877 | M72: -1.391264877 | P72: 127632400
A73: 41 | B73: =OFFSET(InputPriceData!B$15,CalculationsAndCharts!$A73+$A$11,0,1,1) -> 2016-02-11 | C73: =OFFSET(InputPriceData!G$15,CalculationsAndCharts!$A73+$A$11,IF($C$7,8,0),1,1) -> 219058900 | D73: =OFFSET(InputPriceData!C$15,CalculationsAndCharts!$A73+$A$11,IF($C$7,8,0),1,1) -> 181.4 | E73: =OFFSET(InputPriceData!D$15,CalculationsAndCharts!$A73+$A$11,IF($C$7,8,0),1,1) -> 183.16 | F73: =OFFSET(InputPriceData!E$15,CalculationsAndCharts!$A73+$A$11,IF($C$7,8,0),1,1) -> 180.16 | G73: =OFFSET(InputPriceData!F$15,CalculationsAndCharts!$A73+$A$11,IF($C$7,8,0),1,1) -> 181.92 | H73: 187.3998587 | I73: 189.1376202 | J73: -1.737761518 | K73: 3.019815095 | L73: 1.375807519 | M73: -1.375807519 | P73: 219058900
A74: 42 | B74: =OFFSET(InputPriceData!B$15,CalculationsAndCharts!$A74+$A$11,0,1,1) -> 2016-02-10 | C74: =OFFSET(InputPriceData!G$15,CalculationsAndCharts!$A74+$A$11,IF($C$7,8,0),1,1) -> 148214100 | D74: =OFFSET(InputPriceData!C$15,CalculationsAndCharts!$A74+$A$11,IF($C$7,8,0),1,1) -> 185.45 | E74: =OFFSET(InputPriceData!D$15,CalculationsAndCharts!$A74+$A$11,IF($C$7,8,0),1,1) -> 187.37 | F74: =OFFSET(InputPriceData!E$15,CalculationsAndCharts!$A74+$A$11,IF($C$7,8,0),1,1) -> 184.17 | G74: =OFFSET(InputPriceData!F$15,CalculationsAndCharts!$A74+$A$11,IF($C$7,8,0),1,1) -> 184.32 | H74: 188.1826957 | I74: 189.7937675 | J74: -1.611071853 | K74: 2.595552515 | L74: 1.357901295 | M74: -1.357901295 | Q74: 148214100
A75: 43 | B75: =OFFSET(InputPriceData!B$15,CalculationsAndCharts!$A75+$A$11,0,1,1) -> 2016-02-09 | C75: =OFFSET(InputPriceData!G$15,CalculationsAndCharts!$A75+$A$11,IF($C$7,8,0),1,1) -> 184513100 | D75: =OFFSET(InputPriceData!C$15,CalculationsAndCharts!$A75+$A$11,IF($C$7,8,0),1,1) -> 182.42 | E75: =OFFSET(InputPriceData!D$15,CalculationsAndCharts!$A75+$A$11,IF($C$7,8,0),1,1) -> 185.98 | F75: =OFFSET(InputPriceData!E$15,CalculationsAndCharts!$A75+$A$11,IF($C$7,8,0),1,1) -> 182.26 | G75: =OFFSET(InputPriceData!F$15,CalculationsAndCharts!$A75+$A$11,IF($C$7,8,0),1,1) -> 184.48 | H75: 188.7345093 | I75: 190.2913828 | J75: -1.556873414 | K75: 2.423854829 | L75: 1.343419036 | M75: -1.343419036 | P75: 184513100
A76: 44 | B76: =OFFSET(InputPriceData!B$15,CalculationsAndCharts!$A76+$A$11,0,1,1) -> 2016-02-08 | C76: =OFFSET(InputPriceData!G$15,CalculationsAndCharts!$A76+$A$11,IF($C$7,8,0),1,1) -> 191526700 | D76: =OFFSET(InputPriceData!C$15,CalculationsAndCharts!$A76+$A$11,IF($C$7,8,0),1,1) -> 184.82 | E76: =OFFSET(InputPriceData!D$15,CalculationsAndCharts!$A76+$A$11,IF($C$7,8,0),1,1) -> 185.16 | F76: =OFFSET(InputPriceData!E$15,CalculationsAndCharts!$A76+$A$11,IF($C$7,8,0),1,1) -> 181.86 | G76: =OFFSET(InputPriceData!F$15,CalculationsAndCharts!$A76+$A$11,IF($C$7,8,0),1,1) -> 184.47 | H76: 189.3422964 | I76: 190.8196903 | J76: -1.477393889 | K76: 2.182692702 | L76: 1.330055737 | M76: -1.330055737 | Q76: 191526700
A77: 45 | B77: =OFFSET(InputPriceData!B$15,CalculationsAndCharts!$A77+$A$11,0,1,1) -> 2016-02-05 | C77: =OFFSET(InputPriceData!G$15,CalculationsAndCharts!$A77+$A$11,IF($C$7,8,0),1,1) -> 180788300 | D77: =OFFSET(InputPriceData!C$15,CalculationsAndCharts!$A77+$A$11,IF($C$7,8,0),1,1) -> 190.01 | E77: =OFFSET(InputPriceData!D$15,CalculationsAndCharts!$A77+$A$11,IF($C$7,8,0),1,1) -> 190.69 | F77: =OFFSET(InputPriceData!E$15,CalculationsAndCharts!$A77+$A$11,IF($C$7,8,0),1,1) -> 186.24 | G77: =OFFSET(InputPriceData!F$15,CalculationsAndCharts!$A77+$A$11,IF($C$7,8,0),1,1) -> 186.99 | H77: 190.0383387 | I77: 191.3969349 | J77: -1.358596117 | K77: 1.84578341 | L77: 1.318394203 | M77: -1.318394203 | Q77: 180788300
A78: 46 | B78: =OFFSET(InputPriceData!B$15,CalculationsAndCharts!$A78+$A$11,0,1,1) -> 2016-02-04 | C78: =OFFSET(InputPriceData!G$15,CalculationsAndCharts!$A78+$A$11,IF($C$7,8,0),1,1) -> 139531800 | D78: =OFFSET(InputPriceData!C$15,CalculationsAndCharts!$A78+$A$11,IF($C$7,8,0),1,1) -> 189.73 | E78: =OFFSET(InputPriceData!D$15,CalculationsAndCharts!$A78+$A$11,IF($C$7,8,0),1,1) -> 191.76 | F78: =OFFSET(InputPriceData!E$15,CalculationsAndCharts!$A78+$A$11,IF($C$7,8,0),1,1) -> 188.99 | G78: =OFFSET(InputPriceData!F$15,CalculationsAndCharts!$A78+$A$11,IF($C$7,8,0),1,1) -> 190.62 | H78: 190.4738157 | I78: 191.7975653 | J78: -1.323749596 | K78: 1.752312993 | L78: 1.309068459 | M78: -1.309068459 | P78: 139531800
A79: 47 | B79: =OFFSET(InputPriceData!B$15,CalculationsAndCharts!$A79+$A$11,0,1,1) -> 2016-02-03 | C79: =OFFSET(InputPriceData!G$15,CalculationsAndCharts!$A79+$A$11,IF($C$7,8,0),1,1) -> 205054900 | D79: =OFFSET(InputPriceData!C$15,CalculationsAndCharts!$A79+$A$11,IF($C$7,8,0),1,1) -> 190.43 | E79: =OFFSET(InputPriceData!D$15,CalculationsAndCharts!$A79+$A$11,IF($C$7,8,0),1,1) -> 190.8 | F79: =OFFSET(InputPriceData!E$15,CalculationsAndCharts!$A79+$A$11,IF($C$7,8,0),1,1) -> 186.14 | G79: =OFFSET(InputPriceData!F$15,CalculationsAndCharts!$A79+$A$11,IF($C$7,8,0),1,1) -> 190.32 | H79: 190.4529322 | I79: 191.9046167 | J79: -1.451684458 | K79: 2.107387765 | L79: 1.300271995 | M79: -1.300271995 | Q79: 205054900
A80: 48 | B80: =OFFSET(InputPriceData!B$15,CalculationsAndCharts!$A80+$A$11,0,1,1) -> 2016-02-02 | C80: =OFFSET(InputPriceData!G$15,CalculationsAndCharts!$A80+$A$11,IF($C$7,8,0),1,1) -> 182564900 | D80: =OFFSET(InputPriceData!C$15,CalculationsAndCharts!$A80+$A$11,IF($C$7,8,0),1,1) -> 190.98 | E80: =OFFSET(InputPriceData!D$15,CalculationsAndCharts!$A80+$A$11,IF($C$7,8,0),1,1) -> 190.98 | F80: =OFFSET(InputPriceData!E$15,CalculationsAndCharts!$A80+$A$11,IF($C$7,8,0),1,1) -> 188.57 | G80: =OFFSET(InputPriceData!F$15,CalculationsAndCharts!$A80+$A$11,IF($C$7,8,0),1,1) -> 189.18 | H80: 190.4719226 | I80: 192.0486728 | J80: -1.576750202 | K80: 2.486141199 | L80: 1.288252957 | M80: -1.288252957 | Q80: 182564900
A81: 49 | B81: =OFFSET(InputPriceData!B$15,CalculationsAndCharts!$A81+$A$11,0,1,1) -> 2016-02-01 | C81: =OFFSET(InputPriceData!G$15,CalculationsAndCharts!$A81+$A$11,IF($C$7,8,0),1,1) -> 136061600 | D81: =OFFSET(InputPriceData!C$15,CalculationsAndCharts!$A81+$A$11,IF($C$7,8,0),1,1) -> 191.54 | E81: =OFFSET(InputPriceData!D$15,CalculationsAndCharts!$A81+$A$11,IF($C$7,8,0),1,1) -> 193.58 | F81: =OFFSET(InputPriceData!E$15,CalculationsAndCharts!$A81+$A$11,IF($C$7,8,0),1,1) -> 190.86 | G81: =OFFSET(InputPriceData!F$15,CalculationsAndCharts!$A81+$A$11,IF($C$7,8,0),1,1) -> 192.66 | H81: 190.6564829 | I81: 192.3094612 | J81: -1.652978269 | K81: 2.732337159 | L81: 1.2729871 | M81: -1.2729871 | P81: 136061600
A82: 50 | B82: =OFFSET(InputPriceData!B$15,CalculationsAndCharts!$A82+$A$11,0,1,1) -> 2016-01-29 | C82: =OFFSET(InputPriceData!G$15,CalculationsAndCharts!$A82+$A$11,IF($C$7,8,0),1,1) -> 210529300 | D82: =OFFSET(InputPriceData!C$15,CalculationsAndCharts!$A82+$A$11,IF($C$7,8,0),1,1) -> 189.04 | E82: =OFFSET(InputPriceData!D$15,CalculationsAndCharts!$A82+$A$11,IF($C$7,8,0),1,1) -> 192.89 | F82: =OFFSET(InputPriceData!E$15,CalculationsAndCharts!$A82+$A$11,IF($C$7,8,0),1,1) -> 188.91 | G82: =OFFSET(InputPriceData!F$15,CalculationsAndCharts!$A82+$A$11,IF($C$7,8,0),1,1) -> 192.73 | H82: 190.3702662 | I82: 192.277594 | J82: -1.907327831 | K82: 3.637899453 | L82: 1.255165607 | M82: -1.255165607 | P82: 210529300
A83: 51 | B83: =OFFSET(InputPriceData!B$15,CalculationsAndCharts!$A83+$A$11,0,1,1) -> 2016-01-28 | C83: =OFFSET(InputPriceData!G$15,CalculationsAndCharts!$A83+$A$11,IF($C$7,8,0),1,1) -> 143798800 | D83: =OFFSET(InputPriceData!C$15,CalculationsAndCharts!$A83+$A$11,IF($C$7,8,0),1,1) -> 188.99 | E83: =OFFSET(InputPriceData!D$15,CalculationsAndCharts!$A83+$A$11,IF($C$7,8,0),1,1) -> 189.22 | F83: =OFFSET(InputPriceData!E$15,CalculationsAndCharts!$A83+$A$11,IF($C$7,8,0),1,1) -> 186.2 | G83: =OFFSET(InputPriceData!F$15,CalculationsAndCharts!$A83+$A$11,IF($C$7,8,0),1,1) -> 188.14 | H83: 190.0331614 | I83: 192.2364662 | J83: -2.203304844 | K83: 4.854552237 | L83: 1.231121451 | M83: -1.231121451 | Q83: 143798800
A84: 52 | B84: =OFFSET(InputPriceData!B$15,CalculationsAndCharts!$A84+$A$11,0,1,1) -> 2016-01-27 | C84: =OFFSET(InputPriceData!G$15,CalculationsAndCharts!$A84+$A$11,IF($C$7,8,0),1,1) -> 185681700 | D84: =OFFSET(InputPriceData!C$15,CalculationsAndCharts!$A84+$A$11,IF($C$7,8,0),1,1) -> 188.61 | E84: =OFFSET(InputPriceData!D$15,CalculationsAndCharts!$A84+$A$11,IF($C$7,8,0),1,1) -> 190.58 | F84: =OFFSET(InputPriceData!E$15,CalculationsAndCharts!$A84+$A$11,IF($C$7,8,0),1,1) -> 186.1 | G84: =OFFSET(InputPriceData!F$15,CalculationsAndCharts!$A84+$A$11,IF($C$7,8,0),1,1) -> 187.16 | H84: 190.303613 | I84: 192.6088722 | J84: -2.30525924 | K84: 5.314220163 | L84: 1.19825637 | M84: -1.19825637 | Q84: 185681700
A85: 53 | B85: =OFFSET(InputPriceData!B$15,CalculationsAndCharts!$A85+$A$11,0,1,1) -> 2016-01-26 | C85: =OFFSET(InputPriceData!G$15,CalculationsAndCharts!$A85+$A$11,IF($C$7,8,0),1,1) -> 141036800 | D85: =OFFSET(InputPriceData!C$15,CalculationsAndCharts!$A85+$A$11,IF($C$7,8,0),1,1) -> 187.45 | E85: =OFFSET(InputPriceData!D$15,CalculationsAndCharts!$A85+$A$11,IF($C$7,8,0),1,1) -> 189.55 | F85: =OFFSET(InputPriceData!E$15,CalculationsAndCharts!$A85+$A$11,IF($C$7,8,0),1,1) -> 187.06 | G85: =OFFSET(InputPriceData!F$15,CalculationsAndCharts!$A85+$A$11,IF($C$7,8,0),1,1) -> 189.22 | H85: 190.7527006 | I85: 193.1042242 | J85: -2.351523691 | K85: 5.52966367 | L85: 1.166061404 | M85: -1.166061404 | P85: 141036800
A86: 54 | B86: =OFFSET(InputPriceData!B$15,CalculationsAndCharts!$A86+$A$11,0,1,1) -> 2016-01-25 | C86: =OFFSET(InputPriceData!G$15,CalculationsAndCharts!$A86+$A$11,IF($C$7,8,0),1,1) -> 130371700 | D86: =OFFSET(InputPriceData!C$15,CalculationsAndCharts!$A86+$A$11,IF($C$7,8,0),1,1) -> 188.95 | E86: =OFFSET(InputPriceData!D$15,CalculationsAndCharts!$A86+$A$11,IF($C$7,8,0),1,1) -> 189.17 | F86: =OFFSET(InputPriceData!E$15,CalculationsAndCharts!$A86+$A$11,IF($C$7,8,0),1,1) -> 186.45 | G86: =OFFSET(InputPriceData!F$15,CalculationsAndCharts!$A86+$A$11,IF($C$7,8,0),1,1) -> 186.68 | H86: 190.9716578 | I86: 193.4573355 | J86: -2.485677764 | K86: 6.178593947 | L86: 1.136740908 | M86: -1.136740908 | Q86: 130371700
A87: 55 | B87: =OFFSET(InputPriceData!B$15,CalculationsAndCharts!$A87+$A$11,0,1,1) -> 2016-01-22 | C87: =OFFSET(InputPriceData!G$15,CalculationsAndCharts!$A87+$A$11,IF($C$7,8,0),1,1) -> 168319600 | D87: =OFFSET(InputPriceData!C$15,CalculationsAndCharts!$A87+$A$11,IF($C$7,8,0),1,1) -> 188.81 | E87: =OFFSET(InputPriceData!D$15,CalculationsAndCharts!$A87+$A$11,IF($C$7,8,0),1,1) -> 189.78 | F87: =OFFSET(InputPriceData!E$15,CalculationsAndCharts!$A87+$A$11,IF($C$7,8,0),1,1) -> 187.91 | G87: =OFFSET(InputPriceData!F$15,CalculationsAndCharts!$A87+$A$11,IF($C$7,8,0),1,1) -> 189.54 | H87: 191.5847517 | I87: 194.073457 | J87: -2.488705209 | K87: 6.193653617 | L87: 1.104388798 | M87: -1.104388798 | P87: 168319600
A88: 56 | B88: =OFFSET(InputPriceData!B$15,CalculationsAndCharts!$A88+$A$11,0,1,1) -> 2016-01-21 | C88: =OFFSET(InputPriceData!G$15,CalculationsAndCharts!$A88+$A$11,IF($C$7,8,0),1,1) -> 195772900 | D88: =OFFSET(InputPriceData!C$15,CalculationsAndCharts!$A88+$A$11,IF($C$7,8,0),1,1) -> 185.25 | E88: =OFFSET(InputPriceData!D$15,CalculationsAndCharts!$A88+$A$11,IF($C$7,8,0),1,1) -> 187.9 | F88: =OFFSET(InputPriceData!E$15,CalculationsAndCharts!$A88+$A$11,IF($C$7,8,0),1,1) -> 183.69 | G88: =OFFSET(InputPriceData!F$15,CalculationsAndCharts!$A88+$A$11,IF($C$7,8,0),1,1) -> 185.73 | H88: 191.8768591 | I88: 194.4855894 | J88: -2.608730267 | K88: 6.805473608 | L88: 1.073983102 | M88: -1.073983102 | P88: 195772900
A89: 57 | B89: =OFFSET(InputPriceData!B$15,CalculationsAndCharts!$A89+$A$11,0,1,1) -> 2016-01-20 | C89: =OFFSET(InputPriceData!G$15,CalculationsAndCharts!$A89+$A$11,IF($C$7,8,0),1,1) -> 286547800 | D89: =OFFSET(InputPriceData!C$15,CalculationsAndCharts!$A89+$A$11,IF($C$7,8,0),1,1) -> 184.08 | E89: =OFFSET(InputPriceData!D$15,CalculationsAndCharts!$A89+$A$11,IF($C$7,8,0),1,1) -> 186.54 | F89: =OFFSET(InputPriceData!E$15,CalculationsAndCharts!$A89+$A$11,IF($C$7,8,0),1,1) -> 180.09 | G89: =OFFSET(InputPriceData!F$15,CalculationsAndCharts!$A89+$A$11,IF($C$7,8,0),1,1) -> 184.7 | H89: 192.7549819 | I89: 195.2815521 | J89: -2.526570207 | K89: 6.38355701 | L89: 1.04110093 | M89: -1.04110093 | P89: 286547800
A90: 58 | B90: =OFFSET(InputPriceData!B$15,CalculationsAndCharts!$A90+$A$11,0,1,1) -> 2016-01-19 | C90: =OFFSET(InputPriceData!G$15,CalculationsAndCharts!$A90+$A$11,IF($C$7,8,0),1,1) -> 195244400 | D90: =OFFSET(InputPriceData!C$15,CalculationsAndCharts!$A90+$A$11,IF($C$7,8,0),1,1) -> 188.99 | E90: =OFFSET(InputPriceData!D$15,CalculationsAndCharts!$A90+$A$11,IF($C$7,8,0),1,1) -> 189.13 | F90: =OFFSET(InputPriceData!E$15,CalculationsAndCharts!$A90+$A$11,IF($C$7,8,0),1,1) -> 185.24 | G90: =OFFSET(InputPriceData!F$15,CalculationsAndCharts!$A90+$A$11,IF($C$7,8,0),1,1) -> 187.1 | H90: 193.9056936 | I90: 196.2435114 | J90: -2.337817791 | K90: 5.465392024 | L90: 1.012543837 | M90: -1.012543837 | Q90: 195244400
A91: 59 | B91: =OFFSET(InputPriceData!B$15,CalculationsAndCharts!$A91+$A$11,0,1,1) -> 2016-01-15 | C91: =OFFSET(InputPriceData!G$15,CalculationsAndCharts!$A91+$A$11,IF($C$7,8,0),1,1) -> 324846400 | D91: =OFFSET(InputPriceData!C$15,CalculationsAndCharts!$A91+$A$11,IF($C$7,8,0),1,1) -> 185.81 | E91: =OFFSET(InputPriceData!D$15,CalculationsAndCharts!$A91+$A$11,IF($C$7,8,0),1,1) -> 187.79 | F91: =OFFSET(InputPriceData!E$15,CalculationsAndCharts!$A91+$A$11,IF($C$7,8,0),1,1) -> 184.57 | G91: =OFFSET(InputPriceData!F$15,CalculationsAndCharts!$A91+$A$11,IF($C$7,8,0),1,1) -> 186.85 | H91: 194.8779355 | I91: 197.0747397 | J91: -2.196804158 | K91: 4.82594851 | L91: 0.9929181372 | M91: -0.9929181372 | P91: 324846400
A92: 60 | B92: =OFFSET(InputPriceData!B$15,CalculationsAndCharts!$A92+$A$11,0,1,1) -> 2016-01-14 | C92: =OFFSET(InputPriceData!G$15,CalculationsAndCharts!$A92+$A$11,IF($C$7,8,0),1,1) -> 240795600 | D92: =OFFSET(InputPriceData!C$15,CalculationsAndCharts!$A92+$A$11,IF($C$7,8,0),1,1) -> 188.58 | E92: =OFFSET(InputPriceData!D$15,CalculationsAndCharts!$A92+$A$11,IF($C$7,8,0),1,1) -> 192.27 | F92: =OFFSET(InputPriceData!E$15,CalculationsAndCharts!$A92+$A$11,IF($C$7,8,0),1,1) -> 186.7 | G92: =OFFSET(InputPriceData!F$15,CalculationsAndCharts!$A92+$A$11,IF($C$7,8,0),1,1) -> 190.95 | H92: 196.0247834 | I92: 198.0042614 | J92: -1.979478017 | K92: 3.918333219 | L92: 0.9786969347 | M92: -0.9786969347 | P92: 240795600
A93: 61 | B93: =OFFSET(InputPriceData!B$15,CalculationsAndCharts!$A93+$A$11,0,1,1) -> 2016-01-13 | C93: =OFFSET(InputPriceData!G$15,CalculationsAndCharts!$A93+$A$11,IF($C$7,8,0),1,1) -> 221168900 | D93: =OFFSET(InputPriceData!C$15,CalculationsAndCharts!$A93+$A$11,IF($C$7,8,0),1,1) -> 193.45 | E93: =OFFSET(InputPriceData!D$15,CalculationsAndCharts!$A93+$A$11,IF($C$7,8,0),1,1) -> 193.86 | F93: =OFFSET(InputPriceData!E$15,CalculationsAndCharts!$A93+$A$11,IF($C$7,8,0),1,1) -> 187.41 | G93: =OFFSET(InputPriceData!F$15,CalculationsAndCharts!$A93+$A$11,IF($C$7,8,0),1,1) -> 187.86 | H93: 196.7497525 | I93: 198.6455579 | J93: -1.895805451 | K93: 3.594078307 | L93: 0.9705844075 | M93: -0.9705844075 | Q93: 221168900
A94: 62 | B94: =OFFSET(InputPriceData!B$15,CalculationsAndCharts!$A94+$A$11,0,1,1) -> 2016-01-12 | C94: =OFFSET(InputPriceData!G$15,CalculationsAndCharts!$A94+$A$11,IF($C$7,8,0),1,1) -> 172330500 | D94: =OFFSET(InputPriceData!C$15,CalculationsAndCharts!$A94+$A$11,IF($C$7,8,0),1,1) -> 192.83 | E94: =OFFSET(InputPriceData!D$15,CalculationsAndCharts!$A94+$A$11,IF($C$7,8,0),1,1) -> 193.55 | F94: =OFFSET(InputPriceData!E$15,CalculationsAndCharts!$A94+$A$11,IF($C$7,8,0),1,1) -> 190.16 | G94: =OFFSET(InputPriceData!F$15,CalculationsAndCharts!$A94+$A$11,IF($C$7,8,0),1,1) -> 192.67 | H94: 198.0197171 | I94: 199.6260632 | J94: -1.606346077 | K94: 2.580347718 | L94: 0.9624314952 | M94: -0.9624314952 | Q94: 172330500
A95: 63 | B95: =OFFSET(InputPriceData!B$15,CalculationsAndCharts!$A95+$A$11,0,1,1) -> 2016-01-11 | C95: =OFFSET(InputPriceData!G$15,CalculationsAndCharts!$A95+$A$11,IF($C$7,8,0),1,1) -> 187941300 | D95: =OFFSET(InputPriceData!C$15,CalculationsAndCharts!$A95+$A$11,IF($C$7,8,0),1,1) -> 192.02 | E95: =OFFSET(InputPriceData!D$15,CalculationsAndCharts!$A95+$A$11,IF($C$7,8,0),1,1) -> 192.42 | F95: =OFFSET(InputPriceData!E$15,CalculationsAndCharts!$A95+$A$11,IF($C$7,8,0),1,1) -> 188.85 | G95: =OFFSET(InputPriceData!F$15,CalculationsAndCharts!$A95+$A$11,IF($C$7,8,0),1,1) -> 191.12 | H95: 198.7839624 | I95: 200.2584326 | J95: -1.474470155 | K95: 2.174062237 | L95: 0.9643609703 | M95: -0.9643609703 | Q95: 187941300
A96: 64 | B96: =OFFSET(InputPriceData!B$15,CalculationsAndCharts!$A96+$A$11,0,1,1) -> 2016-01-08 | C96: =OFFSET(InputPriceData!G$15,CalculationsAndCharts!$A96+$A$11,IF($C$7,8,0),1,1) -> 209817200 | D96: =OFFSET(InputPriceData!C$15,CalculationsAndCharts!$A96+$A$11,IF($C$7,8,0),1,1) -> 194.19 | E96: =OFFSET(InputPriceData!D$15,CalculationsAndCharts!$A96+$A$11,IF($C$7,8,0),1,1) -> 194.85 | F96: =OFFSET(InputPriceData!E$15,CalculationsAndCharts!$A96+$A$11,IF($C$7,8,0),1,1) -> 190.6 | G96: =OFFSET(InputPriceData!F$15,CalculationsAndCharts!$A96+$A$11,IF($C$7,8,0),1,1) -> 190.94 | H96: 199.8788142 | I96: 201.0891992 | J96: -1.210384977 | K96: 1.465031793 | L96: 0.9677133539 | M96: -0.9677133539 | Q96: 209817200
A97: 65 | B97: =OFFSET(InputPriceData!B$15,CalculationsAndCharts!$A97+$A$11,0,1,1) -> 2016-01-07 | C97: =OFFSET(InputPriceData!G$15,CalculationsAndCharts!$A97+$A$11,IF($C$7,8,0),1,1) -> 213436100 | D97: =OFFSET(InputPriceData!C$15,CalculationsAndCharts!$A97+$A$11,IF($C$7,8,0),1,1) -> 194.33 | E97: =OFFSET(InputPriceData!D$15,CalculationsAndCharts!$A97+$A$11,IF($C$7,8,0),1,1) -> 196.43 | F97: =OFFSET(InputPriceData!E$15,CalculationsAndCharts!$A97+$A$11,IF($C$7,8,0),1,1) -> 192.6 | G97: =OFFSET(InputPriceData!F$15,CalculationsAndCharts!$A97+$A$11,IF($C$7,8,0),1,1) -> 193.05 | H97: 201.1557877 | I97: 202.0118537 | J97: -0.8560659901 | K97: =J97*J97 -> 0.7328489793 | L97: =SQRT(SUM(OFFSET(K97,0,0,$A$18,1))/$A$18) -> 0.9742959633 | M97: -0.9742959633 | Q97: 213436100
A98: 66 | B98: =OFFSET(InputPriceData!B$15,CalculationsAndCharts!$A98+$A$11,0,1,1) -> 2016-01-06 | C98: =OFFSET(InputPriceData!G$15,CalculationsAndCharts!$A98+$A$11,IF($C$7,8,0),1,1) -> 152112600 | D98: =OFFSET(InputPriceData!C$15,CalculationsAndCharts!$A98+$A$11,IF($C$7,8,0),1,1) -> 197.32 | E98: =OFFSET(InputPriceData!D$15,CalculationsAndCharts!$A98+$A$11,IF($C$7,8,0),1,1) -> 199.03 | F98: =OFFSET(InputPriceData!E$15,CalculationsAndCharts!$A98+$A$11,IF($C$7,8,0),1,1) -> 196.59 | G98: =OFFSET(InputPriceData!F$15,CalculationsAndCharts!$A98+$A$11,IF($C$7,8,0),1,1) -> 197.8 | H98: =IF($A98>$A$8,0,IF($A98=$A$8,$G98,$C$16*$G98+$D$16*H99)) -> 202.3137573 | I98: =IF($A98>$A$8,0,IF($A98=$A$8,$G98,$C$17*$G98+$D$17*I99)) -> 202.8265676 | J98: =($C$16 - $C$17)*$G98 + ($C$17*$D$16 - $C$16*$D$17)*$G99 + ($D$16 + $D$17)*J99 - $D$16*$D$17*J100 -> -0.5128102919 | K98: 0.2629743955 | L98: 0.9865519292 | M98: =-L98 -> -0.9865519292 | P98: =IF(G98>=D98,C98,NA()) -> 152112600 | Q98: =IF(G98<D98,C98,NA()) -> 
A99: 67 | B99: =OFFSET(InputPriceData!B$15,CalculationsAndCharts!$A99+$A$11,0,1,1) -> 2016-01-05 | C99: =OFFSET(InputPriceData!G$15,CalculationsAndCharts!$A99+$A$11,IF($C$7,8,0),1,1) -> 110845800 | D99: =OFFSET(InputPriceData!C$15,CalculationsAndCharts!$A99+$A$11,IF($C$7,8,0),1,1) -> 200.37 | E99: =OFFSET(InputPriceData!D$15,CalculationsAndCharts!$A99+$A$11,IF($C$7,8,0),1,1) -> 200.86 | F99: =OFFSET(InputPriceData!E$15,CalculationsAndCharts!$A99+$A$11,IF($C$7,8,0),1,1) -> 199.02 | G99: =OFFSET(InputPriceData!F$15,CalculationsAndCharts!$A99+$A$11,IF($C$7,8,0),1,1) -> 200.33 | H99: 202.9585798 | I99: 203.2835283 | J99: -0.3249485087 | K99: 0.1055915333 | L99: 1.000333142 | M99: -1.000333142 | Q99: 110845800
A100: 68 | B100: =OFFSET(InputPriceData!B$15,CalculationsAndCharts!$A100+$A$11,0,1,1) -> 2016-01-04 | C100: =OFFSET(InputPriceData!G$15,CalculationsAndCharts!$A100+$A$11,IF($C$7,8,0),1,1) -> 222353500 | D100: =OFFSET(InputPriceData!C$15,CalculationsAndCharts!$A100+$A$11,IF($C$7,8,0),1,1) -> 199.46 | E100: =OFFSET(InputPriceData!D$15,CalculationsAndCharts!$A100+$A$11,IF($C$7,8,0),1,1) -> 200 | F100: =OFFSET(InputPriceData!E$15,CalculationsAndCharts!$A100+$A$11,IF($C$7,8,0),1,1) -> 197.57 | G100: =OFFSET(InputPriceData!F$15,CalculationsAndCharts!$A100+$A$11,IF($C$7,8,0),1,1) -> 199.99 | H100: 203.3340912 | I100: 203.5520309 | J100: -0.2179396814 | K100: 0.04749770471 | L100: 1.011175888 | M100: -1.011175888 | P100: 222353500
A101: 69 | B101: =OFFSET(InputPriceData!B$15,CalculationsAndCharts!$A101+$A$11,0,1,1) -> 2015-12-31 | C101: =OFFSET(InputPriceData!G$15,CalculationsAndCharts!$A101+$A$11,IF($C$7,8,0),1,1) -> 114877900 | D101: =OFFSET(InputPriceData!C$15,CalculationsAndCharts!$A101+$A$11,IF($C$7,8,0),1,1) -> 204.08 | E101: =OFFSET(InputPriceData!D$15,CalculationsAndCharts!$A101+$A$11,IF($C$7,8,0),1,1) -> 204.83 | F101: =OFFSET(InputPriceData!E$15,CalculationsAndCharts!$A101+$A$11,IF($C$7,8,0),1,1) -> 202.82 | G101: =OFFSET(InputPriceData!F$15,CalculationsAndCharts!$A101+$A$11,IF($C$7,8,0),1,1) -> 202.82 | H101: 203.8118185 | I101: 203.8758519 | J101: -0.06403335536 | K101: 0.004100270598 | L101: 1.019888763 | M101: -1.019888763 | Q101: 114877900
A102: 70 | B102: =OFFSET(InputPriceData!B$15,CalculationsAndCharts!$A102+$A$11,0,1,1) -> 2015-12-30 | C102: =OFFSET(InputPriceData!G$15,CalculationsAndCharts!$A102+$A$11,IF($C$7,8,0),1,1) -> 63317700 | D102: =OFFSET(InputPriceData!C$15,CalculationsAndCharts!$A102+$A$11,IF($C$7,8,0),1,1) -> 206.05 | E102: =OFFSET(InputPriceData!D$15,CalculationsAndCharts!$A102+$A$11,IF($C$7,8,0),1,1) -> 206.15 | F102: =OFFSET(InputPriceData!E$15,CalculationsAndCharts!$A102+$A$11,IF($C$7,8,0),1,1) -> 204.7 | G102: =OFFSET(InputPriceData!F$15,CalculationsAndCharts!$A102+$A$11,IF($C$7,8,0),1,1) -> 204.87 | H102: 203.9535069 | I102: 203.9718384 | J102: -0.01833152871 | K102: 0.0003360449447 | L102: 1.029002613 | M102: -1.029002613 | Q102: 63317700
A103: 71 | B103: =OFFSET(InputPriceData!B$15,CalculationsAndCharts!$A103+$A$11,0,1,1) -> 2015-12-29 | C103: =OFFSET(InputPriceData!G$15,CalculationsAndCharts!$A103+$A$11,IF($C$7,8,0),1,1) -> 92640700 | D103: =OFFSET(InputPriceData!C$15,CalculationsAndCharts!$A103+$A$11,IF($C$7,8,0),1,1) -> 205.45 | E103: =OFFSET(InputPriceData!D$15,CalculationsAndCharts!$A103+$A$11,IF($C$7,8,0),1,1) -> 206.72 | F103: =OFFSET(InputPriceData!E$15,CalculationsAndCharts!$A103+$A$11,IF($C$7,8,0),1,1) -> 205.41 | G103: =OFFSET(InputPriceData!F$15,CalculationsAndCharts!$A103+$A$11,IF($C$7,8,0),1,1) -> 206.34 | H103: 203.8225793 | I103: 203.8901874 | J103: -0.06760806264 | K103: 0.004570850133 | L103: 1.036752929 | M103: -1.036752929 | P103: 92640700
A104: 72 | B104: =OFFSET(InputPriceData!B$15,CalculationsAndCharts!$A104+$A$11,0,1,1) -> 2015-12-28 | C104: =OFFSET(InputPriceData!G$15,CalculationsAndCharts!$A104+$A$11,IF($C$7,8,0),1,1) -> 65899900 | D104: =OFFSET(InputPriceData!C$15,CalculationsAndCharts!$A104+$A$11,IF($C$7,8,0),1,1) -> 203.81 | E104: =OFFSET(InputPriceData!D$15,CalculationsAndCharts!$A104+$A$11,IF($C$7,8,0),1,1) -> 204.21 | F104: =OFFSET(InputPriceData!E$15,CalculationsAndCharts!$A104+$A$11,IF($C$7,8,0),1,1) -> 202.89 | G104: =OFFSET(InputPriceData!F$15,CalculationsAndCharts!$A104+$A$11,IF($C$7,8,0),1,1) -> 204.16 | H104: 203.4629478 | I104: 203.6674771 | J104: -0.2045293509 | K104: 0.04183225537 | L104: 1.042533403 | M104: -1.042533403 | P104: 65899900
A105: 73 | B105: =OFFSET(InputPriceData!B$15,CalculationsAndCharts!$A105+$A$11,0,1,1) -> 2015-12-24 | C105: =OFFSET(InputPriceData!G$15,CalculationsAndCharts!$A105+$A$11,IF($C$7,8,0),1,1) -> 48542200 | D105: =OFFSET(InputPriceData!C$15,CalculationsAndCharts!$A105+$A$11,IF($C$7,8,0),1,1) -> 204.66 | E105: =OFFSET(InputPriceData!D$15,CalculationsAndCharts!$A105+$A$11,IF($C$7,8,0),1,1) -> 205.27 | F105: =OFFSET(InputPriceData!E$15,CalculationsAndCharts!$A105+$A$11,IF($C$7,8,0),1,1) -> 204.37 | G105: =OFFSET(InputPriceData!F$15,CalculationsAndCharts!$A105+$A$11,IF($C$7,8,0),1,1) -> 204.62 | H105: 203.3633689 | I105: 203.6227023 | J105: -0.259333433 | K105: 0.06725382945 | L105: 1.045906043 | M105: -1.045906043 | Q105: 48542200
A106: 74 | B106: =OFFSET(InputPriceData!B$15,CalculationsAndCharts!$A106+$A$11,0,1,1) -> 2015-12-23 | C106: =OFFSET(InputPriceData!G$15,CalculationsAndCharts!$A106+$A$11,IF($C$7,8,0),1,1) -> 110987200 | D106: =OFFSET(InputPriceData!C$15,CalculationsAndCharts!$A106+$A$11,IF($C$7,8,0),1,1) -> 203.64 | E106: =OFFSET(InputPriceData!D$15,CalculationsAndCharts!$A106+$A$11,IF($C$7,8,0),1,1) -> 205.01 | F106: =OFFSET(InputPriceData!E$15,CalculationsAndCharts!$A106+$A$11,IF($C$7,8,0),1,1) -> 203.53 | G106: =OFFSET(InputPriceData!F$15,CalculationsAndCharts!$A106+$A$11,IF($C$7,8,0),1,1) -> 204.96 | H106: 203.1838502 | I106: 203.5320389 | J106: -0.3481887375 | K106: 0.1212353969 | L106: 1.047457761 | M106: -1.047457761 | P106: 110987200
A107: 75 | B107: =OFFSET(InputPriceData!B$15,CalculationsAndCharts!$A107+$A$11,0,1,1) -> 2015-12-22 | C107: =OFFSET(InputPriceData!G$15,CalculationsAndCharts!$A107+$A$11,IF($C$7,8,0),1,1) -> 111026200 | D107: =OFFSET(InputPriceData!C$15,CalculationsAndCharts!$A107+$A$11,IF($C$7,8,0),1,1) -> 201.68 | E107: =OFFSET(InputPriceData!D$15,CalculationsAndCharts!$A107+$A$11,IF($C$7,8,0),1,1) -> 202.8 | F107: =OFFSET(InputPriceData!E$15,CalculationsAndCharts!$A107+$A$11,IF($C$7,8,0),1,1) -> 200.52 | G107: =OFFSET(InputPriceData!F$15,CalculationsAndCharts!$A107+$A$11,IF($C$7,8,0),1,1) -> 202.46 | H107: 202.9301145 | I107: 203.4022243 | J107: -0.4721097829 | K107: 0.2228876471 | L107: 1.04819332 | M107: -1.04819332 | P107: 111026200
A108: 76 | B108: =OFFSET(InputPriceData!B$15,CalculationsAndCharts!$A108+$A$11,0,1,1) -> 2015-12-21 | C108: =OFFSET(InputPriceData!G$15,CalculationsAndCharts!$A108+$A$11,IF($C$7,8,0),1,1) -> 99094300 | D108: =OFFSET(InputPriceData!C$15,CalculationsAndCharts!$A108+$A$11,IF($C$7,8,0),1,1) -> 200.38 | E108: =OFFSET(InputPriceData!D$15,CalculationsAndCharts!$A108+$A$11,IF($C$7,8,0),1,1) -> 200.84 | F108: =OFFSET(InputPriceData!E$15,CalculationsAndCharts!$A108+$A$11,IF($C$7,8,0),1,1) -> 199.06 | G108: =OFFSET(InputPriceData!F$15,CalculationsAndCharts!$A108+$A$11,IF($C$7,8,0),1,1) -> 200.64 | H108: 202.9972737 | I108: 203.487881 | J108: -0.4906073228 | K108: 0.2406955452 | L108: 1.047221143 | M108: -1.047221143 | P108: 99094300
A109: 77 | B109: =OFFSET(InputPriceData!B$15,CalculationsAndCharts!$A109+$A$11,0,1,1) -> 2015-12-18 | C109: =OFFSET(InputPriceData!G$15,CalculationsAndCharts!$A109+$A$11,IF($C$7,8,0),1,1) -> 251393500 | D109: =OFFSET(InputPriceData!C$15,CalculationsAndCharts!$A109+$A$11,IF($C$7,8,0),1,1) -> 201.73 | E109: =OFFSET(InputPriceData!D$15,CalculationsAndCharts!$A109+$A$11,IF($C$7,8,0),1,1) -> 201.89 | F109: =OFFSET(InputPriceData!E$15,CalculationsAndCharts!$A109+$A$11,IF($C$7,8,0),1,1) -> 198.8 | G109: =OFFSET(InputPriceData!F$15,CalculationsAndCharts!$A109+$A$11,IF($C$7,8,0),1,1) -> 198.99 | H109: 203.3340271 | I109: 203.7467793 | J109: -0.4127522125 | K109: 0.170364389 | L109: 1.045154446 | M109: -1.045154446 | Q109: 251393500
A110: 78 | B110: =OFFSET(InputPriceData!B$15,CalculationsAndCharts!$A110+$A$11,0,1,1) -> 2015-12-17 | C110: =OFFSET(InputPriceData!G$15,CalculationsAndCharts!$A110+$A$11,IF($C$7,8,0),1,1) -> 173092500 | D110: =OFFSET(InputPriceData!C$15,CalculationsAndCharts!$A110+$A$11,IF($C$7,8,0),1,1) -> 206.1 | E110: =OFFSET(InputPriceData!D$15,CalculationsAndCharts!$A110+$A$11,IF($C$7,8,0),1,1) -> 206.18 | F110: =OFFSET(InputPriceData!E$15,CalculationsAndCharts!$A110+$A$11,IF($C$7,8,0),1,1) -> 202.58 | G110: =OFFSET(InputPriceData!F$15,CalculationsAndCharts!$A110+$A$11,IF($C$7,8,0),1,1) -> 202.6 | H110: 203.9546024 | I110: 204.1792138 | J110: -0.224611397 | K110: 0.05045027966 | L110: 1.043576136 | M110: -1.043576136 | Q110: 173092500
A111: 79 | B111: =OFFSET(InputPriceData!B$15,CalculationsAndCharts!$A111+$A$11,0,1,1) -> 2015-12-16 | C111: =OFFSET(InputPriceData!G$15,CalculationsAndCharts!$A111+$A$11,IF($C$7,8,0),1,1) -> 197017000 | D111: =OFFSET(InputPriceData!C$15,CalculationsAndCharts!$A111+$A$11,IF($C$7,8,0),1,1) -> 204.1 | E111: =OFFSET(InputPriceData!D$15,CalculationsAndCharts!$A111+$A$11,IF($C$7,8,0),1,1) -> 206.09 | F111: =OFFSET(InputPriceData!E$15,CalculationsAndCharts!$A111+$A$11,IF($C$7,8,0),1,1) -> 202.54 | G111: =OFFSET(InputPriceData!F$15,CalculationsAndCharts!$A111+$A$11,IF($C$7,8,0),1,1) -> 205.74 | H111: 204.148117 | I111: 204.3227787 | J111: -0.1746616608 | K111: 0.03050669575 | L111: 1.044299839 | M111: -1.044299839 | P111: 197017000
A112: 80 | B112: =OFFSET(InputPriceData!B$15,CalculationsAndCharts!$A112+$A$11,0,1,1) -> 2015-12-15 | C112: =OFFSET(InputPriceData!G$15,CalculationsAndCharts!$A112+$A$11,IF($C$7,8,0),1,1) -> 154069600 | D112: =OFFSET(InputPriceData!C$15,CalculationsAndCharts!$A112+$A$11,IF($C$7,8,0),1,1) -> 202.44 | E112: =OFFSET(InputPriceData!D$15,CalculationsAndCharts!$A112+$A$11,IF($C$7,8,0),1,1) -> 203.84 | F112: =OFFSET(InputPriceData!E$15,CalculationsAndCharts!$A112+$A$11,IF($C$7,8,0),1,1) -> 200.63 | G112: =OFFSET(InputPriceData!F$15,CalculationsAndCharts!$A112+$A$11,IF($C$7,8,0),1,1) -> 202.77 | H112: 203.9207051 | I112: 204.1939403 | J112: -0.2732352148 | K112: 0.07465748263 | L112: 1.047539234 | M112: -1.047539234 | P112: 154069600
A113: 81 | B113: =OFFSET(InputPriceData!B$15,CalculationsAndCharts!$A113+$A$11,0,1,1) -> 2015-12-14 | C113: =OFFSET(InputPriceData!G$15,CalculationsAndCharts!$A113+$A$11,IF($C$7,8,0),1,1) -> 182385200 | D113: =OFFSET(InputPriceData!C$15,CalculationsAndCharts!$A113+$A$11,IF($C$7,8,0),1,1) -> 199.84 | E113: =OFFSET(InputPriceData!D$15,CalculationsAndCharts!$A113+$A$11,IF($C$7,8,0),1,1) -> 200.81 | F113: =OFFSET(InputPriceData!E$15,CalculationsAndCharts!$A113+$A$11,IF($C$7,8,0),1,1) -> 197.75 | G113: =OFFSET(InputPriceData!F$15,CalculationsAndCharts!$A113+$A$11,IF($C$7,8,0),1,1) -> 200.66 | H113: 204.0850916 | I113: 204.3233895 | J113: -0.2382978898 | K113: 0.0567858843 | L113: 1.053415445 | M113: -1.053415445 | P113: 182385200
A114: 82 | B114: =OFFSET(InputPriceData!B$15,CalculationsAndCharts!$A114+$A$11,0,1,1) -> 2015-12-11 | C114: =OFFSET(InputPriceData!G$15,CalculationsAndCharts!$A114+$A$11,IF($C$7,8,0),1,1) -> 211173300 | D114: =OFFSET(InputPriceData!C$15,CalculationsAndCharts!$A114+$A$11,IF($C$7,8,0),1,1) -> 201.11 | E114: =OFFSET(InputPriceData!D$15,CalculationsAndCharts!$A114+$A$11,IF($C$7,8,0),1,1) -> 201.89 | F114: =OFFSET(InputPriceData!E$15,CalculationsAndCharts!$A114+$A$11,IF($C$7,8,0),1,1) -> 199.29 | G114: =OFFSET(InputPriceData!F$15,CalculationsAndCharts!$A114+$A$11,IF($C$7,8,0),1,1) -> 199.66 | H114: 204.5743904 | I114: 204.6564249 | J114: -0.08203449904 | K114: 0.006729659033 | L114: 1.065046438 | M114: -1.065046438 | Q114: 211173300
A115: 83 | B115: =OFFSET(InputPriceData!B$15,CalculationsAndCharts!$A115+$A$11,0,1,1) -> 2015-12-10 | C115: =OFFSET(InputPriceData!G$15,CalculationsAndCharts!$A115+$A$11,IF($C$7,8,0),1,1) -> 116128900 | D115: =OFFSET(InputPriceData!C$15,CalculationsAndCharts!$A115+$A$11,IF($C$7,8,0),1,1) -> 203.16 | E115: =OFFSET(InputPriceData!D$15,CalculationsAndCharts!$A115+$A$11,IF($C$7,8,0),1,1) -> 205.14 | F115: =OFFSET(InputPriceData!E$15,CalculationsAndCharts!$A115+$A$11,IF($C$7,8,0),1,1) -> 202.88 | G115: =OFFSET(InputPriceData!F$15,CalculationsAndCharts!$A115+$A$11,IF($C$7,8,0),1,1) -> 203.6 | H115: 205.2764461 | I115: 205.1106453 | J115: 0.1658008258 | K115: 0.02748991384 | L115: 1.081234937 | M115: -1.081234937 | P115: 116128900
A116: 84 | B116: =OFFSET(InputPriceData!B$15,CalculationsAndCharts!$A116+$A$11,0,1,1) -> 2015-12-09 | C116: =OFFSET(InputPriceData!G$15,CalculationsAndCharts!$A116+$A$11,IF($C$7,8,0),1,1) -> 162401500 | D116: =OFFSET(InputPriceData!C$15,CalculationsAndCharts!$A116+$A$11,IF($C$7,8,0),1,1) -> 203.92 | E116: =OFFSET(InputPriceData!D$15,CalculationsAndCharts!$A116+$A$11,IF($C$7,8,0),1,1) -> 206.38 | F116: =OFFSET(InputPriceData!E$15,CalculationsAndCharts!$A116+$A$11,IF($C$7,8,0),1,1) -> 201.93 | G116: =OFFSET(InputPriceData!F$15,CalculationsAndCharts!$A116+$A$11,IF($C$7,8,0),1,1) -> 203.08 | H116: 205.5159385 | I116: 205.2479767 | J116: 0.2679617396 | K116: 0.07180349389 | L116: 1.098633311 | M116: -1.098633311 | Q116: 162401500
A117: 85 | B117: =OFFSET(InputPriceData!B$15,CalculationsAndCharts!$A117+$A$11,0,1,1) -> 2015-12-08 | C117: =OFFSET(InputPriceData!G$15,CalculationsAndCharts!$A117+$A$11,IF($C$7,8,0),1,1) -> 103372400 | D117: =OFFSET(InputPriceData!C$15,CalculationsAndCharts!$A117+$A$11,IF($C$7,8,0),1,1) -> 204.22 | E117: =OFFSET(InputPriceData!D$15,CalculationsAndCharts!$A117+$A$11,IF($C$7,8,0),1,1) -> 206 | F117: =OFFSET(InputPriceData!E$15,CalculationsAndCharts!$A117+$A$11,IF($C$7,8,0),1,1) -> 203.51 | G117: =OFFSET(InputPriceData!F$15,CalculationsAndCharts!$A117+$A$11,IF($C$7,8,0),1,1) -> 204.67 | H117: 205.8639297 | I117: 205.4450655 | J117: 0.418864155 | K117: 0.1754471803 | L117: 1.116354803 | M117: -1.116354803 | P117: 103372400
A118: 86 | B118: =OFFSET(InputPriceData!B$15,CalculationsAndCharts!$A118+$A$11,0,1,1) -> 2015-12-07 | C118: =OFFSET(InputPriceData!G$15,CalculationsAndCharts!$A118+$A$11,IF($C$7,8,0),1,1) -> 102027100 | D118: =OFFSET(InputPriceData!C$15,CalculationsAndCharts!$A118+$A$11,IF($C$7,8,0),1,1) -> 206.92 | E118: =OFFSET(InputPriceData!D$15,CalculationsAndCharts!$A118+$A$11,IF($C$7,8,0),1,1) -> 207.42 | F118: =OFFSET(InputPriceData!E$15,CalculationsAndCharts!$A118+$A$11,IF($C$7,8,0),1,1) -> 204.92 | G118: =OFFSET(InputPriceData!F$15,CalculationsAndCharts!$A118+$A$11,IF($C$7,8,0),1,1) -> 206.05 | H118: 206.034491 | I118: 205.515526 | J118: 0.5189650345 | K118: 0.269324707 | L118: 1.129306364 | M118: -1.129306364 | Q118: 102027100
A119: 87 | B119: =OFFSET(InputPriceData!B$15,CalculationsAndCharts!$A119+$A$11,0,1,1) -> 2015-12-04 | C119: =OFFSET(InputPriceData!G$15,CalculationsAndCharts!$A119+$A$11,IF($C$7,8,0),1,1) -> 192913900 | D119: =OFFSET(InputPriceData!C$15,CalculationsAndCharts!$A119+$A$11,IF($C$7,8,0),1,1) -> 203.34 | E119: =OFFSET(InputPriceData!D$15,CalculationsAndCharts!$A119+$A$11,IF($C$7,8,0),1,1) -> 207.66 | F119: =OFFSET(InputPriceData!E$15,CalculationsAndCharts!$A119+$A$11,IF($C$7,8,0),1,1) -> 203.34 | G119: =OFFSET(InputPriceData!F$15,CalculationsAndCharts!$A119+$A$11,IF($C$7,8,0),1,1) -> 207.31 | H119: 206.0322755 | I119: 205.4669375 | J119: 0.5653380136 | K119: 0.3196070697 | L119: 1.136988015 | M119: -1.136988015 | P119: 192913900
A120: 88 | B120: =OFFSET(InputPriceData!B$15,CalculationsAndCharts!$A120+$A$11,0,1,1) -> 2015-12-03 | C120: =OFFSET(InputPriceData!G$15,CalculationsAndCharts!$A120+$A$11,IF($C$7,8,0),1,1) -> 166224200 | D120: =OFFSET(InputPriceData!C$15,CalculationsAndCharts!$A120+$A$11,IF($C$7,8,0),1,1) -> 206.53 | E120: =OFFSET(InputPriceData!D$15,CalculationsAndCharts!$A120+$A$11,IF($C$7,8,0),1,1) -> 206.85 | F120: =OFFSET(InputPriceData!E$15,CalculationsAndCharts!$A120+$A$11,IF($C$7,8,0),1,1) -> 202.49 | G120: =OFFSET(InputPriceData!F$15,CalculationsAndCharts!$A120+$A$11,IF($C$7,8,0),1,1) -> 203.34 | H120: 205.8497434 | I120: 205.2993863 | J120: 0.5503570784 | K120: 0.3028929137 | L120: 1.143725646 | M120: -1.143725646 | Q120: 166224200
A121: 89 | B121: =OFFSET(InputPriceData!B$15,CalculationsAndCharts!$A121+$A$11,0,1,1) -> 2015-12-02 | C121: =OFFSET(InputPriceData!G$15,CalculationsAndCharts!$A121+$A$11,IF($C$7,8,0),1,1) -> 108441300 | D121: =OFFSET(InputPriceData!C$15,CalculationsAndCharts!$A121+$A$11,IF($C$7,8,0),1,1) -> 208.3 | E121: =OFFSET(InputPriceData!D$15,CalculationsAndCharts!$A121+$A$11,IF($C$7,8,0),1,1) -> 208.68 | F121: =OFFSET(InputPriceData!E$15,CalculationsAndCharts!$A121+$A$11,IF($C$7,8,0),1,1) -> 205.94 | G121: =OFFSET(InputPriceData!F$15,CalculationsAndCharts!$A121+$A$11,IF($C$7,8,0),1,1) -> 206.23 | H121: 206.2082782 | I121: 205.4775123 | J121: 0.7307658205 | K121: 0.5340186844 | L121: 1.14980313 | M121: -1.14980313 | Q121: 108441300
A122: 90 | B122: =OFFSET(InputPriceData!B$15,CalculationsAndCharts!$A122+$A$11,0,1,1) -> 2015-12-01 | C122: =OFFSET(InputPriceData!G$15,CalculationsAndCharts!$A122+$A$11,IF($C$7,8,0),1,1) -> 97858400 | D122: =OFFSET(InputPriceData!C$15,CalculationsAndCharts!$A122+$A$11,IF($C$7,8,0),1,1) -> 207.13 | E122: =OFFSET(InputPriceData!D$15,CalculationsAndCharts!$A122+$A$11,IF($C$7,8,0),1,1) -> 208.5 | F122: =OFFSET(InputPriceData!E$15,CalculationsAndCharts!$A122+$A$11,IF($C$7,8,0),1,1) -> 206.81 | G122: =OFFSET(InputPriceData!F$15,CalculationsAndCharts!$A122+$A$11,IF($C$7,8,0),1,1) -> 208.36 | H122: 206.205175 | I122: 205.4091044 | J122: 0.79607067 | K122: 0.6337285117 | L122: 1.153328525 | M122: -1.153328525 | P122: 97858400
A123: 91 | B123: =OFFSET(InputPriceData!B$15,CalculationsAndCharts!$A123+$A$11,0,1,1) -> 2015-11-30 | C123: =OFFSET(InputPriceData!G$15,CalculationsAndCharts!$A123+$A$11,IF($C$7,8,0),1,1) -> 112822700 | D123: =OFFSET(InputPriceData!C$15,CalculationsAndCharts!$A123+$A$11,IF($C$7,8,0),1,1) -> 207.44 | E123: =OFFSET(InputPriceData!D$15,CalculationsAndCharts!$A123+$A$11,IF($C$7,8,0),1,1) -> 207.58 | F123: =OFFSET(InputPriceData!E$15,CalculationsAndCharts!$A123+$A$11,IF($C$7,8,0),1,1) -> 206.26 | G123: =OFFSET(InputPriceData!F$15,CalculationsAndCharts!$A123+$A$11,IF($C$7,8,0),1,1) -> 206.39 | H123: 205.8973429 | I123: 205.1408411 | J123: 0.7565017725 | K123: 0.5722949318 | L123: 1.155397644 | M123: -1.155397644 | Q123: 112822700
A124: 92 | B124: =OFFSET(InputPriceData!B$15,CalculationsAndCharts!$A124+$A$11,0,1,1) -> 2015-11-27 | C124: =OFFSET(InputPriceData!G$15,CalculationsAndCharts!$A124+$A$11,IF($C$7,8,0),1,1) -> 37317800 | D124: =OFFSET(InputPriceData!C$15,CalculationsAndCharts!$A124+$A$11,IF($C$7,8,0),1,1) -> 207.12 | E124: =OFFSET(InputPriceData!D$15,CalculationsAndCharts!$A124+$A$11,IF($C$7,8,0),1,1) -> 207.49 | F124: =OFFSET(InputPriceData!E$15,CalculationsAndCharts!$A124+$A$11,IF($C$7,8,0),1,1) -> 206.56 | G124: =OFFSET(InputPriceData!F$15,CalculationsAndCharts!$A124+$A$11,IF($C$7,8,0),1,1) -> 207.25 | H124: 205.8269633 | I124: 205.0272812 | J124: 0.799682085 | K124: 0.6394914371 | L124: 1.159263219 | M124: -1.159263219 | P124: 37317800
A125: 93 | B125: =OFFSET(InputPriceData!B$15,CalculationsAndCharts!$A125+$A$11,0,1,1) -> 2015-11-25 | C125: =OFFSET(InputPriceData!G$15,CalculationsAndCharts!$A125+$A$11,IF($C$7,8,0),1,1) -> 51980100 | D125: =OFFSET(InputPriceData!C$15,CalculationsAndCharts!$A125+$A$11,IF($C$7,8,0),1,1) -> 207.19 | E125: =OFFSET(InputPriceData!D$15,CalculationsAndCharts!$A125+$A$11,IF($C$7,8,0),1,1) -> 207.43 | F125: =OFFSET(InputPriceData!E$15,CalculationsAndCharts!$A125+$A$11,IF($C$7,8,0),1,1) -> 206.71 | G125: =OFFSET(InputPriceData!F$15,CalculationsAndCharts!$A125+$A$11,IF($C$7,8,0),1,1) -> 207.01 | H125: 205.6236724 | I125: 204.8252159 | J125: 0.7984564736 | K125: 0.6375327402 | L125: 1.163053919 | M125: -1.163053919 | Q125: 51980100
A126: 94 | B126: =OFFSET(InputPriceData!B$15,CalculationsAndCharts!$A126+$A$11,0,1,1) -> 2015-11-24 | C126: =OFFSET(InputPriceData!G$15,CalculationsAndCharts!$A126+$A$11,IF($C$7,8,0),1,1) -> 98874400 | D126: =OFFSET(InputPriceData!C$15,CalculationsAndCharts!$A126+$A$11,IF($C$7,8,0),1,1) -> 205.58 | E126: =OFFSET(InputPriceData!D$15,CalculationsAndCharts!$A126+$A$11,IF($C$7,8,0),1,1) -> 207.52 | F126: =OFFSET(InputPriceData!E$15,CalculationsAndCharts!$A126+$A$11,IF($C$7,8,0),1,1) -> 205.12 | G126: =OFFSET(InputPriceData!F$15,CalculationsAndCharts!$A126+$A$11,IF($C$7,8,0),1,1) -> 207.04 | H126: 205.4256256 | I126: 204.6265992 | J126: 0.7990264064 | K126: 0.6384431981 | L126: 1.17053143 | M126: -1.17053143 | P126: 98874400
A127: 95 | B127: =OFFSET(InputPriceData!B$15,CalculationsAndCharts!$A127+$A$11,0,1,1) -> 2015-11-23 | C127: =OFFSET(InputPriceData!G$15,CalculationsAndCharts!$A127+$A$11,IF($C$7,8,0),1,1) -> 64931200 | D127: =OFFSET(InputPriceData!C$15,CalculationsAndCharts!$A127+$A$11,IF($C$7,8,0),1,1) -> 207.07 | E127: =OFFSET(InputPriceData!D$15,CalculationsAndCharts!$A127+$A$11,IF($C$7,8,0),1,1) -> 207.67 | F127: =OFFSET(InputPriceData!E$15,CalculationsAndCharts!$A127+$A$11,IF($C$7,8,0),1,1) -> 206.22 | G127: =OFFSET(InputPriceData!F$15,CalculationsAndCharts!$A127+$A$11,IF($C$7,8,0),1,1) -> 206.77 | H127: 205.1950007 | I127: 204.4071991 | J127: 0.7878015641 | K127: 0.6206313043 | L127: 1.183523756 | M127: -1.183523756 | Q127: 64931200
A128: 96 | B128: =OFFSET(InputPriceData!B$15,CalculationsAndCharts!$A128+$A$11,0,1,1) -> 2015-11-20 | C128: =OFFSET(InputPriceData!G$15,CalculationsAndCharts!$A128+$A$11,IF($C$7,8,0),1,1) -> 94011500 | D128: =OFFSET(InputPriceData!C$15,CalculationsAndCharts!$A128+$A$11,IF($C$7,8,0),1,1) -> 207.14 | E128: =OFFSET(InputPriceData!D$15,CalculationsAndCharts!$A128+$A$11,IF($C$7,8,0),1,1) -> 207.81 | F128: =OFFSET(InputPriceData!E$15,CalculationsAndCharts!$A128+$A$11,IF($C$7,8,0),1,1) -> 206.56 | G128: =OFFSET(InputPriceData!F$15,CalculationsAndCharts!$A128+$A$11,IF($C$7,8,0),1,1) -> 207 | H128: 204.9700008 | I128: 204.192399 | J128: 0.7776017403 | K128: 0.6046644666 | L128: 1.201660974 | M128: -1.201660974 | Q128: 94011500
A129: 97 | B129: =OFFSET(InputPriceData!B$15,CalculationsAndCharts!$A129+$A$11,0,1,1) -> 2015-11-19 | C129: =OFFSET(InputPriceData!G$15,CalculationsAndCharts!$A129+$A$11,IF($C$7,8,0),1,1) -> 88220500 | D129: =OFFSET(InputPriceData!C$15,CalculationsAndCharts!$A129+$A$11,IF($C$7,8,0),1,1) -> 206.29 | E129: =OFFSET(InputPriceData!D$15,CalculationsAndCharts!$A129+$A$11,IF($C$7,8,0),1,1) -> 206.75 | F129: =OFFSET(InputPriceData!E$15,CalculationsAndCharts!$A129+$A$11,IF($C$7,8,0),1,1) -> 205.91 | G129: =OFFSET(InputPriceData!F$15,CalculationsAndCharts!$A129+$A$11,IF($C$7,8,0),1,1) -> 206.25 | H129: 204.6800009 | I129: 203.9371626 | J129: 0.7428383012 | K129: 0.5518087417 | L129: 1.222421413 | M129: -1.222421413 | Q129: 88220500
A130: 98 | B130: =OFFSET(InputPriceData!B$15,CalculationsAndCharts!$A130+$A$11,0,1,1) -> 2015-11-18 | C130: =OFFSET(InputPriceData!G$15,CalculationsAndCharts!$A130+$A$11,IF($C$7,8,0),1,1) -> 121342500 | D130: =OFFSET(InputPriceData!C$15,CalculationsAndCharts!$A130+$A$11,IF($C$7,8,0),1,1) -> 203.77 | E130: =OFFSET(InputPriceData!D$15,CalculationsAndCharts!$A130+$A$11,IF($C$7,8,0),1,1) -> 206.6 | F130: =OFFSET(InputPriceData!E$15,CalculationsAndCharts!$A130+$A$11,IF($C$7,8,0),1,1) -> 203.72 | G130: =OFFSET(InputPriceData!F$15,CalculationsAndCharts!$A130+$A$11,IF($C$7,8,0),1,1) -> 206.43 | H130: 204.4557153 | I130: 203.7269046 | J130: 0.7288106588 | K130: 0.5311649764 | L130: 1.247294051 | M130: -1.247294051 | P130: 121342500
A131: 99 | B131: =OFFSET(InputPriceData!B$15,CalculationsAndCharts!$A131+$A$11,0,1,1) -> 2015-11-17 | C131: =OFFSET(InputPriceData!G$15,CalculationsAndCharts!$A131+$A$11,IF($C$7,8,0),1,1) -> 121123700 | D131: =OFFSET(InputPriceData!C$15,CalculationsAndCharts!$A131+$A$11,IF($C$7,8,0),1,1) -> 203.72 | E131: =OFFSET(InputPriceData!D$15,CalculationsAndCharts!$A131+$A$11,IF($C$7,8,0),1,1) -> 204.76 | F131: =OFFSET(InputPriceData!E$15,CalculationsAndCharts!$A131+$A$11,IF($C$7,8,0),1,1) -> 202.62 | G131: =OFFSET(InputPriceData!F$15,CalculationsAndCharts!$A131+$A$11,IF($C$7,8,0),1,1) -> 203.21 | H131: 204.1736746 | I131: 203.4811687 | J131: 0.6925059273 | K131: 0.4795644594 | L131: 1.274917204 | M131: -1.274917204 | Q131: 121123700
A132: 100 | B132: =OFFSET(InputPriceData!B$15,CalculationsAndCharts!$A132+$A$11,0,1,1) -> 2015-11-16 | C132: =OFFSET(InputPriceData!G$15,CalculationsAndCharts!$A132+$A$11,IF($C$7,8,0),1,1) -> 117645200 | D132: =OFFSET(InputPriceData!C$15,CalculationsAndCharts!$A132+$A$11,IF($C$7,8,0),1,1) -> 200.09 | E132: =OFFSET(InputPriceData!D$15,CalculationsAndCharts!$A132+$A$11,IF($C$7,8,0),1,1) -> 203.42 | F132: =OFFSET(InputPriceData!E$15,CalculationsAndCharts!$A132+$A$11,IF($C$7,8,0),1,1) -> 199.95 | G132: =OFFSET(InputPriceData!F$15,CalculationsAndCharts!$A132+$A$11,IF($C$7,8,0),1,1) -> 203.35 | H132: 204.3113424 | I132: 203.5058204 | J132: 0.8055220293 | K132: 0.6488657396 | L132: 1.30374641 | M132: -1.30374641 | P132: 117645200
A133: 101 | B133: =OFFSET(InputPriceData!B$15,CalculationsAndCharts!$A133+$A$11,0,1,1) -> 2015-11-13 | C133: =OFFSET(InputPriceData!G$15,CalculationsAndCharts!$A133+$A$11,IF($C$7,8,0),1,1) -> 153577100 | D133: =OFFSET(InputPriceData!C$15,CalculationsAndCharts!$A133+$A$11,IF($C$7,8,0),1,1) -> 202.1 | E133: =OFFSET(InputPriceData!D$15,CalculationsAndCharts!$A133+$A$11,IF($C$7,8,0),1,1) -> 202.42 | F133: =OFFSET(InputPriceData!E$15,CalculationsAndCharts!$A133+$A$11,IF($C$7,8,0),1,1) -> 200.21 | G133: =OFFSET(InputPriceData!F$15,CalculationsAndCharts!$A133+$A$11,IF($C$7,8,0),1,1) -> 200.31 | H133: 204.448677 | I133: 203.5199858 | J133: 0.928691169 | K133: 0.8624672873 | L133: 1.335935178 | M133: -1.335935178 | Q133: 153577100
A134: 102 | B134: =OFFSET(InputPriceData!B$15,CalculationsAndCharts!$A134+$A$11,0,1,1) -> 2015-11-12 | C134: =OFFSET(InputPriceData!G$15,CalculationsAndCharts!$A134+$A$11,IF($C$7,8,0),1,1) -> 121315200 | D134: =OFFSET(InputPriceData!C$15,CalculationsAndCharts!$A134+$A$11,IF($C$7,8,0),1,1) -> 204.22 | E134: =OFFSET(InputPriceData!D$15,CalculationsAndCharts!$A134+$A$11,IF($C$7,8,0),1,1) -> 204.78 | F134: =OFFSET(InputPriceData!E$15,CalculationsAndCharts!$A134+$A$11,IF($C$7,8,0),1,1) -> 202.56 | G134: =OFFSET(InputPriceData!F$15,CalculationsAndCharts!$A134+$A$11,IF($C$7,8,0),1,1) -> 202.58 | H134: 205.0399166 | I134: 203.8118027 | J134: 1.228113847 | K134: 1.508263622 | L134: 1.363520462 | M134: -1.363520462 | Q134: 121315200
A135: 103 | B135: =OFFSET(InputPriceData!B$15,CalculationsAndCharts!$A135+$A$11,0,1,1) -> 2015-11-11 | C135: =OFFSET(InputPriceData!G$15,CalculationsAndCharts!$A135+$A$11,IF($C$7,8,0),1,1) -> 67846000 | D135: =OFFSET(InputPriceData!C$15,CalculationsAndCharts!$A135+$A$11,IF($C$7,8,0),1,1) -> 206.58 | E135: =OFFSET(InputPriceData!D$15,CalculationsAndCharts!$A135+$A$11,IF($C$7,8,0),1,1) -> 206.64 | F135: =OFFSET(InputPriceData!E$15,CalculationsAndCharts!$A135+$A$11,IF($C$7,8,0),1,1) -> 205.37 | G135: =OFFSET(InputPriceData!F$15,CalculationsAndCharts!$A135+$A$11,IF($C$7,8,0),1,1) -> 205.45 | H135: 205.3913332 | I135: 203.9237848 | J135: 1.467548436 | K135: 2.153698411 | L135: 1.386986583 | M135: -1.386986583 | Q135: 67846000
A136: 104 | B136: =OFFSET(InputPriceData!B$15,CalculationsAndCharts!$A136+$A$11,0,1,1) -> 2015-11-10 | C136: =OFFSET(InputPriceData!G$15,CalculationsAndCharts!$A136+$A$11,IF($C$7,8,0),1,1) -> 75874600 | D136: =OFFSET(InputPriceData!C$15,CalculationsAndCharts!$A136+$A$11,IF($C$7,8,0),1,1) -> 205.22 | E136: =OFFSET(InputPriceData!D$15,CalculationsAndCharts!$A136+$A$11,IF($C$7,8,0),1,1) -> 206.3 | F136: =OFFSET(InputPriceData!E$15,CalculationsAndCharts!$A136+$A$11,IF($C$7,8,0),1,1) -> 204.91 | G136: =OFFSET(InputPriceData!F$15,CalculationsAndCharts!$A136+$A$11,IF($C$7,8,0),1,1) -> 206.26 | H136: 205.3829523 | I136: 203.785038 | J136: 1.597914306 | K136: 2.553330129 | L136: 1.405716276 | M136: -1.405716276 | P136: 75874600
A137: 105 | B137: =OFFSET(InputPriceData!B$15,CalculationsAndCharts!$A137+$A$11,0,1,1) -> 2015-11-09 | C137: =OFFSET(InputPriceData!G$15,CalculationsAndCharts!$A137+$A$11,IF($C$7,8,0),1,1) -> 131008700 | D137: =OFFSET(InputPriceData!C$15,CalculationsAndCharts!$A137+$A$11,IF($C$7,8,0),1,1) -> 207 | E137: =OFFSET(InputPriceData!D$15,CalculationsAndCharts!$A137+$A$11,IF($C$7,8,0),1,1) -> 207.18 | F137: =OFFSET(InputPriceData!E$15,CalculationsAndCharts!$A137+$A$11,IF($C$7,8,0),1,1) -> 204.67 | G137: =OFFSET(InputPriceData!F$15,CalculationsAndCharts!$A137+$A$11,IF($C$7,8,0),1,1) -> 205.79 | H137: 205.2576597 | I137: 203.5600414 | J137: 1.697618322 | K137: 2.881907968 | L137: 1.415382039 | M137: -1.415382039 | Q137: 131008700
A138: 106 | B138: =OFFSET(InputPriceData!B$15,CalculationsAndCharts!$A138+$A$11,0,1,1) -> 2015-11-06 | C138: =OFFSET(InputPriceData!G$15,CalculationsAndCharts!$A138+$A$11,IF($C$7,8,0),1,1) -> 110471500 | D138: =OFFSET(InputPriceData!C$15,CalculationsAndCharts!$A138+$A$11,IF($C$7,8,0),1,1) -> 207.43 | E138: =OFFSET(InputPriceData!D$15,CalculationsAndCharts!$A138+$A$11,IF($C$7,8,0),1,1) -> 208 | F138: =OFFSET(InputPriceData!E$15,CalculationsAndCharts!$A138+$A$11,IF($C$7,8,0),1,1) -> 206.16 | G138: =OFFSET(InputPriceData!F$15,CalculationsAndCharts!$A138+$A$11,IF($C$7,8,0),1,1) -> 207.73 | H138: 205.1816111 | I138: 203.3573179 | J138: 1.824293222 | K138: 3.328045758 | L138: 1.423243289 | M138: -1.423243289 | P138: 110471500
A139: 107 | B139: =OFFSET(InputPriceData!B$15,CalculationsAndCharts!$A139+$A$11,0,1,1) -> 2015-11-05 | C139: =OFFSET(InputPriceData!G$15,CalculationsAndCharts!$A139+$A$11,IF($C$7,8,0),1,1) -> 78408700 | D139: =OFFSET(InputPriceData!C$15,CalculationsAndCharts!$A139+$A$11,IF($C$7,8,0),1,1) -> 208.11 | E139: =OFFSET(InputPriceData!D$15,CalculationsAndCharts!$A139+$A$11,IF($C$7,8,0),1,1) -> 208.66 | F139: =OFFSET(InputPriceData!E$15,CalculationsAndCharts!$A139+$A$11,IF($C$7,8,0),1,1) -> 206.79 | G139: =OFFSET(InputPriceData!F$15,CalculationsAndCharts!$A139+$A$11,IF($C$7,8,0),1,1) -> 207.83 | H139: 204.8175556 | I139: 202.9598014 | J139: 1.857754223 | K139: 3.451250753 | L139: 1.430281723 | M139: -1.430281723 | Q139: 78408700
A140: 108 | B140: =OFFSET(InputPriceData!B$15,CalculationsAndCharts!$A140+$A$11,0,1,1) -> 2015-11-04 | C140: =OFFSET(InputPriceData!G$15,CalculationsAndCharts!$A140+$A$11,IF($C$7,8,0),1,1) -> 96224500 | D140: =OFFSET(InputPriceData!C$15,CalculationsAndCharts!$A140+$A$11,IF($C$7,8,0),1,1) -> 209.02 | E140: =OFFSET(InputPriceData!D$15,CalculationsAndCharts!$A140+$A$11,IF($C$7,8,0),1,1) -> 209.17 | F140: =OFFSET(InputPriceData!E$15,CalculationsAndCharts!$A140+$A$11,IF($C$7,8,0),1,1) -> 207.41 | G140: =OFFSET(InputPriceData!F$15,CalculationsAndCharts!$A140+$A$11,IF($C$7,8,0),1,1) -> 208.04 | H140: 204.3872064 | I140: 202.517056 | J140: 1.870150352 | K140: 3.497462338 | L140: 1.43862944 | M140: -1.43862944 | Q140: 96224500
A141: 109 | B141: =OFFSET(InputPriceData!B$15,CalculationsAndCharts!$A141+$A$11,0,1,1) -> 2015-11-03 | C141: =OFFSET(InputPriceData!G$15,CalculationsAndCharts!$A141+$A$11,IF($C$7,8,0),1,1) -> 95246100 | D141: =OFFSET(InputPriceData!C$15,CalculationsAndCharts!$A141+$A$11,IF($C$7,8,0),1,1) -> 207.66 | E141: =OFFSET(InputPriceData!D$15,CalculationsAndCharts!$A141+$A$11,IF($C$7,8,0),1,1) -> 209.33 | F141: =OFFSET(InputPriceData!E$15,CalculationsAndCharts!$A141+$A$11,IF($C$7,8,0),1,1) -> 207.39 | G141: =OFFSET(InputPriceData!F$15,CalculationsAndCharts!$A141+$A$11,IF($C$7,8,0),1,1) -> 208.68 | H141: 203.8653787 | I141: 202.0149702 | J141: 1.850408508 | K141: 3.424011645 | L141: 1.441427702 | M141: -1.441427702 | P141: 95246100
A142: 110 | B142: =OFFSET(InputPriceData!B$15,CalculationsAndCharts!$A142+$A$11,0,1,1) -> 2015-11-02 | C142: =OFFSET(InputPriceData!G$15,CalculationsAndCharts!$A142+$A$11,IF($C$7,8,0),1,1) -> 86270800 | D142: =OFFSET(InputPriceData!C$15,CalculationsAndCharts!$A142+$A$11,IF($C$7,8,0),1,1) -> 206.02 | E142: =OFFSET(InputPriceData!D$15,CalculationsAndCharts!$A142+$A$11,IF($C$7,8,0),1,1) -> 208.3 | F142: =OFFSET(InputPriceData!E$15,CalculationsAndCharts!$A142+$A$11,IF($C$7,8,0),1,1) -> 205.88 | G142: =OFFSET(InputPriceData!F$15,CalculationsAndCharts!$A142+$A$11,IF($C$7,8,0),1,1) -> 208.07 | H142: 203.1775757 | I142: 201.4090584 | J142: 1.768517267 | K142: 3.127653323 | L142: 1.43039119 | M142: -1.43039119 | P142: 86270800
A143: 111 | B143: =OFFSET(InputPriceData!B$15,CalculationsAndCharts!$A143+$A$11,0,1,1) -> 2015-10-30 | C143: =OFFSET(InputPriceData!G$15,CalculationsAndCharts!$A143+$A$11,IF($C$7,8,0),1,1) -> 131076900 | D143: =OFFSET(InputPriceData!C$15,CalculationsAndCharts!$A143+$A$11,IF($C$7,8,0),1,1) -> 206.76 | E143: =OFFSET(InputPriceData!D$15,CalculationsAndCharts!$A143+$A$11,IF($C$7,8,0),1,1) -> 207.13 | F143: =OFFSET(InputPriceData!E$15,CalculationsAndCharts!$A143+$A$11,IF($C$7,8,0),1,1) -> 205.45 | G143: =OFFSET(InputPriceData!F$15,CalculationsAndCharts!$A143+$A$11,IF($C$7,8,0),1,1) -> 205.64 | H143: 202.4786579 | I143: 200.8035183 | J143: 1.675139652 | K143: 2.806092852 | L143: 1.41164404 | M143: -1.41164404 | Q143: 131076900
A144: 112 | B144: =OFFSET(InputPriceData!B$15,CalculationsAndCharts!$A144+$A$11,0,1,1) -> 2015-10-29 | C144: =OFFSET(InputPriceData!G$15,CalculationsAndCharts!$A144+$A$11,IF($C$7,8,0),1,1) -> 90525500 | D144: =OFFSET(InputPriceData!C$15,CalculationsAndCharts!$A144+$A$11,IF($C$7,8,0),1,1) -> 206.05 | E144: =OFFSET(InputPriceData!D$15,CalculationsAndCharts!$A144+$A$11,IF($C$7,8,0),1,1) -> 206.96 | F144: =OFFSET(InputPriceData!E$15,CalculationsAndCharts!$A144+$A$11,IF($C$7,8,0),1,1) -> 205.92 | G144: =OFFSET(InputPriceData!F$15,CalculationsAndCharts!$A144+$A$11,IF($C$7,8,0),1,1) -> 206.53 | H144: 202.0270376 | I144: 200.3638381 | J144: 1.663199512 | K144: 2.766232618 | L144: 1.392095272 | M144: -1.392095272 | P144: 90525500
A145: 113 | B145: =OFFSET(InputPriceData!B$15,CalculationsAndCharts!$A145+$A$11,0,1,1) -> 2015-10-28 | C145: =OFFSET(InputPriceData!G$15,CalculationsAndCharts!$A145+$A$11,IF($C$7,8,0),1,1) -> 135906700 | D145: =OFFSET(InputPriceData!C$15,CalculationsAndCharts!$A145+$A$11,IF($C$7,8,0),1,1) -> 204.72 | E145: =OFFSET(InputPriceData!D$15,CalculationsAndCharts!$A145+$A$11,IF($C$7,8,0),1,1) -> 206.68 | F145: =OFFSET(InputPriceData!E$15,CalculationsAndCharts!$A145+$A$11,IF($C$7,8,0),1,1) -> 203.94 | G145: =OFFSET(InputPriceData!F$15,CalculationsAndCharts!$A145+$A$11,IF($C$7,8,0),1,1) -> 206.65 | H145: 201.3837573 | I145: 199.803278 | J145: 1.580479345 | K145: 2.49791496 | L145: 1.372090365 | M145: -1.372090365 | P145: 135906700
A146: 114 | B146: =OFFSET(InputPriceData!B$15,CalculationsAndCharts!$A146+$A$11,0,1,1) -> 2015-10-27 | C146: =OFFSET(InputPriceData!G$15,CalculationsAndCharts!$A146+$A$11,IF($C$7,8,0),1,1) -> 77905800 | D146: =OFFSET(InputPriceData!C$15,CalculationsAndCharts!$A146+$A$11,IF($C$7,8,0),1,1) -> 203.93 | E146: =OFFSET(InputPriceData!D$15,CalculationsAndCharts!$A146+$A$11,IF($C$7,8,0),1,1) -> 204.72 | F146: =OFFSET(InputPriceData!E$15,CalculationsAndCharts!$A146+$A$11,IF($C$7,8,0),1,1) -> 203.52 | G146: =OFFSET(InputPriceData!F$15,CalculationsAndCharts!$A146+$A$11,IF($C$7,8,0),1,1) -> 204.32 | H146: 200.6314369 | I146: 199.1808487 | J146: 1.450588236 | K146: 2.10420623 | L146: 1.353764307 | M146: -1.353764307 | P146: 77905800
A147: 115 | B147: =OFFSET(InputPriceData!B$15,CalculationsAndCharts!$A147+$A$11,0,1,1) -> 2015-10-26 | C147: =OFFSET(InputPriceData!G$15,CalculationsAndCharts!$A147+$A$11,IF($C$7,8,0),1,1) -> 69033000 | D147: =OFFSET(InputPriceData!C$15,CalculationsAndCharts!$A147+$A$11,IF($C$7,8,0),1,1) -> 205.02 | E147: =OFFSET(InputPriceData!D$15,CalculationsAndCharts!$A147+$A$11,IF($C$7,8,0),1,1) -> 205.09 | F147: =OFFSET(InputPriceData!E$15,CalculationsAndCharts!$A147+$A$11,IF($C$7,8,0),1,1) -> 204.28 | G147: =OFFSET(InputPriceData!F$15,CalculationsAndCharts!$A147+$A$11,IF($C$7,8,0),1,1) -> 204.72 | H147: 200.1044993 | I147: 198.7136531 | J147: 1.390846227 | K147: 1.934453226 | L147: 1.338130975 | M147: -1.338130975 | Q147: 69033000
A148: 116 | B148: =OFFSET(InputPriceData!B$15,CalculationsAndCharts!$A148+$A$11,0,1,1) -> 2015-10-23 | C148: =OFFSET(InputPriceData!G$15,CalculationsAndCharts!$A148+$A$11,IF($C$7,8,0),1,1) -> 144442300 | D148: =OFFSET(InputPriceData!C$15,CalculationsAndCharts!$A148+$A$11,IF($C$7,8,0),1,1) -> 204.97 | E148: =OFFSET(InputPriceData!D$15,CalculationsAndCharts!$A148+$A$11,IF($C$7,8,0),1,1) -> 205.66 | F148: =OFFSET(InputPriceData!E$15,CalculationsAndCharts!$A148+$A$11,IF($C$7,8,0),1,1) -> 204.03 | G148: =OFFSET(InputPriceData!F$15,CalculationsAndCharts!$A148+$A$11,IF($C$7,8,0),1,1) -> 205.22 | H148: 199.4451421 | I148: 198.1676216 | J148: 1.277520524 | K148: 1.632058689 | L148: 1.323626108 | M148: -1.323626108 | P148: 144442300
A149: 117 | B149: =OFFSET(InputPriceData!B$15,CalculationsAndCharts!$A149+$A$11,0,1,1) -> 2015-10-22 | C149: =OFFSET(InputPriceData!G$15,CalculationsAndCharts!$A149+$A$11,IF($C$7,8,0),1,1) -> 174911700 | D149: =OFFSET(InputPriceData!C$15,CalculationsAndCharts!$A149+$A$11,IF($C$7,8,0),1,1) -> 200.74 | E149: =OFFSET(InputPriceData!D$15,CalculationsAndCharts!$A149+$A$11,IF($C$7,8,0),1,1) -> 203.25 | F149: =OFFSET(InputPriceData!E$15,CalculationsAndCharts!$A149+$A$11,IF($C$7,8,0),1,1) -> 199.63 | G149: =OFFSET(InputPriceData!F$15,CalculationsAndCharts!$A149+$A$11,IF($C$7,8,0),1,1) -> 203 | H149: 198.6201624 | I149: 197.5264962 | J149: 1.093666134 | K149: 1.196105613 | L149: 1.311279743 | M149: -1.311279743 | P149: 174911700
A150: 118 | B150: =OFFSET(InputPriceData!B$15,CalculationsAndCharts!$A150+$A$11,0,1,1) -> 2015-10-21 | C150: =OFFSET(InputPriceData!G$15,CalculationsAndCharts!$A150+$A$11,IF($C$7,8,0),1,1) -> 102038000 | D150: =OFFSET(InputPriceData!C$15,CalculationsAndCharts!$A150+$A$11,IF($C$7,8,0),1,1) -> 201.37 | E150: =OFFSET(InputPriceData!D$15,CalculationsAndCharts!$A150+$A$11,IF($C$7,8,0),1,1) -> 201.54 | F150: =OFFSET(InputPriceData!E$15,CalculationsAndCharts!$A150+$A$11,IF($C$7,8,0),1,1) -> 199.43 | G150: =OFFSET(InputPriceData!F$15,CalculationsAndCharts!$A150+$A$11,IF($C$7,8,0),1,1) -> 199.63 | H150: 197.9944713 | I150: 197.028905 | J150: 0.9655662962 | K150: 0.9323182724 | L150: 1.302143297 | M150: -1.302143297 | Q150: 102038000
A151: 119 | B151: =OFFSET(InputPriceData!B$15,CalculationsAndCharts!$A151+$A$11,0,1,1) -> 2015-10-20 | C151: =OFFSET(InputPriceData!G$15,CalculationsAndCharts!$A151+$A$11,IF($C$7,8,0),1,1) -> 78448500 | D151: =OFFSET(InputPriceData!C$15,CalculationsAndCharts!$A151+$A$11,IF($C$7,8,0),1,1) -> 200.62 | E151: =OFFSET(InputPriceData!D$15,CalculationsAndCharts!$A151+$A$11,IF($C$7,8,0),1,1) -> 201.59 | F151: =OFFSET(InputPriceData!E$15,CalculationsAndCharts!$A151+$A$11,IF($C$7,8,0),1,1) -> 200.32 | G151: =OFFSET(InputPriceData!F$15,CalculationsAndCharts!$A151+$A$11,IF($C$7,8,0),1,1) -> 200.87 | H151: 197.7608243 | I151: 196.7924418 | J151: 0.9683825203 | K151: 0.9377647056 | L151: 1.294969179 | M151: -1.294969179 | P151: 78448500
A152: 120 | B152: =OFFSET(InputPriceData!B$15,CalculationsAndCharts!$A152+$A$11,0,1,1) -> 2015-10-19 | C152: =OFFSET(InputPriceData!G$15,CalculationsAndCharts!$A152+$A$11,IF($C$7,8,0),1,1) -> 76523900 | D152: =OFFSET(InputPriceData!C$15,CalculationsAndCharts!$A152+$A$11,IF($C$7,8,0),1,1) -> 200.27 | E152: =OFFSET(InputPriceData!D$15,CalculationsAndCharts!$A152+$A$11,IF($C$7,8,0),1,1) -> 201.13 | F152: =OFFSET(InputPriceData!E$15,CalculationsAndCharts!$A152+$A$11,IF($C$7,8,0),1,1) -> 199.9 | G152: =OFFSET(InputPriceData!F$15,CalculationsAndCharts!$A152+$A$11,IF($C$7,8,0),1,1) -> 201.13 | H152: 197.3166564 | I152: 196.4217547 | J152: 0.894901676 | K152: 0.8008490097 | L152: 1.287708447 | M152: -1.287708447 | P152: 76523900
A153: 121 | B153: =OFFSET(InputPriceData!B$15,CalculationsAndCharts!$A153+$A$11,0,1,1) -> 2015-10-16 | C153: =OFFSET(InputPriceData!G$15,CalculationsAndCharts!$A153+$A$11,IF($C$7,8,0),1,1) -> 109692900 | D153: =OFFSET(InputPriceData!C$15,CalculationsAndCharts!$A153+$A$11,IF($C$7,8,0),1,1) -> 200.6 | E153: =OFFSET(InputPriceData!D$15,CalculationsAndCharts!$A153+$A$11,IF($C$7,8,0),1,1) -> 201.05 | F153: =OFFSET(InputPriceData!E$15,CalculationsAndCharts!$A153+$A$11,IF($C$7,8,0),1,1) -> 199.7 | G153: =OFFSET(InputPriceData!F$15,CalculationsAndCharts!$A153+$A$11,IF($C$7,8,0),1,1) -> 201.03 | H153: 196.771893 | I153: 195.9937324 | J153: 0.7781606016 | K153: 0.6055339219 | L153: 1.281484373 | M153: -1.281484373 | P153: 109692900
A154: 122 | B154: =OFFSET(InputPriceData!B$15,CalculationsAndCharts!$A154+$A$11,0,1,1) -> 2015-10-15 | C154: =OFFSET(InputPriceData!G$15,CalculationsAndCharts!$A154+$A$11,IF($C$7,8,0),1,1) -> 134142200 | D154: =OFFSET(InputPriceData!C$15,CalculationsAndCharts!$A154+$A$11,IF($C$7,8,0),1,1) -> 197.88 | E154: =OFFSET(InputPriceData!D$15,CalculationsAndCharts!$A154+$A$11,IF($C$7,8,0),1,1) -> 200.13 | F154: =OFFSET(InputPriceData!E$15,CalculationsAndCharts!$A154+$A$11,IF($C$7,8,0),1,1) -> 197.44 | G154: =OFFSET(InputPriceData!F$15,CalculationsAndCharts!$A154+$A$11,IF($C$7,8,0),1,1) -> 200.12 | H154: 196.163592 | I154: 195.5358899 | J154: 0.6277021114 | K154: 0.3940099407 | L154: 1.276761144 | M154: -1.276761144 | P154: 134142200
A155: 123 | B155: =OFFSET(InputPriceData!B$15,CalculationsAndCharts!$A155+$A$11,0,1,1) -> 2015-10-14 | C155: =OFFSET(InputPriceData!G$15,CalculationsAndCharts!$A155+$A$11,IF($C$7,8,0),1,1) -> 99106200 | D155: =OFFSET(InputPriceData!C$15,CalculationsAndCharts!$A155+$A$11,IF($C$7,8,0),1,1) -> 197.97 | E155: =OFFSET(InputPriceData!D$15,CalculationsAndCharts!$A155+$A$11,IF($C$7,8,0),1,1) -> 198.66 | F155: =OFFSET(InputPriceData!E$15,CalculationsAndCharts!$A155+$A$11,IF($C$7,8,0),1,1) -> 196.75 | G155: =OFFSET(InputPriceData!F$15,CalculationsAndCharts!$A155+$A$11,IF($C$7,8,0),1,1) -> 197.09 | H155: 195.5983909 | I155: 195.1191526 | J155: 0.4792382521 | K155: 0.2296693023 | L155: 1.273762355 | M155: -1.273762355 | Q155: 99106200
A156: 124 | B156: =OFFSET(InputPriceData!B$15,CalculationsAndCharts!$A156+$A$11,0,1,1) -> 2015-10-13 | C156: =OFFSET(InputPriceData!G$15,CalculationsAndCharts!$A156+$A$11,IF($C$7,8,0),1,1) -> 88038700 | D156: =OFFSET(InputPriceData!C$15,CalculationsAndCharts!$A156+$A$11,IF($C$7,8,0),1,1) -> 198.44 | E156: =OFFSET(InputPriceData!D$15,CalculationsAndCharts!$A156+$A$11,IF($C$7,8,0),1,1) -> 199.93 | F156: =OFFSET(InputPriceData!E$15,CalculationsAndCharts!$A156+$A$11,IF($C$7,8,0),1,1) -> 197.85 | G156: =OFFSET(InputPriceData!F$15,CalculationsAndCharts!$A156+$A$11,IF($C$7,8,0),1,1) -> 198.04 | H156: 195.3853039 | I156: 194.9399847 | J156: 0.4453191775 | K156: 0.1983091698 | L156: 1.272047026 | M156: -1.272047026 | Q156: 88038700
A157: 125 | B157: =OFFSET(InputPriceData!B$15,CalculationsAndCharts!$A157+$A$11,0,1,1) -> 2015-10-12 | C157: =OFFSET(InputPriceData!G$15,CalculationsAndCharts!$A157+$A$11,IF($C$7,8,0),1,1) -> 56395600 | D157: =OFFSET(InputPriceData!C$15,CalculationsAndCharts!$A157+$A$11,IF($C$7,8,0),1,1) -> 199.2 | E157: =OFFSET(InputPriceData!D$15,CalculationsAndCharts!$A157+$A$11,IF($C$7,8,0),1,1) -> 199.54 | F157: =OFFSET(InputPriceData!E$15,CalculationsAndCharts!$A157+$A$11,IF($C$7,8,0),1,1) -> 198.7 | G157: =OFFSET(InputPriceData!F$15,CalculationsAndCharts!$A157+$A$11,IF($C$7,8,0),1,1) -> 199.3 | H157: 195.0060615 | I157: 194.6581651 | J157: 0.3478964458 | K157: 0.121031937 | L157: 1.270638795 | M157: -1.270638795 | P157: 56395600
A158: 126 | B158: =OFFSET(InputPriceData!B$15,CalculationsAndCharts!$A158+$A$11,0,1,1) -> 2015-10-09 | C158: =OFFSET(InputPriceData!G$15,CalculationsAndCharts!$A158+$A$11,IF($C$7,8,0),1,1) -> 107069200 | D158: =OFFSET(InputPriceData!C$15,CalculationsAndCharts!$A158+$A$11,IF($C$7,8,0),1,1) -> 199.16 | E158: =OFFSET(InputPriceData!D$15,CalculationsAndCharts!$A158+$A$11,IF($C$7,8,0),1,1) -> 199.68 | F158: =OFFSET(InputPriceData!E$15,CalculationsAndCharts!$A158+$A$11,IF($C$7,8,0),1,1) -> 198.37 | G158: =OFFSET(InputPriceData!F$15,CalculationsAndCharts!$A158+$A$11,IF($C$7,8,0),1,1) -> 199.11 | H158: 194.3926418 | I158: 194.2361801 | J158: 0.1564616576 | K158: 0.02448025029 | L158: 1.269877931 | M158: -1.269877931 | Q158: 107069200
A159: 127 | B159: =OFFSET(InputPriceData!B$15,CalculationsAndCharts!$A159+$A$11,0,1,1) -> 2015-10-08 | C159: =OFFSET(InputPriceData!G$15,CalculationsAndCharts!$A159+$A$11,IF($C$7,8,0),1,1) -> 153055200 | D159: =OFFSET(InputPriceData!C$15,CalculationsAndCharts!$A159+$A$11,IF($C$7,8,0),1,1) -> 196.76 | E159: =OFFSET(InputPriceData!D$15,CalculationsAndCharts!$A159+$A$11,IF($C$7,8,0),1,1) -> 199.33 | F159: =OFFSET(InputPriceData!E$15,CalculationsAndCharts!$A159+$A$11,IF($C$7,8,0),1,1) -> 196.4 | G159: =OFFSET(InputPriceData!F$15,CalculationsAndCharts!$A159+$A$11,IF($C$7,8,0),1,1) -> 198.99 | H159: 193.7187334 | I159: 193.7931056 | J159: -0.07437212587 | K159: 0.005531213106 | L159: 1.269839204 | M159: -1.269839204 | P159: 153055200
A160: 128 | B160: =OFFSET(InputPriceData!B$15,CalculationsAndCharts!$A160+$A$11,0,1,1) -> 2015-10-07 | C160: =OFFSET(InputPriceData!G$15,CalculationsAndCharts!$A160+$A$11,IF($C$7,8,0),1,1) -> 124307300 | D160: =OFFSET(InputPriceData!C$15,CalculationsAndCharts!$A160+$A$11,IF($C$7,8,0),1,1) -> 196.71 | E160: =OFFSET(InputPriceData!D$15,CalculationsAndCharts!$A160+$A$11,IF($C$7,8,0),1,1) -> 197.63 | F160: =OFFSET(InputPriceData!E$15,CalculationsAndCharts!$A160+$A$11,IF($C$7,8,0),1,1) -> 195.3 | G160: =OFFSET(InputPriceData!F$15,CalculationsAndCharts!$A160+$A$11,IF($C$7,8,0),1,1) -> 197.21 | H160: 192.9656954 | I160: 193.3206606 | J160: -0.3549652568 | K160: 0.1260003336 | L160: 1.269876177 | M160: -1.269876177 | P160: 124307300
A161: 129 | B161: =OFFSET(InputPriceData!B$15,CalculationsAndCharts!$A161+$A$11,0,1,1) -> 2015-10-06 | C161: =OFFSET(InputPriceData!G$15,CalculationsAndCharts!$A161+$A$11,IF($C$7,8,0),1,1) -> 110274500 | D161: =OFFSET(InputPriceData!C$15,CalculationsAndCharts!$A161+$A$11,IF($C$7,8,0),1,1) -> 196.13 | E161: =OFFSET(InputPriceData!D$15,CalculationsAndCharts!$A161+$A$11,IF($C$7,8,0),1,1) -> 196.79 | F161: =OFFSET(InputPriceData!E$15,CalculationsAndCharts!$A161+$A$11,IF($C$7,8,0),1,1) -> 194.83 | G161: =OFFSET(InputPriceData!F$15,CalculationsAndCharts!$A161+$A$11,IF($C$7,8,0),1,1) -> 195.61 | H161: 192.3593661 | I161: 192.9670843 | J161: -0.607718183 | K161: =J161*J161 -> 0.3693213899 | L161: =SQRT(SUM(OFFSET(K161,0,0,$A$18,1))/$A$18) -> 1.268906636 | M161: -1.268906636 | Q161: 110274500
A162: 130 | B162: =OFFSET(InputPriceData!B$15,CalculationsAndCharts!$A162+$A$11,0,1,1) -> 2015-10-05 | C162: =OFFSET(InputPriceData!G$15,CalculationsAndCharts!$A162+$A$11,IF($C$7,8,0),1,1) -> 126320800 | D162: =OFFSET(InputPriceData!C$15,CalculationsAndCharts!$A162+$A$11,IF($C$7,8,0),1,1) -> 194.3 | E162: =OFFSET(InputPriceData!D$15,CalculationsAndCharts!$A162+$A$11,IF($C$7,8,0),1,1) -> 196.55 | F162: =OFFSET(InputPriceData!E$15,CalculationsAndCharts!$A162+$A$11,IF($C$7,8,0),1,1) -> 194.17 | G162: =OFFSET(InputPriceData!F$15,CalculationsAndCharts!$A162+$A$11,IF($C$7,8,0),1,1) -> 196.28 | H162: =IF($A162>$A$8,0,IF($A162=$A$8,$G162,$C$16*$G162+$D$16*H163)) -> 191.8949899 | I162: =IF($A162>$A$8,0,IF($A162=$A$8,$G162,$C$17*$G162+$D$17*I163)) -> 192.7268193 | J162: =($C$16 - $C$17)*$G162 + ($C$17*$D$16 - $C$16*$D$17)*$G163 + ($D$16 + $D$17)*J163 - $D$16*$D$17*J164 -> -0.8318293873 | K162: 0.6919401295 | L162: 1.266029862 | M162: =-L162 -> -1.266029862 | P162: =IF(G162>=D162,C162,NA()) -> 126320800 | Q162: =IF(G162<D162,C162,NA()) -> 
A163: 131 | B163: =OFFSET(InputPriceData!B$15,CalculationsAndCharts!$A163+$A$11,0,1,1) -> 2015-10-02 | C163: =OFFSET(InputPriceData!G$15,CalculationsAndCharts!$A163+$A$11,IF($C$7,8,0),1,1) -> 211003300 | D163: =OFFSET(InputPriceData!C$15,CalculationsAndCharts!$A163+$A$11,IF($C$7,8,0),1,1) -> 187.68 | E163: =OFFSET(InputPriceData!D$15,CalculationsAndCharts!$A163+$A$11,IF($C$7,8,0),1,1) -> 192.88 | F163: =OFFSET(InputPriceData!E$15,CalculationsAndCharts!$A163+$A$11,IF($C$7,8,0),1,1) -> 187.04 | G163: =OFFSET(InputPriceData!F$15,CalculationsAndCharts!$A163+$A$11,IF($C$7,8,0),1,1) -> 192.85 | H163: 191.2685599 | I163: 192.4038028 | J163: -1.135242975 | K163: 1.288776611 | L163: 1.260921084 | M163: -1.260921084 | P163: 211003300
A164: 132 | B164: =OFFSET(InputPriceData!B$15,CalculationsAndCharts!$A164+$A$11,0,1,1) -> 2015-10-01 | C164: =OFFSET(InputPriceData!G$15,CalculationsAndCharts!$A164+$A$11,IF($C$7,8,0),1,1) -> 131079000 | D164: =OFFSET(InputPriceData!C$15,CalculationsAndCharts!$A164+$A$11,IF($C$7,8,0),1,1) -> 189.96 | E164: =OFFSET(InputPriceData!D$15,CalculationsAndCharts!$A164+$A$11,IF($C$7,8,0),1,1) -> 190.37 | F164: =OFFSET(InputPriceData!E$15,CalculationsAndCharts!$A164+$A$11,IF($C$7,8,0),1,1) -> 187.73 | G164: =OFFSET(InputPriceData!F$15,CalculationsAndCharts!$A164+$A$11,IF($C$7,8,0),1,1) -> 190.01 | H164: 191.0426398 | I164: 192.3632394 | J164: -1.320599616 | K164: 1.743983346 | L164: 1.251551052 | M164: -1.251551052 | P164: 131079000
A165: 133 | B165: =OFFSET(InputPriceData!B$15,CalculationsAndCharts!$A165+$A$11,0,1,1) -> 2015-09-30 | C165: =OFFSET(InputPriceData!G$15,CalculationsAndCharts!$A165+$A$11,IF($C$7,8,0),1,1) -> 163452000 | D165: =OFFSET(InputPriceData!C$15,CalculationsAndCharts!$A165+$A$11,IF($C$7,8,0),1,1) -> 188.27 | E165: =OFFSET(InputPriceData!D$15,CalculationsAndCharts!$A165+$A$11,IF($C$7,8,0),1,1) -> 189.72 | F165: =OFFSET(InputPriceData!E$15,CalculationsAndCharts!$A165+$A$11,IF($C$7,8,0),1,1) -> 187.35 | G165: =OFFSET(InputPriceData!F$15,CalculationsAndCharts!$A165+$A$11,IF($C$7,8,0),1,1) -> 189.52 | H165: 191.1901598 | I165: 192.5771703 | J165: -1.387010499 | K165: 1.923798125 | L165: 1.23862043 | M165: -1.23862043 | P165: 163452000
A166: 134 | B166: =OFFSET(InputPriceData!B$15,CalculationsAndCharts!$A166+$A$11,0,1,1) -> 2015-09-29 | C166: =OFFSET(InputPriceData!G$15,CalculationsAndCharts!$A166+$A$11,IF($C$7,8,0),1,1) -> 159045600 | D166: =OFFSET(InputPriceData!C$15,CalculationsAndCharts!$A166+$A$11,IF($C$7,8,0),1,1) -> 186.2 | E166: =OFFSET(InputPriceData!D$15,CalculationsAndCharts!$A166+$A$11,IF($C$7,8,0),1,1) -> 187.65 | F166: =OFFSET(InputPriceData!E$15,CalculationsAndCharts!$A166+$A$11,IF($C$7,8,0),1,1) -> 184.87 | G166: =OFFSET(InputPriceData!F$15,CalculationsAndCharts!$A166+$A$11,IF($C$7,8,0),1,1) -> 186.05 | H166: 191.4287541 | I166: 192.8550949 | J166: -1.426340814 | K166: 2.034448118 | L166: 1.223936545 | M166: -1.223936545 | Q166: 159045600
A167: 135 | B167: =OFFSET(InputPriceData!B$15,CalculationsAndCharts!$A167+$A$11,0,1,1) -> 2015-09-28 | C167: =OFFSET(InputPriceData!G$15,CalculationsAndCharts!$A167+$A$11,IF($C$7,8,0),1,1) -> 178515900 | D167: =OFFSET(InputPriceData!C$15,CalculationsAndCharts!$A167+$A$11,IF($C$7,8,0),1,1) -> 189.67 | E167: =OFFSET(InputPriceData!D$15,CalculationsAndCharts!$A167+$A$11,IF($C$7,8,0),1,1) -> 189.8 | F167: =OFFSET(InputPriceData!E$15,CalculationsAndCharts!$A167+$A$11,IF($C$7,8,0),1,1) -> 185.57 | G167: =OFFSET(InputPriceData!F$15,CalculationsAndCharts!$A167+$A$11,IF($C$7,8,0),1,1) -> 185.94 | H167: 192.1971475 | I167: 193.4737399 | J167: -1.276592365 | K167: 1.629688067 | L167: 1.207867897 | M167: -1.207867897 | Q167: 178515900
A168: 136 | B168: =OFFSET(InputPriceData!B$15,CalculationsAndCharts!$A168+$A$11,0,1,1) -> 2015-09-25 | C168: =OFFSET(InputPriceData!G$15,CalculationsAndCharts!$A168+$A$11,IF($C$7,8,0),1,1) -> 155054800 | D168: =OFFSET(InputPriceData!C$15,CalculationsAndCharts!$A168+$A$11,IF($C$7,8,0),1,1) -> 192.5 | E168: =OFFSET(InputPriceData!D$15,CalculationsAndCharts!$A168+$A$11,IF($C$7,8,0),1,1) -> 192.85 | F168: =OFFSET(InputPriceData!E$15,CalculationsAndCharts!$A168+$A$11,IF($C$7,8,0),1,1) -> 189.7 | G168: =OFFSET(InputPriceData!F$15,CalculationsAndCharts!$A168+$A$11,IF($C$7,8,0),1,1) -> 190.75 | H168: 193.0910257 | I168: 194.1586253 | J168: -1.067599593 | K168: 1.139768891 | L168: 1.194534397 | M168: -1.194534397 | Q168: 155054800
A169: 137 | B169: =OFFSET(InputPriceData!B$15,CalculationsAndCharts!$A169+$A$11,0,1,1) -> 2015-09-24 | C169: =OFFSET(InputPriceData!G$15,CalculationsAndCharts!$A169+$A$11,IF($C$7,8,0),1,1) -> 159378800 | D169: =OFFSET(InputPriceData!C$15,CalculationsAndCharts!$A169+$A$11,IF($C$7,8,0),1,1) -> 190.03 | E169: =OFFSET(InputPriceData!D$15,CalculationsAndCharts!$A169+$A$11,IF($C$7,8,0),1,1) -> 191.32 | F169: =OFFSET(InputPriceData!E$15,CalculationsAndCharts!$A169+$A$11,IF($C$7,8,0),1,1) -> 188.46 | G169: =OFFSET(InputPriceData!F$15,CalculationsAndCharts!$A169+$A$11,IF($C$7,8,0),1,1) -> 190.77 | H169: 193.425458 | I169: 194.4685003 | J169: -1.043042376 | K169: 1.087937398 | L169: 1.184960321 | M169: -1.184960321 | P169: 159378800
A170: 138 | B170: =OFFSET(InputPriceData!B$15,CalculationsAndCharts!$A170+$A$11,0,1,1) -> 2015-09-23 | C170: =OFFSET(InputPriceData!G$15,CalculationsAndCharts!$A170+$A$11,IF($C$7,8,0),1,1) -> 92790600 | D170: =OFFSET(InputPriceData!C$15,CalculationsAndCharts!$A170+$A$11,IF($C$7,8,0),1,1) -> 191.97 | E170: =OFFSET(InputPriceData!D$15,CalculationsAndCharts!$A170+$A$11,IF($C$7,8,0),1,1) -> 192.53 | F170: =OFFSET(InputPriceData!E$15,CalculationsAndCharts!$A170+$A$11,IF($C$7,8,0),1,1) -> 190.78 | G170: =OFFSET(InputPriceData!F$15,CalculationsAndCharts!$A170+$A$11,IF($C$7,8,0),1,1) -> 191.47 | H170: 193.8048091 | I170: 194.8047276 | J170: -0.9999185415 | K170: 0.9998370896 | L170: 1.175913876 | M170: -1.175913876 | Q170: 92790600
A171: 139 | B171: =OFFSET(InputPriceData!B$15,CalculationsAndCharts!$A171+$A$11,0,1,1) -> 2015-09-22 | C171: =OFFSET(InputPriceData!G$15,CalculationsAndCharts!$A171+$A$11,IF($C$7,8,0),1,1) -> 153890900 | D171: =OFFSET(InputPriceData!C$15,CalculationsAndCharts!$A171+$A$11,IF($C$7,8,0),1,1) -> 191.74 | E171: =OFFSET(InputPriceData!D$15,CalculationsAndCharts!$A171+$A$11,IF($C$7,8,0),1,1) -> 192.32 | F171: =OFFSET(InputPriceData!E$15,CalculationsAndCharts!$A171+$A$11,IF($C$7,8,0),1,1) -> 190.44 | G171: =OFFSET(InputPriceData!F$15,CalculationsAndCharts!$A171+$A$11,IF($C$7,8,0),1,1) -> 191.76 | H171: 194.1383533 | I171: 195.1078847 | J171: -0.9695314425 | K171: 0.9399912179 | L171: 1.167970477 | M171: -1.167970477 | P171: 153890900
A172: 140 | B172: =OFFSET(InputPriceData!B$15,CalculationsAndCharts!$A172+$A$11,0,1,1) -> 2015-09-21 | C172: =OFFSET(InputPriceData!G$15,CalculationsAndCharts!$A172+$A$11,IF($C$7,8,0),1,1) -> 105726200 | D172: =OFFSET(InputPriceData!C$15,CalculationsAndCharts!$A172+$A$11,IF($C$7,8,0),1,1) -> 194.28 | E172: =OFFSET(InputPriceData!D$15,CalculationsAndCharts!$A172+$A$11,IF($C$7,8,0),1,1) -> 195.5 | F172: =OFFSET(InputPriceData!E$15,CalculationsAndCharts!$A172+$A$11,IF($C$7,8,0),1,1) -> 193.06 | G172: =OFFSET(InputPriceData!F$15,CalculationsAndCharts!$A172+$A$11,IF($C$7,8,0),1,1) -> 194.3 | H172: 194.478118 | I172: 195.4122379 | J172: -0.9341198457 | K172: 0.8725798861 | L172: 1.161367347 | M172: -1.161367347 | P172: 105726200
A173: 141 | B173: =OFFSET(InputPriceData!B$15,CalculationsAndCharts!$A173+$A$11,0,1,1) -> 2015-09-18 | C173: =OFFSET(InputPriceData!G$15,CalculationsAndCharts!$A173+$A$11,IF($C$7,8,0),1,1) -> 223657500 | D173: =OFFSET(InputPriceData!C$15,CalculationsAndCharts!$A173+$A$11,IF($C$7,8,0),1,1) -> 193.55 | E173: =OFFSET(InputPriceData!D$15,CalculationsAndCharts!$A173+$A$11,IF($C$7,8,0),1,1) -> 196.49 | F173: =OFFSET(InputPriceData!E$15,CalculationsAndCharts!$A173+$A$11,IF($C$7,8,0),1,1) -> 192.81 | G173: =OFFSET(InputPriceData!F$15,CalculationsAndCharts!$A173+$A$11,IF($C$7,8,0),1,1) -> 193.3 | H173: 194.5035634 | I173: 195.5133504 | J173: -1.009786948 | K173: 1.01966968 | L173: 1.156443592 | M173: -1.156443592 | Q173: 223657500
A174: 142 | B174: =OFFSET(InputPriceData!B$15,CalculationsAndCharts!$A174+$A$11,0,1,1) -> 2015-09-17 | C174: =OFFSET(InputPriceData!G$15,CalculationsAndCharts!$A174+$A$11,IF($C$7,8,0),1,1) -> 276046600 | D174: =OFFSET(InputPriceData!C$15,CalculationsAndCharts!$A174+$A$11,IF($C$7,8,0),1,1) -> 196.79 | E174: =OFFSET(InputPriceData!D$15,CalculationsAndCharts!$A174+$A$11,IF($C$7,8,0),1,1) -> 199.62 | F174: =OFFSET(InputPriceData!E$15,CalculationsAndCharts!$A174+$A$11,IF($C$7,8,0),1,1) -> 196.07 | G174: =OFFSET(InputPriceData!F$15,CalculationsAndCharts!$A174+$A$11,IF($C$7,8,0),1,1) -> 196.51 | H174: 194.6755011 | I174: 195.7145641 | J174: -1.039062985 | K174: 1.079651887 | L174: 1.150674487 | M174: -1.150674487 | Q174: 276046600
A175: 143 | B175: =OFFSET(InputPriceData!B$15,CalculationsAndCharts!$A175+$A$11,0,1,1) -> 2015-09-16 | C175: =OFFSET(InputPriceData!G$15,CalculationsAndCharts!$A175+$A$11,IF($C$7,8,0),1,1) -> 99581600 | D175: =OFFSET(InputPriceData!C$15,CalculationsAndCharts!$A175+$A$11,IF($C$7,8,0),1,1) -> 195.61 | E175: =OFFSET(InputPriceData!D$15,CalculationsAndCharts!$A175+$A$11,IF($C$7,8,0),1,1) -> 197.18 | F175: =OFFSET(InputPriceData!E$15,CalculationsAndCharts!$A175+$A$11,IF($C$7,8,0),1,1) -> 195.21 | G175: =OFFSET(InputPriceData!F$15,CalculationsAndCharts!$A175+$A$11,IF($C$7,8,0),1,1) -> 196.95 | H175: 194.4134298 | I175: 195.6422517 | J175: -1.228821902 | K175: 1.510003266 | L175: 1.14355058 | M175: -1.14355058 | P175: 99581600
A176: 144 | B176: =OFFSET(InputPriceData!B$15,CalculationsAndCharts!$A176+$A$11,0,1,1) -> 2015-09-15 | C176: =OFFSET(InputPriceData!G$15,CalculationsAndCharts!$A176+$A$11,IF($C$7,8,0),1,1) -> 113806200 | D176: =OFFSET(InputPriceData!C$15,CalculationsAndCharts!$A176+$A$11,IF($C$7,8,0),1,1) -> 193.44 | E176: =OFFSET(InputPriceData!D$15,CalculationsAndCharts!$A176+$A$11,IF($C$7,8,0),1,1) -> 195.78 | F176: =OFFSET(InputPriceData!E$15,CalculationsAndCharts!$A176+$A$11,IF($C$7,8,0),1,1) -> 192.8 | G176: =OFFSET(InputPriceData!F$15,CalculationsAndCharts!$A176+$A$11,IF($C$7,8,0),1,1) -> 195.25 | H176: 194.0510626 | I176: 195.5233655 | J176: -1.472302864 | K176: 2.167675723 | L176: 1.131570797 | M176: -1.131570797 | P176: 113806200
A177: 145 | B177: =OFFSET(InputPriceData!B$15,CalculationsAndCharts!$A177+$A$11,0,1,1) -> 2015-09-14 | C177: =OFFSET(InputPriceData!G$15,CalculationsAndCharts!$A177+$A$11,IF($C$7,8,0),1,1) -> 79452000 | D177: =OFFSET(InputPriceData!C$15,CalculationsAndCharts!$A177+$A$11,IF($C$7,8,0),1,1) -> 193.77 | E177: =OFFSET(InputPriceData!D$15,CalculationsAndCharts!$A177+$A$11,IF($C$7,8,0),1,1) -> 193.83 | F177: =OFFSET(InputPriceData!E$15,CalculationsAndCharts!$A177+$A$11,IF($C$7,8,0),1,1) -> 192.28 | G177: =OFFSET(InputPriceData!F$15,CalculationsAndCharts!$A177+$A$11,IF($C$7,8,0),1,1) -> 192.85 | H177: 193.8797859 | I177: 195.5482169 | J177: -1.668431039 | K177: 2.783662133 | L177: 1.113658862 | M177: -1.113658862 | Q177: 79452000
A178: 146 | B178: =OFFSET(InputPriceData!B$15,CalculationsAndCharts!$A178+$A$11,0,1,1) -> 2015-09-11 | C178: =OFFSET(InputPriceData!G$15,CalculationsAndCharts!$A178+$A$11,IF($C$7,8,0),1,1) -> 119691200 | D178: =OFFSET(InputPriceData!C$15,CalculationsAndCharts!$A178+$A$11,IF($C$7,8,0),1,1) -> 192.23 | E178: =OFFSET(InputPriceData!D$15,CalculationsAndCharts!$A178+$A$11,IF($C$7,8,0),1,1) -> 193.64 | F178: =OFFSET(InputPriceData!E$15,CalculationsAndCharts!$A178+$A$11,IF($C$7,8,0),1,1) -> 191.39 | G178: =OFFSET(InputPriceData!F$15,CalculationsAndCharts!$A178+$A$11,IF($C$7,8,0),1,1) -> 193.57 | H178: 194.0268981 | I178: 195.7935094 | J178: -1.766611219 | K178: 3.120915198 | L178: 1.089443103 | M178: -1.089443103 | P178: 119691200
A179: 147 | B179: =OFFSET(InputPriceData!B$15,CalculationsAndCharts!$A179+$A$11,0,1,1) -> 2015-09-10 | C179: =OFFSET(InputPriceData!G$15,CalculationsAndCharts!$A179+$A$11,IF($C$7,8,0),1,1) -> 158611100 | D179: =OFFSET(InputPriceData!C$15,CalculationsAndCharts!$A179+$A$11,IF($C$7,8,0),1,1) -> 191.42 | E179: =OFFSET(InputPriceData!D$15,CalculationsAndCharts!$A179+$A$11,IF($C$7,8,0),1,1) -> 194.04 | F179: =OFFSET(InputPriceData!E$15,CalculationsAndCharts!$A179+$A$11,IF($C$7,8,0),1,1) -> 191.12 | G179: =OFFSET(InputPriceData!F$15,CalculationsAndCharts!$A179+$A$11,IF($C$7,8,0),1,1) -> 192.69 | H179: 194.0921693 | I179: 195.9956466 | J179: -1.903477271 | K179: 3.623225719 | L179: 1.06124777 | M179: -1.06124777 | P179: 158611100
A180: 148 | B180: =OFFSET(InputPriceData!B$15,CalculationsAndCharts!$A180+$A$11,0,1,1) -> 2015-09-09 | C180: =OFFSET(InputPriceData!G$15,CalculationsAndCharts!$A180+$A$11,IF($C$7,8,0),1,1) -> 149347700 | D180: =OFFSET(InputPriceData!C$15,CalculationsAndCharts!$A180+$A$11,IF($C$7,8,0),1,1) -> 196.1 | E180: =OFFSET(InputPriceData!D$15,CalculationsAndCharts!$A180+$A$11,IF($C$7,8,0),1,1) -> 196.25 | F180: =OFFSET(InputPriceData!E$15,CalculationsAndCharts!$A180+$A$11,IF($C$7,8,0),1,1) -> 191.21 | G180: =OFFSET(InputPriceData!F$15,CalculationsAndCharts!$A180+$A$11,IF($C$7,8,0),1,1) -> 191.65 | H180: 194.2924792 | I180: 196.2961599 | J180: -2.003680695 | K180: 4.014736329 | L180: 1.027147996 | M180: -1.027147996 | Q180: 149347700
A181: 149 | B181: =OFFSET(InputPriceData!B$15,CalculationsAndCharts!$A181+$A$11,0,1,1) -> 2015-09-08 | C181: =OFFSET(InputPriceData!G$15,CalculationsAndCharts!$A181+$A$11,IF($C$7,8,0),1,1) -> 116025700 | D181: =OFFSET(InputPriceData!C$15,CalculationsAndCharts!$A181+$A$11,IF($C$7,8,0),1,1) -> 192.78 | E181: =OFFSET(InputPriceData!D$15,CalculationsAndCharts!$A181+$A$11,IF($C$7,8,0),1,1) -> 194.42 | F181: =OFFSET(InputPriceData!E$15,CalculationsAndCharts!$A181+$A$11,IF($C$7,8,0),1,1) -> 192.02 | G181: =OFFSET(InputPriceData!F$15,CalculationsAndCharts!$A181+$A$11,IF($C$7,8,0),1,1) -> 194.25 | H181: 194.6699762 | I181: 196.7185381 | J181: -2.048561839 | K181: 4.19660561 | L181: 0.9873949984 | M181: -0.9873949984 | P181: 116025700
A182: 150 | B182: =OFFSET(InputPriceData!B$15,CalculationsAndCharts!$A182+$A$11,0,1,1) -> 2015-09-04 | C182: =OFFSET(InputPriceData!G$15,CalculationsAndCharts!$A182+$A$11,IF($C$7,8,0),1,1) -> 207081000 | D182: =OFFSET(InputPriceData!C$15,CalculationsAndCharts!$A182+$A$11,IF($C$7,8,0),1,1) -> 189.74 | E182: =OFFSET(InputPriceData!D$15,CalculationsAndCharts!$A182+$A$11,IF($C$7,8,0),1,1) -> 190.73 | F182: =OFFSET(InputPriceData!E$15,CalculationsAndCharts!$A182+$A$11,IF($C$7,8,0),1,1) -> 188.52 | G182: =OFFSET(InputPriceData!F$15,CalculationsAndCharts!$A182+$A$11,IF($C$7,8,0),1,1) -> 189.48 | H182: 194.7299728 | I182: 196.9429506 | J182: -2.212977787 | K182: 4.897270687 | L182: 0.9440522415 | M182: -0.9440522415 | Q182: 207081000
A183: 151 | B183: =OFFSET(InputPriceData!B$15,CalculationsAndCharts!$A183+$A$11,0,1,1) -> 2015-09-03 | C183: =OFFSET(InputPriceData!G$15,CalculationsAndCharts!$A183+$A$11,IF($C$7,8,0),1,1) -> 152087800 | D183: =OFFSET(InputPriceData!C$15,CalculationsAndCharts!$A183+$A$11,IF($C$7,8,0),1,1) -> 193.09 | E183: =OFFSET(InputPriceData!D$15,CalculationsAndCharts!$A183+$A$11,IF($C$7,8,0),1,1) -> 194.86 | F183: =OFFSET(InputPriceData!E$15,CalculationsAndCharts!$A183+$A$11,IF($C$7,8,0),1,1) -> 191.81 | G183: =OFFSET(InputPriceData!F$15,CalculationsAndCharts!$A183+$A$11,IF($C$7,8,0),1,1) -> 192.4 | H183: 195.4799689 | I183: 197.6214007 | J183: -2.141431725 | K183: 4.585729832 | L183: 0.8908759254 | M183: -0.8908759254 | Q183: 152087800
A184: 152 | B184: =OFFSET(InputPriceData!B$15,CalculationsAndCharts!$A184+$A$11,0,1,1) -> 2015-09-02 | C184: =OFFSET(InputPriceData!G$15,CalculationsAndCharts!$A184+$A$11,IF($C$7,8,0),1,1) -> 160269300 | D184: =OFFSET(InputPriceData!C$15,CalculationsAndCharts!$A184+$A$11,IF($C$7,8,0),1,1) -> 191.48 | E184: =OFFSET(InputPriceData!D$15,CalculationsAndCharts!$A184+$A$11,IF($C$7,8,0),1,1) -> 192.31 | F184: =OFFSET(InputPriceData!E$15,CalculationsAndCharts!$A184+$A$11,IF($C$7,8,0),1,1) -> 189.32 | G184: =OFFSET(InputPriceData!F$15,CalculationsAndCharts!$A184+$A$11,IF($C$7,8,0),1,1) -> 192.26 | H184: 195.9199645 | I184: 198.0960735 | J184: -2.17610895 | K184: 4.73545016 | L184: 0.8381765558 | M184: -0.8381765558 | P184: 160269300
A185: 153 | B185: =OFFSET(InputPriceData!B$15,CalculationsAndCharts!$A185+$A$11,0,1,1) -> 2015-09-01 | C185: =OFFSET(InputPriceData!G$15,CalculationsAndCharts!$A185+$A$11,IF($C$7,8,0),1,1) -> 256000400 | D185: =OFFSET(InputPriceData!C$15,CalculationsAndCharts!$A185+$A$11,IF($C$7,8,0),1,1) -> 190 | E185: =OFFSET(InputPriceData!D$15,CalculationsAndCharts!$A185+$A$11,IF($C$7,8,0),1,1) -> 191.63 | F185: =OFFSET(InputPriceData!E$15,CalculationsAndCharts!$A185+$A$11,IF($C$7,8,0),1,1) -> 187.65 | G185: =OFFSET(InputPriceData!F$15,CalculationsAndCharts!$A185+$A$11,IF($C$7,8,0),1,1) -> 188.68 | H185: 196.4428166 | I185: 198.6266256 | J185: -2.183809009 | K185: 4.76902179 | L185: 0.7800607156 | M185: -0.7800607156 | Q185: 256000400
A186: 154 | B186: =OFFSET(InputPriceData!B$15,CalculationsAndCharts!$A186+$A$11,0,1,1) -> 2015-08-31 | C186: =OFFSET(InputPriceData!G$15,CalculationsAndCharts!$A186+$A$11,IF($C$7,8,0),1,1) -> 163298800 | D186: =OFFSET(InputPriceData!C$15,CalculationsAndCharts!$A186+$A$11,IF($C$7,8,0),1,1) -> 194.91 | E186: =OFFSET(InputPriceData!D$15,CalculationsAndCharts!$A186+$A$11,IF($C$7,8,0),1,1) -> 195.92 | F186: =OFFSET(InputPriceData!E$15,CalculationsAndCharts!$A186+$A$11,IF($C$7,8,0),1,1) -> 193.83 | G186: =OFFSET(InputPriceData!F$15,CalculationsAndCharts!$A186+$A$11,IF($C$7,8,0),1,1) -> 194.48 | H186: 197.5517904 | I186: 199.5308643 | J186: -1.979073902 | K186: 3.916733511 | L186: 0.7164982291 | M186: -0.7164982291 | Q186: 163298800
A187: 155 | B187: =OFFSET(InputPriceData!B$15,CalculationsAndCharts!$A187+$A$11,0,1,1) -> 2015-08-28 | C187: =OFFSET(InputPriceData!G$15,CalculationsAndCharts!$A187+$A$11,IF($C$7,8,0),1,1) -> 160414400 | D187: =OFFSET(InputPriceData!C$15,CalculationsAndCharts!$A187+$A$11,IF($C$7,8,0),1,1) -> 195.3 | E187: =OFFSET(InputPriceData!D$15,CalculationsAndCharts!$A187+$A$11,IF($C$7,8,0),1,1) -> 196.62 | F187: =OFFSET(InputPriceData!E$15,CalculationsAndCharts!$A187+$A$11,IF($C$7,8,0),1,1) -> 194.73 | G187: =OFFSET(InputPriceData!F$15,CalculationsAndCharts!$A187+$A$11,IF($C$7,8,0),1,1) -> 196.07 | H187: 197.9906176 | I187: 199.9900338 | J187: -1.999416185 | K187: 3.997665083 | L187: 0.659588998 | M187: -0.659588998 | P187: 160414400
A188: 156 | B188: =OFFSET(InputPriceData!B$15,CalculationsAndCharts!$A188+$A$11,0,1,1) -> 2015-08-27 | C188: =OFFSET(InputPriceData!G$15,CalculationsAndCharts!$A188+$A$11,IF($C$7,8,0),1,1) -> 274143900 | D188: =OFFSET(InputPriceData!C$15,CalculationsAndCharts!$A188+$A$11,IF($C$7,8,0),1,1) -> 193.84 | E188: =OFFSET(InputPriceData!D$15,CalculationsAndCharts!$A188+$A$11,IF($C$7,8,0),1,1) -> 196.2 | F188: =OFFSET(InputPriceData!E$15,CalculationsAndCharts!$A188+$A$11,IF($C$7,8,0),1,1) -> 192.06 | G188: =OFFSET(InputPriceData!F$15,CalculationsAndCharts!$A188+$A$11,IF($C$7,8,0),1,1) -> 196.06 | H188: 198.2649915 | I188: 200.3464005 | J188: -2.081408952 | K188: 4.332263224 | L188: 0.595908256 | M188: -0.595908256 | P188: 274143900
A189: 157 | B189: =OFFSET(InputPriceData!B$15,CalculationsAndCharts!$A189+$A$11,0,1,1) -> 2015-08-26 | C189: =OFFSET(InputPriceData!G$15,CalculationsAndCharts!$A189+$A$11,IF($C$7,8,0),1,1) -> 339257000 | D189: =OFFSET(InputPriceData!C$15,CalculationsAndCharts!$A189+$A$11,IF($C$7,8,0),1,1) -> 188.98 | E189: =OFFSET(InputPriceData!D$15,CalculationsAndCharts!$A189+$A$11,IF($C$7,8,0),1,1) -> 191.65 | F189: =OFFSET(InputPriceData!E$15,CalculationsAndCharts!$A189+$A$11,IF($C$7,8,0),1,1) -> 185.33 | G189: =OFFSET(InputPriceData!F$15,CalculationsAndCharts!$A189+$A$11,IF($C$7,8,0),1,1) -> 191.32 | H189: 198.5799903 | I189: 200.7360732 | J189: -2.156082934 | K189: 4.648693617 | L189: 0.5183819796 | M189: -0.5183819796 | P189: 339257000
A190: 158 | B190: =OFFSET(InputPriceData!B$15,CalculationsAndCharts!$A190+$A$11,0,1,1) -> 2015-08-25 | C190: =OFFSET(InputPriceData!G$15,CalculationsAndCharts!$A190+$A$11,IF($C$7,8,0),1,1) -> 369833100 | D190: =OFFSET(InputPriceData!C$15,CalculationsAndCharts!$A190+$A$11,IF($C$7,8,0),1,1) -> 192.28 | E190: =OFFSET(InputPriceData!D$15,CalculationsAndCharts!$A190+$A$11,IF($C$7,8,0),1,1) -> 192.3 | F190: =OFFSET(InputPriceData!E$15,CalculationsAndCharts!$A190+$A$11,IF($C$7,8,0),1,1) -> 183.9 | G190: =OFFSET(InputPriceData!F$15,CalculationsAndCharts!$A190+$A$11,IF($C$7,8,0),1,1) -> 184.25 | H190: 199.6171318 | I190: 201.5920799 | J190: -1.97494812 | K190: 3.900420076 | L190: 0.4196199109 | M190: -0.4196199109 | Q190: 369833100
A191: 159 | B191: =OFFSET(InputPriceData!B$15,CalculationsAndCharts!$A191+$A$11,0,1,1) -> 2015-08-24 | C191: =OFFSET(InputPriceData!G$15,CalculationsAndCharts!$A191+$A$11,IF($C$7,8,0),1,1) -> 507244300 | D191: =OFFSET(InputPriceData!C$15,CalculationsAndCharts!$A191+$A$11,IF($C$7,8,0),1,1) -> 184.47 | E191: =OFFSET(InputPriceData!D$15,CalculationsAndCharts!$A191+$A$11,IF($C$7,8,0),1,1) -> 194.29 | F191: =OFFSET(InputPriceData!E$15,CalculationsAndCharts!$A191+$A$11,IF($C$7,8,0),1,1) -> 179.46 | G191: =OFFSET(InputPriceData!F$15,CalculationsAndCharts!$A191+$A$11,IF($C$7,8,0),1,1) -> 186.44 | H191: 201.8124363 | I191: 203.1686326 | J191: -1.356196298 | K191: 1.839268399 | L191: 0.3137057394 | M191: -0.3137057394 | P191: 507244300
A192: 160 | B192: =OFFSET(InputPriceData!B$15,CalculationsAndCharts!$A192+$A$11,0,1,1) -> 2015-08-21 | C192: =OFFSET(InputPriceData!G$15,CalculationsAndCharts!$A192+$A$11,IF($C$7,8,0),1,1) -> 346588500 | D192: =OFFSET(InputPriceData!C$15,CalculationsAndCharts!$A192+$A$11,IF($C$7,8,0),1,1) -> 198.48 | E192: =OFFSET(InputPriceData!D$15,CalculationsAndCharts!$A192+$A$11,IF($C$7,8,0),1,1) -> 200.65 | F192: =OFFSET(InputPriceData!E$15,CalculationsAndCharts!$A192+$A$11,IF($C$7,8,0),1,1) -> 194.33 | G192: =OFFSET(InputPriceData!F$15,CalculationsAndCharts!$A192+$A$11,IF($C$7,8,0),1,1) -> 194.64 | H192: 204.0084986 | I192: 204.6894174 | J192: -0.6809187508 | K192: 0.4636503451 | L192: 0.2484470584 | M192: -0.2484470584 | Q192: 346588500
A193: 161 | B193: =OFFSET(InputPriceData!B$15,CalculationsAndCharts!$A193+$A$11,0,1,1) -> 2015-08-20 | C193: =OFFSET(InputPriceData!G$15,CalculationsAndCharts!$A193+$A$11,IF($C$7,8,0),1,1) -> 194327900 | D193: =OFFSET(InputPriceData!C$15,CalculationsAndCharts!$A193+$A$11,IF($C$7,8,0),1,1) -> 203.18 | E193: =OFFSET(InputPriceData!D$15,CalculationsAndCharts!$A193+$A$11,IF($C$7,8,0),1,1) -> 204.93 | F193: =OFFSET(InputPriceData!E$15,CalculationsAndCharts!$A193+$A$11,IF($C$7,8,0),1,1) -> 200.61 | G193: =OFFSET(InputPriceData!F$15,CalculationsAndCharts!$A193+$A$11,IF($C$7,8,0),1,1) -> 200.68 | H193: 205.3468556 | I193: 205.6030008 | J193: -0.2561452013 | K193: 0.06561036413 | L193: 0.2291027853 | M193: -0.2291027853 | Q193: 194327900
A194: 162 | B194: =OFFSET(InputPriceData!B$15,CalculationsAndCharts!$A194+$A$11,0,1,1) -> 2015-08-19 | C194: =OFFSET(InputPriceData!G$15,CalculationsAndCharts!$A194+$A$11,IF($C$7,8,0),1,1) -> 172946000 | D194: =OFFSET(InputPriceData!C$15,CalculationsAndCharts!$A194+$A$11,IF($C$7,8,0),1,1) -> 205.72 | E194: =OFFSET(InputPriceData!D$15,CalculationsAndCharts!$A194+$A$11,IF($C$7,8,0),1,1) -> 206.62 | F194: =OFFSET(InputPriceData!E$15,CalculationsAndCharts!$A194+$A$11,IF($C$7,8,0),1,1) -> 204.01 | G194: =OFFSET(InputPriceData!F$15,CalculationsAndCharts!$A194+$A$11,IF($C$7,8,0),1,1) -> 204.96 | H194: 206.0135492 | I194: 206.0505463 | J194: -0.03699707198 | K194: 0.001368783335 | L194: 0.226563539 | M194: -0.226563539 | Q194: 172946000
A195: 163 | B195: =OFFSET(InputPriceData!B$15,CalculationsAndCharts!$A195+$A$11,0,1,1) -> 2015-08-18 | C195: =OFFSET(InputPriceData!G$15,CalculationsAndCharts!$A195+$A$11,IF($C$7,8,0),1,1) -> 71692700 | D195: =OFFSET(InputPriceData!C$15,CalculationsAndCharts!$A195+$A$11,IF($C$7,8,0),1,1) -> 206.87 | E195: =OFFSET(InputPriceData!D$15,CalculationsAndCharts!$A195+$A$11,IF($C$7,8,0),1,1) -> 207.28 | F195: =OFFSET(InputPriceData!E$15,CalculationsAndCharts!$A195+$A$11,IF($C$7,8,0),1,1) -> 206.32 | G195: =OFFSET(InputPriceData!F$15,CalculationsAndCharts!$A195+$A$11,IF($C$7,8,0),1,1) -> 206.59 | H195: 206.1640563 | I195: 206.1496869 | J195: 0.01436938884 | K195: 0.0002064793356 | L195: 0.2270385724 | M195: -0.2270385724 | Q195: 71692700
A196: 164 | B196: =OFFSET(InputPriceData!B$15,CalculationsAndCharts!$A196+$A$11,0,1,1) -> 2015-08-17 | C196: =OFFSET(InputPriceData!G$15,CalculationsAndCharts!$A196+$A$11,IF($C$7,8,0),1,1) -> 79072600 | D196: =OFFSET(InputPriceData!C$15,CalculationsAndCharts!$A196+$A$11,IF($C$7,8,0),1,1) -> 205.34 | E196: =OFFSET(InputPriceData!D$15,CalculationsAndCharts!$A196+$A$11,IF($C$7,8,0),1,1) -> 207.19 | F196: =OFFSET(InputPriceData!E$15,CalculationsAndCharts!$A196+$A$11,IF($C$7,8,0),1,1) -> 204.8 | G196: =OFFSET(InputPriceData!F$15,CalculationsAndCharts!$A196+$A$11,IF($C$7,8,0),1,1) -> 207.19 | H196: 206.1032072 | I196: 206.1096584 | J196: -0.006451249482 | K196: 4.161861988e-05 | L196: 0.2270326912 | M196: -0.2270326912 | P196: 79072600
A197: 165 | B197: =OFFSET(InputPriceData!B$15,CalculationsAndCharts!$A197+$A$11,0,1,1) -> 2015-08-14 | C197: =OFFSET(InputPriceData!G$15,CalculationsAndCharts!$A197+$A$11,IF($C$7,8,0),1,1) -> 72786500 | D197: =OFFSET(InputPriceData!C$15,CalculationsAndCharts!$A197+$A$11,IF($C$7,8,0),1,1) -> 205.07 | E197: =OFFSET(InputPriceData!D$15,CalculationsAndCharts!$A197+$A$11,IF($C$7,8,0),1,1) -> 206.13 | F197: =OFFSET(InputPriceData!E$15,CalculationsAndCharts!$A197+$A$11,IF($C$7,8,0),1,1) -> 204.9 | G197: =OFFSET(InputPriceData!F$15,CalculationsAndCharts!$A197+$A$11,IF($C$7,8,0),1,1) -> 206.04 | H197: 205.9479511 | I197: 206.0114456 | J197: -0.06349449662 | K197: 0.0040315511 | L197: 0.2276304111 | M197: -0.2276304111 | P197: 72786500
A198: 166 | B198: =OFFSET(InputPriceData!B$15,CalculationsAndCharts!$A198+$A$11,0,1,1) -> 2015-08-13 | C198: =OFFSET(InputPriceData!G$15,CalculationsAndCharts!$A198+$A$11,IF($C$7,8,0),1,1) -> 89383300 | D198: =OFFSET(InputPriceData!C$15,CalculationsAndCharts!$A198+$A$11,IF($C$7,8,0),1,1) -> 205.36 | E198: =OFFSET(InputPriceData!D$15,CalculationsAndCharts!$A198+$A$11,IF($C$7,8,0),1,1) -> 206.17 | F198: =OFFSET(InputPriceData!E$15,CalculationsAndCharts!$A198+$A$11,IF($C$7,8,0),1,1) -> 204.65 | G198: =OFFSET(InputPriceData!F$15,CalculationsAndCharts!$A198+$A$11,IF($C$7,8,0),1,1) -> 205.29 | H198: 205.9348012 | I198: 206.0088497 | J198: -0.07404848659 | K198: 0.005483178367 | L198: 0.2293016317 | M198: -0.2293016317 | Q198: 89383300
A199: 167 | B199: =OFFSET(InputPriceData!B$15,CalculationsAndCharts!$A199+$A$11,0,1,1) -> 2015-08-12 | C199: =OFFSET(InputPriceData!G$15,CalculationsAndCharts!$A199+$A$11,IF($C$7,8,0),1,1) -> 172123700 | D199: =OFFSET(InputPriceData!C$15,CalculationsAndCharts!$A199+$A$11,IF($C$7,8,0),1,1) -> 203.77 | E199: =OFFSET(InputPriceData!D$15,CalculationsAndCharts!$A199+$A$11,IF($C$7,8,0),1,1) -> 205.77 | F199: =OFFSET(InputPriceData!E$15,CalculationsAndCharts!$A199+$A$11,IF($C$7,8,0),1,1) -> 202.05 | G199: =OFFSET(InputPriceData!F$15,CalculationsAndCharts!$A199+$A$11,IF($C$7,8,0),1,1) -> 205.55 | H199: 206.0269157 | I199: 206.0741997 | J199: -0.04728400024 | K199: 0.002235776679 | L199: 0.2328359217 | M199: -0.2328359217 | P199: 172123700
A200: 168 | B200: =OFFSET(InputPriceData!B$15,CalculationsAndCharts!$A200+$A$11,0,1,1) -> 2015-08-11 | C200: =OFFSET(InputPriceData!G$15,CalculationsAndCharts!$A200+$A$11,IF($C$7,8,0),1,1) -> 126081400 | D200: =OFFSET(InputPriceData!C$15,CalculationsAndCharts!$A200+$A$11,IF($C$7,8,0),1,1) -> 205.6 | E200: =OFFSET(InputPriceData!D$15,CalculationsAndCharts!$A200+$A$11,IF($C$7,8,0),1,1) -> 206.09 | F200: =OFFSET(InputPriceData!E$15,CalculationsAndCharts!$A200+$A$11,IF($C$7,8,0),1,1) -> 204.41 | G200: =OFFSET(InputPriceData!F$15,CalculationsAndCharts!$A200+$A$11,IF($C$7,8,0),1,1) -> 205.29 | H200: 206.0950465 | I200: 206.1218542 | J200: -0.02680770557 | K200: 0.000718653078 | L200: 0.2368951591 | M200: -0.2368951591 | Q200: 126081400
A201: 169 | B201: =OFFSET(InputPriceData!B$15,CalculationsAndCharts!$A201+$A$11,0,1,1) -> 2015-08-10 | C201: =OFFSET(InputPriceData!G$15,CalculationsAndCharts!$A201+$A$11,IF($C$7,8,0),1,1) -> 80270700 | D201: =OFFSET(InputPriceData!C$15,CalculationsAndCharts!$A201+$A$11,IF($C$7,8,0),1,1) -> 205.9 | E201: =OFFSET(InputPriceData!D$15,CalculationsAndCharts!$A201+$A$11,IF($C$7,8,0),1,1) -> 207.27 | F201: =OFFSET(InputPriceData!E$15,CalculationsAndCharts!$A201+$A$11,IF($C$7,8,0),1,1) -> 205.9 | G201: =OFFSET(InputPriceData!F$15,CalculationsAndCharts!$A201+$A$11,IF($C$7,8,0),1,1) -> 207.17 | H201: 206.2100531 | I201: 206.1974773 | J201: 0.01257582682 | K201: 0.0001581514202 | L201: 0.2422232668 | M201: -0.2422232668 | P201: 80270700
A202: 170 | B202: =OFFSET(InputPriceData!B$15,CalculationsAndCharts!$A202+$A$11,0,1,1) -> 2015-08-07 | C202: =OFFSET(InputPriceData!G$15,CalculationsAndCharts!$A202+$A$11,IF($C$7,8,0),1,1) -> 117858000 | D202: =OFFSET(InputPriceData!C$15,CalculationsAndCharts!$A202+$A$11,IF($C$7,8,0),1,1) -> 204.8 | E202: =OFFSET(InputPriceData!D$15,CalculationsAndCharts!$A202+$A$11,IF($C$7,8,0),1,1) -> 204.98 | F202: =OFFSET(InputPriceData!E$15,CalculationsAndCharts!$A202+$A$11,IF($C$7,8,0),1,1) -> 203.53 | G202: =OFFSET(InputPriceData!F$15,CalculationsAndCharts!$A202+$A$11,IF($C$7,8,0),1,1) -> 204.6 | H202: 206.0729179 | I202: 206.1090661 | J202: -0.03614828639 | K202: 0.001306698609 | L202: 0.2487327829 | M202: -0.2487327829 | Q202: 117858000
A203: 171 | B203: =OFFSET(InputPriceData!B$15,CalculationsAndCharts!$A203+$A$11,0,1,1) -> 2015-08-06 | C203: =OFFSET(InputPriceData!G$15,CalculationsAndCharts!$A203+$A$11,IF($C$7,8,0),1,1) -> 116030800 | D203: =OFFSET(InputPriceData!C$15,CalculationsAndCharts!$A203+$A$11,IF($C$7,8,0),1,1) -> 206.9 | E203: =OFFSET(InputPriceData!D$15,CalculationsAndCharts!$A203+$A$11,IF($C$7,8,0),1,1) -> 207.03 | F203: =OFFSET(InputPriceData!E$15,CalculationsAndCharts!$A203+$A$11,IF($C$7,8,0),1,1) -> 204.3 | G203: =OFFSET(InputPriceData!F$15,CalculationsAndCharts!$A203+$A$11,IF($C$7,8,0),1,1) -> 204.99 | H203: 206.2833347 | I203: 206.246254 | J203: 0.03708071904 | K203: 0.001374979724 | L203: 0.2573557986 | M203: -0.2573557986 | Q203: 116030800
A204: 172 | B204: =OFFSET(InputPriceData!B$15,CalculationsAndCharts!$A204+$A$11,0,1,1) -> 2015-08-05 | C204: =OFFSET(InputPriceData!G$15,CalculationsAndCharts!$A204+$A$11,IF($C$7,8,0),1,1) -> 85786800 | D204: =OFFSET(InputPriceData!C$15,CalculationsAndCharts!$A204+$A$11,IF($C$7,8,0),1,1) -> 207.05 | E204: =OFFSET(InputPriceData!D$15,CalculationsAndCharts!$A204+$A$11,IF($C$7,8,0),1,1) -> 207.9 | F204: =OFFSET(InputPriceData!E$15,CalculationsAndCharts!$A204+$A$11,IF($C$7,8,0),1,1) -> 206.35 | G204: =OFFSET(InputPriceData!F$15,CalculationsAndCharts!$A204+$A$11,IF($C$7,8,0),1,1) -> 206.68 | H204: 206.4680968 | I204: 206.3604589 | J204: 0.1076379113 | K204: 0.01158591994 | L204: 0.2661392305 | M204: -0.2661392305 | Q204: 85786800
A205: 173 | B205: =OFFSET(InputPriceData!B$15,CalculationsAndCharts!$A205+$A$11,0,1,1) -> 2015-08-04 | C205: =OFFSET(InputPriceData!G$15,CalculationsAndCharts!$A205+$A$11,IF($C$7,8,0),1,1) -> 81820800 | D205: =OFFSET(InputPriceData!C$15,CalculationsAndCharts!$A205+$A$11,IF($C$7,8,0),1,1) -> 206.32 | E205: =OFFSET(InputPriceData!D$15,CalculationsAndCharts!$A205+$A$11,IF($C$7,8,0),1,1) -> 206.86 | F205: =OFFSET(InputPriceData!E$15,CalculationsAndCharts!$A205+$A$11,IF($C$7,8,0),1,1) -> 205.43 | G205: =OFFSET(InputPriceData!F$15,CalculationsAndCharts!$A205+$A$11,IF($C$7,8,0),1,1) -> 206 | H205: 206.4378249 | I205: 206.3314097 | J205: 0.106415217 | K205: 0.01132419842 | L205: 0.2741560789 | M205: -0.2741560789 | Q205: 81820800
A206: 174 | B206: =OFFSET(InputPriceData!B$15,CalculationsAndCharts!$A206+$A$11,0,1,1) -> 2015-08-03 | C206: =OFFSET(InputPriceData!G$15,CalculationsAndCharts!$A206+$A$11,IF($C$7,8,0),1,1) -> 113965700 | D206: =OFFSET(InputPriceData!C$15,CalculationsAndCharts!$A206+$A$11,IF($C$7,8,0),1,1) -> 207.06 | E206: =OFFSET(InputPriceData!D$15,CalculationsAndCharts!$A206+$A$11,IF($C$7,8,0),1,1) -> 207.13 | F206: =OFFSET(InputPriceData!E$15,CalculationsAndCharts!$A206+$A$11,IF($C$7,8,0),1,1) -> 205.28 | G206: =OFFSET(InputPriceData!F$15,CalculationsAndCharts!$A206+$A$11,IF($C$7,8,0),1,1) -> 206.41 | H206: 206.5003713 | I206: 206.3615378 | J206: 0.1388334785 | K206: 0.01927473476 | L206: 0.2853335465 | M206: -0.2853335465 | Q206: 113965700
A207: 175 | B207: =OFFSET(InputPriceData!B$15,CalculationsAndCharts!$A207+$A$11,0,1,1) -> 2015-07-31 | C207: =OFFSET(InputPriceData!G$15,CalculationsAndCharts!$A207+$A$11,IF($C$7,8,0),1,1) -> 103266900 | D207: =OFFSET(InputPriceData!C$15,CalculationsAndCharts!$A207+$A$11,IF($C$7,8,0),1,1) -> 208.01 | E207: =OFFSET(InputPriceData!D$15,CalculationsAndCharts!$A207+$A$11,IF($C$7,8,0),1,1) -> 208.04 | F207: =OFFSET(InputPriceData!E$15,CalculationsAndCharts!$A207+$A$11,IF($C$7,8,0),1,1) -> 206.77 | G207: =OFFSET(InputPriceData!F$15,CalculationsAndCharts!$A207+$A$11,IF($C$7,8,0),1,1) -> 207.1 | H207: 206.5132815 | I207: 206.3571322 | J207: 0.1561493178 | K207: 0.02438260946 | L207: 0.2954538924 | M207: -0.2954538924 | Q207: 103266900
A208: 176 | B208: =OFFSET(InputPriceData!B$15,CalculationsAndCharts!$A208+$A$11,0,1,1) -> 2015-07-30 | C208: =OFFSET(InputPriceData!G$15,CalculationsAndCharts!$A208+$A$11,IF($C$7,8,0),1,1) -> 91304400 | D208: =OFFSET(InputPriceData!C$15,CalculationsAndCharts!$A208+$A$11,IF($C$7,8,0),1,1) -> 206.77 | E208: =OFFSET(InputPriceData!D$15,CalculationsAndCharts!$A208+$A$11,IF($C$7,8,0),1,1) -> 207.62 | F208: =OFFSET(InputPriceData!E$15,CalculationsAndCharts!$A208+$A$11,IF($C$7,8,0),1,1) -> 206.04 | G208: =OFFSET(InputPriceData!F$15,CalculationsAndCharts!$A208+$A$11,IF($C$7,8,0),1,1) -> 207.42 | H208: 206.4294646 | I208: 206.2895988 | J208: 0.1398658276 | K208: 0.01956244974 | L208: 0.3034753706 | M208: -0.3034753706 | P208: 91304400
... 2324 more rows

Sheet Follow
A1: Stocks and Indexes I wish to follow
A3: To ease following a stock, enter a Yahoo Finance acceptable symbol in column "A" anywhere below cell "A9".
A4: Thereafter you may doubleclick the cell containing a symbol of interest to initiate data retrieval and charting for that symbol.
A7: Symbol
A8: To | B8: Description | C8: Last Trade as of most recent check
A9: Follow | C9: Date | D9: Time | E9: Open | F9: High | G9: Low | H9: Close | I9: Volume | J9: Change
A10: A | B10: Agilent Technolog (A) -NYSE (Daily) | C10: 2015-02-02 | D10: 16:03:00 | E10: 37.9 | F10: 38.76 | G10: 37.71 | H10: 38.69 | I10: 2508493 | J10: 0.92
A11: AAL | B11: American Airlines (AAL) -NasdaqNM (Daily) | C11: 2015-02-19 | D11: 16:00:00 | E11: 50.73 | F11: 50.8 | G11: 49.59 | H11: 49.78 | I11: 11462722 | J11: 0.47
A12: ADM | B12: Archer-Daniels-Midland Company (ADM) -NYQ (Daily) | C12: 2016-03-07 | D12: 13:18:00 | E12: 37.17 | F12: 37.29 | G12: 36.85 | H12: 37.09 | I12: 2069198 | J12: -0.56
A13: AMC | B13: AMC Entertainment Holdings, Inc (AMC) -NYQ (Daily) | C13: 2015-09-04 | D13: 16:00:00 | E13: 27.14 | F13: 27.95 | G13: 26.99 | H13: 27.71 | I13: 167990 | J13: 0.28
A14: BSX | B14: Boston Scientific Corporation C (BSX) -NYQ (Daily) | C14: 2015-03-13 | D14: 16:01:00 | E14: 16.84 | F14: 16.91 | G14: 16.44 | H14: 16.61 | I14: 7262460 | J14: -0.28
A15: CASY | B15: Caseys General Stores, Inc. (CASY) -NMS (Daily) | C15: 2016-01-08 | D15: 11:34:00 | E15: 117.67 | F15: 117.97 | G15: 116.79 | H15: 117.01 | I15: 106398 | J15: 0.05
A16: CSCO | B16: Cisco Systems, In (CSCO) -NasdaqNM (Daily) | C16: 2015-02-19 | D16: 16:00:00 | E16: 29.32 | F16: 29.39 | G16: 29.13 | H16: 29.31 | I16: 21469012 | J16: -0.18
A17: CVS | B17: CVS Health Corpor (CVS) -NYSE (Daily) | C17: 2015-02-02 | D17: 16:01:00 | E17: 98.34 | F17: 99.22 | G17: 97.06 | H17: 99.11 | I17: 4416094 | J17: 0.95
A18: DIS | B18: Walt Disney Compa (DIS) -NYSE (Daily) | C18: 2015-02-26 | D18: 16:00:00 | E18: 105.5 | F18: 105.71 | G18: 104.14 | H18: 104.56 | I18: 5044969 | J18: -1.01
A19: EMC | B19: EMC Corporation C (EMC) -NYSE (Daily) | C19: 2015-02-19 | D19: 16:00:00 | E19: 28.26 | F19: 28.83 | G19: 28.19 | H19: 28.72 | I19: 11049079 | J19: 0.52
A20: F | B20: Ford Motor Company Common Stock (F) -NYQ (Daily) | C20: 2016-01-08 | D20: 11:42:00 | E20: 13.05 | F20: 13.1 | G20: 12.68 | H20: 12.7353 | I20: 19823416 | J20: 0.0353
A21: GSK | B21: GlaxoSmithKline P (GSK) -NYSE (Daily) | C21: 2015-02-02 | D21: 16:01:00 | E21: 44.11 | F21: 44.12 | G21: 43.71 | H21: 43.96 | I21: 3654466 | J21: -0.04
A22: HSY | B22: The Hershey Compa (HSY) -NYSE (Daily) | C22: 2015-02-19 | D22: 16:02:00 | E22: 106.97 | F22: 107.31 | G22: 105.42 | H22: 105.95 | I22: 1448321 | J22: -1
A23: HTLD | B23: Heartland Express (HTLD) -NasdaqNM (Daily) | C23: 2015-02-02 | D23: 16:00:00 | E23: 25.68 | F23: 25.81 | G23: 25.36 | H23: 25.62 | I23: 542510 | J23: -0.07
A24: IBM | B24: International Bus (IBM) -NYSE (Daily) | C24: 2015-02-02 | D24: 16:01:00 | E24: 154 | F24: 154.66 | G24: 151.51 | H24: 154.66 | I24: 4712247 | J24: 1.35
A25: INTC | B25: Intel Corporation (INTC) -NasdaqNM (Daily) | C25: 2015-02-19 | D25: 16:00:00 | E25: 34.25 | F25: 34.42 | G25: 34.05 | H25: 34.21 | I25: 11017541 | J25: -0.055
A26: JAH | B26: Jarden Corporation Common Stock (JAH) -NYQ (Daily) | C26: 2016-01-08 | D26: 16:02:00 | E26: 53.82 | F26: 53.88 | G26: 52.65 | H26: 52.73 | I26: 4519480 | J26: -0.81
A27: JNJ | B27: Johnson & Johnson Common Stock (JNJ) -NYQ (Daily) | C27: 2016-01-08 | D27: 11:37:00 | E27: 99.88 | F27: 99.94 | G27: 98.87 | H27: 98.88 | I27: 2448879 | J27: -0.34
A28: KO | B28: Coca-Cola Company (The) Common (KO) -NYQ (Daily) | C28: 2015-08-10 | D28: 16:00:00 | E28: 41.89 | F28: 41.99 | G28: 41.58 | H28: 41.68 | I28: 9501875 | J28: -0.09
A29: LHO | B29: LaSalle Hotel Pro (LHO) -NYSE (Daily) | C29: 2015-02-02 | D29: 16:06:00 | E29: 40.51 | F29: 40.74 | G29: 39.46 | H29: 40.26 | I29: 1034675 | J29: -0.2
A30: LINE | B30: Linn Energy, LLC (LINE) -NasdaqNM (Daily) | C30: 2015-02-02 | D30: 16:00:00 | E30: 10.4 | F30: 10.78 | G30: 10.25 | H30: 10.77 | I30: 3766537 | J30: 0.51
A31: LO | B31: Lorillard, Inc Co (LO) -NYSE (Daily) | C31: 2015-02-02 | D31: 16:03:00 | E31: 65.71 | F31: 66.29 | G31: 65.43 | H31: 66.29 | I31: 1563618 | J31: 0.68
A32: MCD | B32: McDonald's Corporation Common S (MCD) -NYQ (Daily) | C32: 2016-04-07 | D32: 16:10:00 | E32: 127.37 | F32: 128.52 | G32: 127.02 | H32: 128.14 | I32: 4720711 | J32: 0.62
A33: MDT | B33: Medtronic plc. Or (MDT) -NYSE (Daily) | C33: 2015-02-19 | D33: 16:01:00 | E33: 78.59 | F33: 78.59 | G33: 77.85 | H33: 78.13 | I33: 6900528 | J33: -0.37
A34: MGM | B34: MGM Resorts Inter (MGM) -NYSE (Daily) | C34: 2015-02-02 | D34: 16:00:00 | E34: 19.44 | F34: 19.75 | G34: 19.12 | H34: 19.74 | I34: 7570281 | J34: 0.26
A35: MO | B35: Altria Group, Inc (MO) -NYSE (Daily) | C35: 2015-02-02 | D35: 16:01:00 | E35: 53.25 | F35: 53.84 | G35: 52.98 | H35: 53.8 | I35: 9183582 | J35: 0.7
A36: MSFT | B36: Microsoft Corpora (MSFT) -NasdaqNM (Daily) | C36: 2015-02-20 | D36: 16:00:00 | E36: 43.51 | F36: 43.88 | G36: 43.29 | H36: 43.855 | I36: 29721132 | J36: 0.355
A37: NUGT | B37: Direxion Daily Gold Miners Inde (NUGT) -PCX (Daily) | C37: 2016-04-13 | D37: 14:18:00 | E37: 81.48 | F37: 84.97 | G37: 79.59 | H37: 80.5352 | I37: 4380827 | J37: -5.6148
A38: NVS | B38: Novartis AG Common Stock (NVS) -NYQ (Daily) | C38: 2016-01-08 | D38: 11:38:00 | E38: 83.38 | F38: 83.5 | G38: 82.37 | H38: 82.42 | I38: 979446 | J38: -1.52
A39: PRU | B39: Prudential Financ (PRU) -NYSE (Daily) | C39: 2015-02-23 | D39: 12:22:00 | E39: 80.25 | F39: 80.4499 | G39: 79.8 | H39: 80.12 | I39: 1604052 | J39: -0.69
A40: PSEC | B40: Prospect Capital Corporation (PSEC) -NMS (Daily) | C40: 2016-04-07 | D40: 16:00:00 | E40: 7.18 | F40: 7.25 | G40: 7.15 | H40: 7.21 | I40: 1116195 | J40: 0.02
A41: RAI | B41: Reynolds American (RAI) -NYSE (Daily) | C41: 2015-02-02 | D41: 16:03:00 | E41: 68.12 | F41: 69.06 | G41: 67.4346 | H41: 69.05 | I41: 1822013 | J41: 1.1
A42: RPM | B42: RPM International Inc. Common S (RPM) -NYQ (Daily) | C42: 2016-04-13 | D42: 12:43:00 | E42: 49.9 | F42: 50.21 | G42: 49.71 | H42: 49.97 | I42: 408337 | J42: 0.19 | K42: Owns the Rust-Oleum brand
A43: RSP | B43: Guggenheim S&P 500 Equal Weight (RSP) -PCX (Daily) | C43: 2016-01-08 | D43: 11:33:00 | E43: 73.24 | F43: 73.47 | G43: 72.41 | H43: 72.41 | I43: 754279 | J43: -0.48
A44: SONC | B44: Sonic Corp. (SONC) -NMS (Daily) | C44: 2016-01-08 | D44: 11:42:00 | E44: 30.24 | F44: 30.67 | G44: 29.89 | H44: 29.95 | I44: 327291 | J44: -0.05
A45: SWKS | B45: Skyworks Solution (SWKS) -NasdaqNM (Daily) | C45: 2015-02-02 | D45: 16:00:00 | E45: 83.07 | F45: 83.73 | G45: 80.15 | H45: 82.02 | I45: 4119001 | J45: -1.03
A46: TOL | B46: Toll Brothers Inc (TOL) -NYSE (Daily) | C46: 2015-02-23 | D46: 12:23:00 | E46: 37.56 | F46: 37.77 | G46: 37.1 | H46: 37.36 | I46: 1521944 | J46: -0.29
A47: UNP | B47: Union Pacific Cor (UNP) -NYSE (Daily) | C47: 2015-02-02 | D47: 16:10:00 | E47: 118.13 | F47: 119.06 | G47: 116.7 | H47: 119.01 | I47: 3259594 | J47: 1.8
A48: VZ | B48: Verizon Communica (VZ) -NYSE (Daily) | C48: 2015-02-23 | D48: 12:22:00 | E48: 48.94 | F48: 49 | G48: 48.54 | H48: 48.825 | I48: 4204644 | J48: -0.145
A49: WBA | B49: (WBA) -NasdaqNM (Daily) | C49: 2015-02-02 | D49: 16:00:00 | E49: 73.06 | F49: 74.98 | G49: 73 | H49: 74.89 | I49: 4247395 | J49: 1.14
A50: WMT | B50: Wal-Mart Stores, Inc. Common St (WMT) -NYQ (Daily) | C50: 2016-01-08 | D50: 11:39:00 | E50: 65.08 | F50: 65.41 | G50: 64.29 | H50: 64.55 | I50: 6674609 | J50: -0.48
A52: ^NDX | B52: NASDAQ-100 (^NDX) -NIM (Daily) | C52: 2015-08-10 | D52: 17:15:00 | E52: 4558.68 | F52: 4583.63 | G52: 4554.63 | H52: 4573.11 | I52: 0 | J52: 53.03
A53: ^DJI | B53: Dow Jones Industrial Average (^DJI) -DJI | C53: 2015-12-06 | D53: D ec | E53: 17482.68 | F53: 17866.47 | G53: 17482.68 | H53: 17847.63 | I53: 0 | J53: 369.96
A54: SPY | B54: SPDR S&P 500 (SPY) -PCX (Daily) | C54: 2016-05-05 | D54: 16:00:00 | E54: 205.56 | F54: 205.98 | G54: 204.47 | H54: 204.97 | I54: 67619222 | J54: -0.04
A55: ^GSPC | B55: S&P 500 (^GSPC) -SNP (Daily) | C55: 2015-12-04 | D55: 16:33:00 | E55: 2051.24 | F55: 2093.84 | G55: 2051.24 | H55: 2091.69 | I55: 740000496 | J55: 42.07
A56: ^RUT | B56: Russell 2000 (^RUT) -WCB (Daily) | C56: 2015-12-04 | D56: 16:30:00 | E56: 1170.642456 | F56: 1183.823486 | G56: 1170.491699 | H56: 1183.397095 | I56: 0 | J56: 12.830688
A57: ^VIX | B57: VOLATILITY S&P 500 (^VIX) -WCB (Daily) | C57: 2015-12-04 | D57: 16:14:00 | E57: 17.43 | F57: 17.65 | G57: 14.69 | H57: 14.81 | I57: 0 | J57: -3.3
A60: ACAD | B60: ACADIA Pharmaceut (ACAD) -NasdaqNM (Daily) | C60: 2014-07-21 | D60: 16:00:00 | E60: 20.13 | F60: 20.55 | G60: 19.8101 | H60: 20.31 | I60: 691016
A61: CLDX | B61: Celldex Therapeut (CLDX) -NasdaqNM (Daily) | C61: 2015-02-02 | D61: 16:00:00 | E61: 21.47 | F61: 21.69 | G61: 20.11 | H61: 21.02 | I61: 1570418 | J61: -0.4
A62: ICPT | B62: Intercept Pharmac (ICPT) -NasdaqNM (Daily) | C62: 2014-07-21 | D62: 16:00:00 | E62: 215.97 | F62: 218.43 | G62: 213.05 | H62: 218.14 | I62: 191276
A63: INO | B63: Inovio Pharmaceut (INO) -AMEX (Daily) | C63: 2014-07-21 | D63: 16:00:00 | E63: 10.3 | F63: 11.08 | G63: 10.1 | H63: 11.01 | I63: 1800796
A64: JCP | B64: J.C. Penney Compa (JCP) -NYSE (Daily) | C64: 2015-02-02 | D64: 16:01:00 | E64: 7.16 | F64: 7.44 | G64: 7.01 | H64: 7.43 | I64: 12772679 | J64: 0.16
A65: LCI | B65: Lannett Co Inc Co (LCI) -NYSE (Daily) | C65: 2014-07-21 | D65: 16:02:00 | E65: 38.09 | F65: 38.803 | G65: 36.5101 | H65: 37.76 | I65: 611367
A66: NPSP | B66: NPS Pharmaceutica (NPSP) -NasdaqNM (Daily) | C66: 2014-07-21 | D66: 15:59:00 | E66: 28.75 | F66: 29.43 | G66: 28.31 | H66: 29.29 | I66: 1126758
A67: PBYI | B67: Puma Biotechnolog (PBYI) -NYSE (Daily) | C67: 2014-07-21 | D67: 16:02:00 | E67: 58.27 | F67: 59.46 | G67: 57.39 | H67: 58.98 | I67: 348030
